Body Name,Body,Service Label,Service Code   ,Service Division Label,Service Division Code,Expenditure Category,Expenditure Code,CIPFA Detailed Expenditure Type,CIPFA Detailed Expenditure Code,Date,Transaction Number,Net Amount,Capital and Revenue,Creditor Name
Brighton & Hove City Council,http://statistics.data.gov.uk/id/local-authority/00ML,Adult Social Care,BVASOC,S Svcs - Older People Svcs,PPL,Customer n Client Receipts,M,Fees n Charges,MB,01/06/2012,PAY00480217,-7362.04,Revenue, Arlington House
Brighton & Hove City Council,http://statistics.data.gov.uk/id/local-authority/00ML,Adult Social Care,BVASOC,S Svcs - Older People Svcs,PPL,Third Party Payments,F,Other Establishments,FH,01/06/2012,PAY00480217,20644,Revenue, Arlington House
Brighton & Hove City Council,http://statistics.data.gov.uk/id/local-authority/00ML,Adult Social Care,BVASOC,S Svcs - Older People Svcs,PPL,Customer n Client Receipts,M,Fees n Charges,MB,15/06/2012,PAY00483460,4060.58,Revenue, Arlington House
Brighton & Hove City Council,http://statistics.data.gov.uk/id/local-authority/00ML,Adult Social Care,BVASOC,S Svcs - Older People Svcs,PPL,Customer n Client Receipts,M,Fees n Charges,MB,27/06/2012,PAY00485820,742.84,Revenue, Arlington House
Brighton & Hove City Council,http://statistics.data.gov.uk/id/local-authority/00ML,Adult Social Care,BVASOC,S Svcs - Older People Svcs,PPL,Customer n Client Receipts,M,Fees n Charges,MB,29/06/2012,PAY00486854,-441.28,Revenue, Arlington House
Brighton & Hove City Council,http://statistics.data.gov.uk/id/local-authority/00ML,Adult Social Care,BVASOC,S Svcs - Older People Svcs,PPL,Third Party Payments,F,Other Establishments,FH,29/06/2012,PAY00486854,1892.57,Revenue, Arlington House
Brighton & Hove City Council,http://statistics.data.gov.uk/id/local-authority/00ML,Adult Social Care,BVASOC,S Svcs - Older People Svcs,PPL,Customer n Client Receipts,M,Fees n Charges,MB,01/06/2012,PAY00480218,-6290.28,Revenue, Arundel Park Lodge
Brighton & Hove City Council,http://statistics.data.gov.uk/id/local-authority/00ML,Adult Social Care,BVASOC,S Svcs - Older People Svcs,PPL,Third Party Payments,F,Other Establishments,FH,01/06/2012,PAY00480218,22107.6,Revenue, Arundel Park Lodge
Brighton & Hove City Council,http://statistics.data.gov.uk/id/local-authority/00ML,Adult Social Care,BVASOC,S Svcs - Older People Svcs,PPL,Third Party Payments,F,Other Establishments,FH,22/06/2012,PAY00484995,2746.8,Revenue, Arundel Park Lodge
Brighton & Hove City Council,http://statistics.data.gov.uk/id/local-authority/00ML,Planning Services,BVAPLA,Economic Development,ECD,Supplies and Services,E,Grants n Subscriptions,EK,20/06/2012,PAY00484563,535,Revenue,225 Brighton Squadron Air Training
Brighton & Hove City Council,http://statistics.data.gov.uk/id/local-authority/00ML,Adult Social Care,BVASOC,S Svcs - Older People Svcs,PPL,Supplies and Services,E,Catering,EB,01/06/2012,PAY00480008,2132.09,Revenue,3663 BFS Group Ltd
Brighton & Hove City Council,http://statistics.data.gov.uk/id/local-authority/00ML,Cultural and Related Services,BVACUL,Culture & Heritage,CHG,Supplies and Services,E,Catering,EB,01/06/2012,PAY00480008,536.27,Revenue,3663 BFS Group Ltd
Brighton & Hove City Council,http://statistics.data.gov.uk/id/local-authority/00ML,Housing Services General Fund,BVAHOG,Homelessness,HML,Supplies and Services,E,Catering,EB,01/06/2012,PAY00480008,323.13,Revenue,3663 BFS Group Ltd
Brighton & Hove City Council,http://statistics.data.gov.uk/id/local-authority/00ML,Adult Social Care,BVASOC,S Svcs - Older People Svcs,PPL,Supplies and Services,E,Catering,EB,07/06/2012,PAY00481260,1569.3,Revenue,3663 BFS Group Ltd
Brighton & Hove City Council,http://statistics.data.gov.uk/id/local-authority/00ML,Cultural and Related Services,BVACUL,Culture & Heritage,CHG,Supplies and Services,E,Catering,EB,07/06/2012,PAY00481260,-8.44,Revenue,3663 BFS Group Ltd
Brighton & Hove City Council,http://statistics.data.gov.uk/id/local-authority/00ML,Education Services,BVAEDU,Ed - EY - Central,EAE,Supplies and Services,E,Catering,EB,07/06/2012,PAY00481260,356.18,Revenue,3663 BFS Group Ltd
Brighton & Hove City Council,http://statistics.data.gov.uk/id/local-authority/00ML,Housing Services General Fund,BVAHOG,Homelessness,HML,Supplies and Services,E,Catering,EB,07/06/2012,PAY00481260,-40.35,Revenue,3663 BFS Group Ltd
Brighton & Hove City Council,http://statistics.data.gov.uk/id/local-authority/00ML,Adult Social Care,BVASOC,S Svcs - Older People Svcs,PPL,Supplies and Services,E,Catering,EB,15/06/2012,PAY00483248,254.56,Revenue,3663 BFS Group Ltd
Brighton & Hove City Council,http://statistics.data.gov.uk/id/local-authority/00ML,Cultural and Related Services,BVACUL,Culture & Heritage,CHG,Supplies and Services,E,Catering,EB,15/06/2012,PAY00483248,775.59,Revenue,3663 BFS Group Ltd
Brighton & Hove City Council,http://statistics.data.gov.uk/id/local-authority/00ML,Housing Services General Fund,BVAHOG,Homelessness,HML,Premises Related,C,Cleaning n Domestic Supps,CH,15/06/2012,PAY00483248,116.57,Revenue,3663 BFS Group Ltd
Brighton & Hove City Council,http://statistics.data.gov.uk/id/local-authority/00ML,Housing Services General Fund,BVAHOG,Homelessness,HML,Supplies and Services,E,Catering,EB,15/06/2012,PAY00483248,517.45,Revenue,3663 BFS Group Ltd
Brighton & Hove City Council,http://statistics.data.gov.uk/id/local-authority/00ML,Adult Social Care,BVASOC,S Svcs - Learning Disability,LDY,Supplies and Services,E,Catering,EB,20/06/2012,PAY00484125,1088.88,Revenue,3663 BFS Group Ltd
Brighton & Hove City Council,http://statistics.data.gov.uk/id/local-authority/00ML,Adult Social Care,BVASOC,S Svcs - Older People Svcs,PPL,Supplies and Services,E,Catering,EB,22/06/2012,PAY00484789,380.63,Revenue,3663 BFS Group Ltd
Brighton & Hove City Council,http://statistics.data.gov.uk/id/local-authority/00ML,Education Services,BVAEDU,Ed - EY - Central,EAE,Supplies and Services,E,Catering,EB,22/06/2012,PAY00484789,243.44,Revenue,3663 BFS Group Ltd
Brighton & Hove City Council,http://statistics.data.gov.uk/id/local-authority/00ML,Adult Social Care,BVASOC,S Svcs - Older People Svcs,PPL,Supplies and Services,E,Catering,EB,27/06/2012,PAY00485749,971.04,Revenue,3663 BFS Group Ltd
Brighton & Hove City Council,http://statistics.data.gov.uk/id/local-authority/00ML,Cultural and Related Services,BVACUL,Culture & Heritage,CHG,Supplies and Services,E,Catering,EB,27/06/2012,PAY00485749,567.55,Revenue,3663 BFS Group Ltd
Brighton & Hove City Council,http://statistics.data.gov.uk/id/local-authority/00ML,Education Services,BVAEDU,Ed - EY - Central,EAE,Supplies and Services,E,Catering,EB,27/06/2012,PAY00485749,399.69,Revenue,3663 BFS Group Ltd
Brighton & Hove City Council,http://statistics.data.gov.uk/id/local-authority/00ML,Housing Services General Fund,BVAHOG,Homelessness,HML,Supplies and Services,E,Catering,EB,27/06/2012,PAY00485749,276.91,Revenue,3663 BFS Group Ltd
Brighton & Hove City Council,http://statistics.data.gov.uk/id/local-authority/00ML,Adult Social Care,BVASOC,S Svcs - Older People Svcs,PPL,Supplies and Services,E,Catering,EB,29/06/2012,PAY00486634,318.31,Revenue,3663 BFS Group Ltd
Brighton & Hove City Council,http://statistics.data.gov.uk/id/local-authority/00ML,Housing Services General Fund,BVAHOG,Homelessness,HML,Supplies and Services,E,Catering,EB,29/06/2012,PAY00486634,247.81,Revenue,3663 BFS Group Ltd
Brighton & Hove City Council,http://statistics.data.gov.uk/id/local-authority/00ML,Cultural and Related Services,BVACUL,Culture & Heritage,CHG,Customer n Client Receipts,M,Fees n Charges,MB,01/06/2012,PAY00480301,-11600,Revenue,3A Entertainment Ltd
Brighton & Hove City Council,http://statistics.data.gov.uk/id/local-authority/00ML,Cultural and Related Services,BVACUL,Culture & Heritage,CHG,Customer n Client Receipts,M,Sales,MA,01/06/2012,PAY00480301,52812.92,Revenue,3A Entertainment Ltd
Brighton & Hove City Council,http://statistics.data.gov.uk/id/local-authority/00ML,Cultural and Related Services,BVACUL,Culture & Heritage,CHG,Supplies and Services,E,Communications n Computing,EH,01/06/2012,PAY00480301,-35.75,Revenue,3A Entertainment Ltd
Brighton & Hove City Council,http://statistics.data.gov.uk/id/local-authority/00ML,Cultural and Related Services,BVACUL,Culture & Heritage,CHG,Supplies and Services,E,Equip't Furniture n Materials,EA,01/06/2012,PAY00480301,-216,Revenue,3A Entertainment Ltd
Brighton & Hove City Council,http://statistics.data.gov.uk/id/local-authority/00ML,Cultural and Related Services,BVACUL,Culture & Heritage,CHG,Supplies and Services,E,Miscellaneous Expenses,EM,01/06/2012,PAY00480301,-2058.04,Revenue,3A Entertainment Ltd
Brighton & Hove City Council,http://statistics.data.gov.uk/id/local-authority/00ML,Adult Social Care,BVASOC,S Svcs - Learning Disability,LDY,Indirect Employees,B,Training,BM,01/06/2012,PAY00479902,54,Revenue,a.i.d Training & Operations Ltd
Brighton & Hove City Council,http://statistics.data.gov.uk/id/local-authority/00ML,Adult Social Care,BVASOC,S Svcs - Other Adult Services,ADT,Indirect Employees,B,Training,BM,01/06/2012,PAY00479902,571,Revenue,a.i.d Training & Operations Ltd
Brighton & Hove City Council,http://statistics.data.gov.uk/id/local-authority/00ML,Central Services To The Public,BVACEN,Support Services (SSC),PPT,Indirect Employees,B,Training,BM,01/06/2012,PAY00479902,25,Revenue,a.i.d Training & Operations Ltd
Brighton & Hove City Council,http://statistics.data.gov.uk/id/local-authority/00ML,Central Services To The Public,BVACEN,Support Services (SSC),PPT,Indirect Employees,B,Training,BM,07/06/2012,PAY00481198,1025,Revenue,a.i.d Training & Operations Ltd
Brighton & Hove City Council,http://statistics.data.gov.uk/id/local-authority/00ML,Adult Social Care,BVASOC,S Svcs - Learning Disability,LDY,Indirect Employees,B,Training,BM,20/06/2012,PAY00484034,109,Revenue,a.i.d Training & Operations Ltd
Brighton & Hove City Council,http://statistics.data.gov.uk/id/local-authority/00ML,Adult Social Care,BVASOC,S Svcs - Other Adult Services,ADT,Indirect Employees,B,Training,BM,20/06/2012,PAY00484034,379,Revenue,a.i.d Training & Operations Ltd
Brighton & Hove City Council,http://statistics.data.gov.uk/id/local-authority/00ML,Central Services To The Public,BVACEN,Support Services (SSC),PPT,Indirect Employees,B,Training,BM,20/06/2012,PAY00484034,162,Revenue,a.i.d Training & Operations Ltd
Brighton & Hove City Council,http://statistics.data.gov.uk/id/local-authority/00ML,Education Services,BVAEDU,Ed - Srvcs YP - Ad & Cmty Ln,ENA,Indirect Employees,B,Training,BM,20/06/2012,PAY00484034,295,Revenue,a.i.d Training & Operations Ltd
Brighton & Hove City Council,http://statistics.data.gov.uk/id/local-authority/00ML,Adult Social Care,BVASOC,S Svcs - Learning Disability,LDY,Indirect Employees,B,Training,BM,27/06/2012,PAY00485666,54,Revenue,a.i.d Training & Operations Ltd
Brighton & Hove City Council,http://statistics.data.gov.uk/id/local-authority/00ML,Adult Social Care,BVASOC,S Svcs - Other Adult Services,ADT,Indirect Employees,B,Training,BM,27/06/2012,PAY00485666,461,Revenue,a.i.d Training & Operations Ltd
Brighton & Hove City Council,http://statistics.data.gov.uk/id/local-authority/00ML,Central Services To The Public,BVACEN,Support Services (SSC),PPT,Indirect Employees,B,Training,BM,27/06/2012,PAY00485666,135,Revenue,a.i.d Training & Operations Ltd
Brighton & Hove City Council,http://statistics.data.gov.uk/id/local-authority/00ML,Highways and Transportation,BVAHRT,Highways and Roads - Mntnce,HRM,Customer n Client Receipts,M,Fees n Charges,MB,07/06/2012,PAY00481573,532,Revenue,AA Media Ltd
Brighton & Hove City Council,http://statistics.data.gov.uk/id/local-authority/00ML,Central Services To The Public,BVACEN,Elections,ELE,Supplies and Services,E,Equip't Furniture n Materials,EA,20/06/2012,PAY00484118,185,Revenue,Abacus Property Maintenance Ltd
Brighton & Hove City Council,http://statistics.data.gov.uk/id/local-authority/00ML,Cultural and Related Services,BVACUL,Recreation and sport,REC,Premises Related,C,Repair Maint n Alterations,CA,20/06/2012,PAY00484118,1180,Revenue,Abacus Property Maintenance Ltd
Brighton & Hove City Council,http://statistics.data.gov.uk/id/local-authority/00ML,Planning Services,BVAPLA,Economic Development,ECD,Premises Related,C,Repair Maint n Alterations,CA,27/06/2012,PAY00485743,1070,Revenue,Abacus Property Maintenance Ltd
Brighton & Hove City Council,http://statistics.data.gov.uk/id/local-authority/00ML,Adult Social Care,BVASOC,S Svcs - Learning Disability,LDY,Customer n Client Receipts,M,Fees n Charges,MB,01/06/2012,PAY00480264,-622.8,Revenue,Abbey Care Group Ltd-Saxon Court
Brighton & Hove City Council,http://statistics.data.gov.uk/id/local-authority/00ML,Adult Social Care,BVASOC,S Svcs - Learning Disability,LDY,Third Party Payments,F,Other Establishments,FH,01/06/2012,PAY00480264,6296.6,Revenue,Abbey Care Group Ltd-Saxon Court
Brighton & Hove City Council,http://statistics.data.gov.uk/id/local-authority/00ML,Children�s Social Care,BVACSC,Management Services (DEC),MGT,Supplies and Services,E,Services,EF,29/06/2012,PAY00487540,736.99,Revenue,abc Translations
Brighton & Hove City Council,http://statistics.data.gov.uk/id/local-authority/00ML,Adult Social Care,BVASOC,S Svcs - Physical Disability,PDY,Customer n Client Receipts,M,Fees n Charges,MB,01/06/2012,PAY00480539,-1025.2,Revenue,Abi House
Brighton & Hove City Council,http://statistics.data.gov.uk/id/local-authority/00ML,Adult Social Care,BVASOC,S Svcs - Physical Disability,PDY,Third Party Payments,F,Other Establishments,FH,01/06/2012,PAY00480539,16227.6,Revenue,Abi House
Brighton & Hove City Council,http://statistics.data.gov.uk/id/local-authority/00ML,Environment and Regulatory Ser,BVAERS,Agricultural and Fisheries,AGF,Third Party Payments,F,Private Contractors,FJ,27/06/2012,PAY00486085,900,Revenue,Acacia Landscapes
Brighton & Hove City Council,http://statistics.data.gov.uk/id/local-authority/00ML,Non SERCOP,BVANON,Cap - Housing Services - GF,4HG,Capital Grants,PF,Level not required,NR5012,20/06/2012,PAY00483956,4287.4,Capital,Access Mobility
Brighton & Hove City Council,http://statistics.data.gov.uk/id/local-authority/00ML,Non SERCOP,BVANON,Cap - Housing Services - HRA,4HR,New Construction n Conversion,PB,Level not required,NR5026,22/06/2012,PAY00484668,6318.76,Capital,Access Mobility
Brighton & Hove City Council,http://statistics.data.gov.uk/id/local-authority/00ML,Non SERCOP,BVANON,Cap - Housing Services - HRA,4HR,New Construction n Conversion,PB,Level not required,NR5026,27/06/2012,PAY00485548,16015.57,Capital,Access Mobility
Brighton & Hove City Council,http://statistics.data.gov.uk/id/local-authority/00ML,Non SERCOP,BVANON,Cap - Housing Services - HRA,4HR,New Construction n Conversion,PB,Level not required,NR5026,29/06/2012,PAY00486443,9102.38,Capital,Access Mobility
Brighton & Hove City Council,http://statistics.data.gov.uk/id/local-authority/00ML,Central Services To The Public,BVACEN,Support Services (SSC),PPT,Transport Related,D,Other Transport Costs,DG,20/06/2012,PAY00484322,1208,Revenue,Ace Taxis
Brighton & Hove City Council,http://statistics.data.gov.uk/id/local-authority/00ML,Education Services,BVAEDU,Ed - Ed Other - LA Attrib Sch,ELA,Transport Related,D,Other Transport Costs,DG,20/06/2012,PAY00484089,8624,Revenue,Ace Travel Ltd
Brighton & Hove City Council,http://statistics.data.gov.uk/id/local-authority/00ML,Education Services,BVAEDU,Ed - Mgmt & Support Services,EMG,Supplies and Services,E,Equip't Furniture n Materials,EA,01/06/2012,PAY00479829,3343.23,Revenue,Ackerman Music Ltd
Brighton & Hove City Council,http://statistics.data.gov.uk/id/local-authority/00ML,Adult Social Care,BVASOC,S Svcs - Learning Disability,LDY,Customer n Client Receipts,M,Fees n Charges,MB,01/06/2012,PAY00480216,-1430.4,Revenue,Acorn (Watford) Ltd
Brighton & Hove City Council,http://statistics.data.gov.uk/id/local-authority/00ML,Adult Social Care,BVASOC,S Svcs - Learning Disability,LDY,Third Party Payments,F,Other Establishments,FH,01/06/2012,PAY00480216,10629.84,Revenue,Acorn (Watford) Ltd
Brighton & Hove City Council,http://statistics.data.gov.uk/id/local-authority/00ML,Central Services To The Public,BVACEN,Support Services (SSC),PPT,Premises Related,C,Cleaning n Domestic Supps,CH,22/06/2012,PAY00485258,948.63,Revenue,Acorn Environmental
Brighton & Hove City Council,http://statistics.data.gov.uk/id/local-authority/00ML,Central Services To The Public,BVACEN,Support Services (SSC),PPT,Supplies and Services,E,Services,EF,07/06/2012,PAY00481431,420,Revenue,Acoustic Associates
Brighton & Hove City Council,http://statistics.data.gov.uk/id/local-authority/00ML,Adult Social Care,BVASOC,S Svcs - Physical Disability,PDY,Third Party Payments,F,Other Establishments,FH,20/06/2012,PAY00484164,1316.4,Revenue,Action on Hearing loss
Brighton & Hove City Council,http://statistics.data.gov.uk/id/local-authority/00ML,Adult Social Care,BVASOC,S Svcs - Mental Health,MHT,Third Party Payments,F,Other Establishments,FH,29/06/2012,PAY00486836,1769.85,Revenue,Action on Hearing loss
Brighton & Hove City Council,http://statistics.data.gov.uk/id/local-authority/00ML,Adult Social Care,BVASOC,S Svcs - Physical Disability,PDY,Customer n Client Receipts,M,Fees n Charges,MB,29/06/2012,PAY00486836,-112,Revenue,Action on Hearing loss
Brighton & Hove City Council,http://statistics.data.gov.uk/id/local-authority/00ML,Adult Social Care,BVASOC,S Svcs - Physical Disability,PDY,Third Party Payments,F,Other Establishments,FH,29/06/2012,PAY00486836,1037.4,Revenue,Action on Hearing loss
Brighton & Hove City Council,http://statistics.data.gov.uk/id/local-authority/00ML,Environment and Regulatory Ser,BVAERS,Environmental Health,EVH,Premises Related,C,Repair Maint n Alterations,CA,01/06/2012,PAY00479992,846,Revenue,Active Pump Services Limited
Brighton & Hove City Council,http://statistics.data.gov.uk/id/local-authority/00ML,Cultural and Related Services,BVACUL,Recreation and sport,REC,Supplies and Services,E,Grants n Subscriptions,EK,27/06/2012,PAY00485893,2000,Revenue,Active Sussex
Brighton & Hove City Council,http://statistics.data.gov.uk/id/local-authority/00ML,Planning Services,BVAPLA,Economic Development,ECD,Supplies and Services,E,Services,EF,01/06/2012,PAY00480566,1120,Revenue,Ad Hoc Property Management Ltd
Brighton & Hove City Council,http://statistics.data.gov.uk/id/local-authority/00ML,Planning Services,BVAPLA,Economic Development,ECD,Supplies and Services,E,Services,EF,27/06/2012,PAY00486012,1518,Revenue,Ad Hoc Property Management Ltd
Brighton & Hove City Council,http://statistics.data.gov.uk/id/local-authority/00ML,Central Services To The Public,BVACEN,Support Services (SSC),PPT,Premises Related,C,Repair Maint n Alterations,CA,15/06/2012,PAY00483639,4405.44,Revenue,ADC Environmental Services Ltd
Brighton & Hove City Council,http://statistics.data.gov.uk/id/local-authority/00ML,Adult Social Care,BVASOC,S Svcs - Older People Svcs,PPL,Customer n Client Receipts,M,Fees n Charges,MB,01/06/2012,PAY00480422,-548.64,Revenue,Adelaide Healthcare Ltd
Brighton & Hove City Council,http://statistics.data.gov.uk/id/local-authority/00ML,Adult Social Care,BVASOC,S Svcs - Older People Svcs,PPL,Third Party Payments,F,Other Establishments,FH,01/06/2012,PAY00480422,2292.8,Revenue,Adelaide Healthcare Ltd
Brighton & Hove City Council,http://statistics.data.gov.uk/id/local-authority/00ML,Adult Social Care,BVASOC,S Svcs - Older People Svcs,PPL,Third Party Payments,F,Other Establishments,FH,22/06/2012,PAY00484994,4513.6,Revenue,Adelaide Nursing Home
Brighton & Hove City Council,http://statistics.data.gov.uk/id/local-authority/00ML,Adult Social Care,BVASOC,S Svcs - Older People Svcs,PPL,Customer n Client Receipts,M,Fees n Charges,MB,27/06/2012,PAY00485819,-10385.84,Revenue,Adelaide Nursing Home
Brighton & Hove City Council,http://statistics.data.gov.uk/id/local-authority/00ML,Adult Social Care,BVASOC,S Svcs - Older People Svcs,PPL,Third Party Payments,F,Other Establishments,FH,27/06/2012,PAY00485819,52290.98,Revenue,Adelaide Nursing Home
Brighton & Hove City Council,http://statistics.data.gov.uk/id/local-authority/00ML,Adult Social Care,BVASOC,S Svcs - Older People Svcs,PPL,Customer n Client Receipts,M,Fees n Charges,MB,29/06/2012,PAY00486853,-885.49,Revenue,Adelaide Nursing Home
Brighton & Hove City Council,http://statistics.data.gov.uk/id/local-authority/00ML,Adult Social Care,BVASOC,S Svcs - Older People Svcs,PPL,Third Party Payments,F,Other Establishments,FH,29/06/2012,PAY00486853,4202.34,Revenue,Adelaide Nursing Home
Brighton & Hove City Council,http://statistics.data.gov.uk/id/local-authority/00ML,Housing Services General Fund,BVAHOG,Homelessness,HML,Premises Related,C,Rents Payable,CC,08/06/2012,PAY00481871,2815.29,Revenue,Adelphi Court Services Limited
Brighton & Hove City Council,http://statistics.data.gov.uk/id/local-authority/00ML,Housing Services General Fund,BVAHOG,Homelessness,HML,Premises Related,C,Rents Payable,CC,29/06/2012,PAY00486577,11125.18,Revenue,Adelphi Court Services Limited
Brighton & Hove City Council,http://statistics.data.gov.uk/id/local-authority/00ML,Adult Social Care,BVASOC,S Svcs - Older People Svcs,PPL,Customer n Client Receipts,M,Fees n Charges,MB,01/06/2012,PAY00480934,-1964.42,Revenue,Adiemus Care Ltd
Brighton & Hove City Council,http://statistics.data.gov.uk/id/local-authority/00ML,Adult Social Care,BVASOC,S Svcs - Older People Svcs,PPL,Third Party Payments,F,Other Establishments,FH,01/06/2012,PAY00480934,16976.8,Revenue,Adiemus Care Ltd
Brighton & Hove City Council,http://statistics.data.gov.uk/id/local-authority/00ML,Children�s Social Care,BVACSC,Child Srvcs - Adoption,FAA,Supplies and Services,E,Miscellaneous Expenses,EM,08/06/2012,PAY00481791,1625.63,Revenue,Adoption UK
Brighton & Hove City Council,http://statistics.data.gov.uk/id/local-authority/00ML,Adult Social Care,BVASOC,S Svcs - Learning Disability,LDY,Third Party Payments,F,Other Establishments,FH,13/06/2012,PAY00482938,825.6,Revenue,Advance Housing and Support Ltd
Brighton & Hove City Council,http://statistics.data.gov.uk/id/local-authority/00ML,Adult Social Care,BVASOC,S Svcs - Learning Disability,LDY,Third Party Payments,F,Other Establishments,FH,29/06/2012,PAY00487472,577.92,Revenue,Advance Housing and Support Ltd
Brighton & Hove City Council,http://statistics.data.gov.uk/id/local-authority/00ML,Non SERCOP,BVANON,Cap - Education Services,4ED,New Construction n Conversion,PB,Level not required,NR5026,20/06/2012,PAY00484268,2318,Capital,Advanced Connections Ltd
Brighton & Hove City Council,http://statistics.data.gov.uk/id/local-authority/00ML,Housing Services General Fund,BVAHOG,Homelessness,HML,Third Party Payments,F,Other Establishments,FH,29/06/2012,PAY00487369,705,Revenue,Advanced Inventory
Brighton & Hove City Council,http://statistics.data.gov.uk/id/local-authority/00ML,Housing Services General Fund,BVAHOG,Hsing Welfare,HGW,Transfer Payments,G,Supporting People,GF,01/06/2012,PAY00480019,8333.33,Revenue,Affinity Sutton Homes Ltd
Brighton & Hove City Council,http://statistics.data.gov.uk/id/local-authority/00ML,Housing Services General Fund,BVAHOG,Hsing Welfare,HGW,Transfer Payments,G,Supporting People,GF,29/06/2012,PAY00486652,8333.33,Revenue,Affinity Sutton Homes Ltd
Brighton & Hove City Council,http://statistics.data.gov.uk/id/local-authority/00ML,Adult Social Care,BVASOC,S Svcs - Learning Disability,LDY,Premises Related,C,Rents Payable,CC,07/06/2012,PAY00481227,20515.77,Revenue,Affinity Sutton Homes Ltd  (Rent)
Brighton & Hove City Council,http://statistics.data.gov.uk/id/local-authority/00ML,Adult Social Care,BVASOC,S Svcs - Learning Disability,LDY,Third Party Payments,F,Other Establishments,FH,15/06/2012,PAY00483211,2243.1,Revenue,Affinity Sutton Homes Ltd  (Rent)
Brighton & Hove City Council,http://statistics.data.gov.uk/id/local-authority/00ML,Adult Social Care,BVASOC,S Svcs - Older People Svcs,PPL,Third Party Payments,F,Other Establishments,FH,15/06/2012,PAY00483240,882.5,Revenue,AgeUK Brighton & Hove
Brighton & Hove City Council,http://statistics.data.gov.uk/id/local-authority/00ML,Adult Social Care,BVASOC,S Svcs - Older People Svcs,PPL,Customer n Client Receipts,M,Fees n Charges,MB,07/06/2012,PAY00481224,-1402,Revenue,Agincare UK Ltd
Brighton & Hove City Council,http://statistics.data.gov.uk/id/local-authority/00ML,Adult Social Care,BVASOC,S Svcs - Older People Svcs,PPL,Third Party Payments,F,Other Establishments,FH,07/06/2012,PAY00481224,7878.24,Revenue,Agincare UK Ltd
Brighton & Hove City Council,http://statistics.data.gov.uk/id/local-authority/00ML,Adult Social Care,BVASOC,S Svcs - Physical Disability,PDY,Customer n Client Receipts,M,Fees n Charges,MB,07/06/2012,PAY00481224,-38,Revenue,Agincare UK Ltd
Brighton & Hove City Council,http://statistics.data.gov.uk/id/local-authority/00ML,Adult Social Care,BVASOC,S Svcs - Physical Disability,PDY,Third Party Payments,F,Other Establishments,FH,07/06/2012,PAY00481224,308.35,Revenue,Agincare UK Ltd
Brighton & Hove City Council,http://statistics.data.gov.uk/id/local-authority/00ML,Adult Social Care,BVASOC,S Svcs - Older People Svcs,PPL,Customer n Client Receipts,M,Fees n Charges,MB,13/06/2012,PAY00482592,-1361,Revenue,Agincare UK Ltd
Brighton & Hove City Council,http://statistics.data.gov.uk/id/local-authority/00ML,Adult Social Care,BVASOC,S Svcs - Older People Svcs,PPL,Third Party Payments,F,Other Establishments,FH,13/06/2012,PAY00482592,8095.4,Revenue,Agincare UK Ltd
Brighton & Hove City Council,http://statistics.data.gov.uk/id/local-authority/00ML,Adult Social Care,BVASOC,S Svcs - Physical Disability,PDY,Customer n Client Receipts,M,Fees n Charges,MB,13/06/2012,PAY00482592,-38,Revenue,Agincare UK Ltd
Brighton & Hove City Council,http://statistics.data.gov.uk/id/local-authority/00ML,Adult Social Care,BVASOC,S Svcs - Physical Disability,PDY,Third Party Payments,F,Other Establishments,FH,13/06/2012,PAY00482592,324.26,Revenue,Agincare UK Ltd
Brighton & Hove City Council,http://statistics.data.gov.uk/id/local-authority/00ML,Adult Social Care,BVASOC,S Svcs - Older People Svcs,PPL,Customer n Client Receipts,M,Fees n Charges,MB,20/06/2012,PAY00484075,-1321,Revenue,Agincare UK Ltd
Brighton & Hove City Council,http://statistics.data.gov.uk/id/local-authority/00ML,Adult Social Care,BVASOC,S Svcs - Older People Svcs,PPL,Third Party Payments,F,Other Establishments,FH,20/06/2012,PAY00484075,7613.56,Revenue,Agincare UK Ltd
Brighton & Hove City Council,http://statistics.data.gov.uk/id/local-authority/00ML,Adult Social Care,BVASOC,S Svcs - Other Adult Services,ADT,Third Party Payments,F,Other Establishments,FH,20/06/2012,PAY00484075,20.99,Revenue,Agincare UK Ltd
Brighton & Hove City Council,http://statistics.data.gov.uk/id/local-authority/00ML,Adult Social Care,BVASOC,S Svcs - Physical Disability,PDY,Customer n Client Receipts,M,Fees n Charges,MB,20/06/2012,PAY00484075,-38,Revenue,Agincare UK Ltd
Brighton & Hove City Council,http://statistics.data.gov.uk/id/local-authority/00ML,Adult Social Care,BVASOC,S Svcs - Physical Disability,PDY,Third Party Payments,F,Other Establishments,FH,20/06/2012,PAY00484075,283.57,Revenue,Agincare UK Ltd
Brighton & Hove City Council,http://statistics.data.gov.uk/id/local-authority/00ML,Adult Social Care,BVASOC,S Svcs - Older People Svcs,PPL,Third Party Payments,F,Other Establishments,FH,22/06/2012,PAY00484757,1901,Revenue,Agincare UK Ltd
Brighton & Hove City Council,http://statistics.data.gov.uk/id/local-authority/00ML,Adult Social Care,BVASOC,S Svcs - Older People Svcs,PPL,Customer n Client Receipts,M,Fees n Charges,MB,27/06/2012,PAY00485696,-1199,Revenue,Agincare UK Ltd
Brighton & Hove City Council,http://statistics.data.gov.uk/id/local-authority/00ML,Adult Social Care,BVASOC,S Svcs - Older People Svcs,PPL,Third Party Payments,F,Other Establishments,FH,27/06/2012,PAY00485696,6726.31,Revenue,Agincare UK Ltd
Brighton & Hove City Council,http://statistics.data.gov.uk/id/local-authority/00ML,Adult Social Care,BVASOC,S Svcs - Physical Disability,PDY,Customer n Client Receipts,M,Fees n Charges,MB,27/06/2012,PAY00485696,-38,Revenue,Agincare UK Ltd
Brighton & Hove City Council,http://statistics.data.gov.uk/id/local-authority/00ML,Adult Social Care,BVASOC,S Svcs - Physical Disability,PDY,Third Party Payments,F,Other Establishments,FH,27/06/2012,PAY00485696,272.5,Revenue,Agincare UK Ltd
Brighton & Hove City Council,http://statistics.data.gov.uk/id/local-authority/00ML,Adult Social Care,BVASOC,S Svcs - Older People Svcs,PPL,Customer n Client Receipts,M,Fees n Charges,MB,29/06/2012,PAY00486574,-1085,Revenue,Agincare UK Ltd
Brighton & Hove City Council,http://statistics.data.gov.uk/id/local-authority/00ML,Adult Social Care,BVASOC,S Svcs - Older People Svcs,PPL,Third Party Payments,F,Other Establishments,FH,29/06/2012,PAY00486574,6191.32,Revenue,Agincare UK Ltd
Brighton & Hove City Council,http://statistics.data.gov.uk/id/local-authority/00ML,Adult Social Care,BVASOC,S Svcs - Physical Disability,PDY,Customer n Client Receipts,M,Fees n Charges,MB,29/06/2012,PAY00486574,-38,Revenue,Agincare UK Ltd
Brighton & Hove City Council,http://statistics.data.gov.uk/id/local-authority/00ML,Adult Social Care,BVASOC,S Svcs - Physical Disability,PDY,Third Party Payments,F,Other Establishments,FH,29/06/2012,PAY00486574,265.12,Revenue,Agincare UK Ltd
Brighton & Hove City Council,http://statistics.data.gov.uk/id/local-authority/00ML,Cultural and Related Services,BVACUL,Culture & Heritage,CHG,Supplies and Services,E,Goods for Resale,EG,13/06/2012,PAY00482464,697.2,Revenue,Ahmad Tea Ltd
Brighton & Hove City Council,http://statistics.data.gov.uk/id/local-authority/00ML,Adult Social Care,BVASOC,S Svcs - Physical Disability,PDY,Supplies and Services,E,Equip't Furniture n Materials,EA,20/06/2012,PAY00483948,1761,Revenue,Aidapt Bathrooms Ltd
Brighton & Hove City Council,http://statistics.data.gov.uk/id/local-authority/00ML,Housing Services Revnue Acc,BVAHOU,Hsing Management - HRA,HGM,Premises Related,C,Repair Maint n Alterations,CA,13/06/2012,PAY00482699,2795.96,Revenue,Airconaire Ltd
Brighton & Hove City Council,http://statistics.data.gov.uk/id/local-authority/00ML,Adult Social Care,BVASOC,S Svcs - Learning Disability,LDY,Customer n Client Receipts,M,Fees n Charges,MB,01/06/2012,PAY00479973,-2626.6,Revenue,Aitch Care Homes (London) Ltd
Brighton & Hove City Council,http://statistics.data.gov.uk/id/local-authority/00ML,Adult Social Care,BVASOC,S Svcs - Learning Disability,LDY,Third Party Payments,F,Other Establishments,FH,01/06/2012,PAY00479973,45796,Revenue,Aitch Care Homes (London) Ltd
Brighton & Hove City Council,http://statistics.data.gov.uk/id/local-authority/00ML,Adult Social Care,BVASOC,S Svcs - Physical Disability,PDY,Supplies and Services,E,Equip't Furniture n Materials,EA,07/06/2012,PAY00481179,432.4,Revenue,AKW Medi-Care Ltd
Brighton & Hove City Council,http://statistics.data.gov.uk/id/local-authority/00ML,Environment and Regulatory Ser,BVAERS,Environmental Health,EVH,Supplies and Services,E,Equip't Furniture n Materials,EA,07/06/2012,PAY00481478,1624.66,Revenue,Alere Ltd
Brighton & Hove City Council,http://statistics.data.gov.uk/id/local-authority/00ML,Planning Services,BVAPLA,Development Control,DEV,Supplies and Services,E,Miscellaneous Expenses,EM,07/06/2012,PAY00481255,4205.1,Revenue,Alexander Advertising(International)Ltd
Brighton & Hove City Council,http://statistics.data.gov.uk/id/local-authority/00ML,Planning Services,BVAPLA,Development Control,DEV,Supplies and Services,E,Miscellaneous Expenses,EM,27/06/2012,PAY00485745,2803.4,Revenue,Alexander Advertising(International)Ltd
Brighton & Hove City Council,http://statistics.data.gov.uk/id/local-authority/00ML,Housing Services General Fund,BVAHOG,Homelessness,HML,Premises Related,C,Rents Payable,CC,13/06/2012,PAY00482572,600,Revenue,Allied Estates (South Eastern) Ltd
Brighton & Hove City Council,http://statistics.data.gov.uk/id/local-authority/00ML,Adult Social Care,BVASOC,S Svcs - Learning Disability,LDY,Third Party Payments,F,Other Establishments,FH,08/06/2012,PAY00481854,67.4,Revenue,Allied Healthcare Brighton Domicillary
Brighton & Hove City Council,http://statistics.data.gov.uk/id/local-authority/00ML,Adult Social Care,BVASOC,S Svcs - Mental Health,MHT,Third Party Payments,F,Other Establishments,FH,08/06/2012,PAY00481854,41,Revenue,Allied Healthcare Brighton Domicillary
Brighton & Hove City Council,http://statistics.data.gov.uk/id/local-authority/00ML,Adult Social Care,BVASOC,S Svcs - Older People Svcs,PPL,Customer n Client Receipts,M,Fees n Charges,MB,08/06/2012,PAY00481854,-431,Revenue,Allied Healthcare Brighton Domicillary
Brighton & Hove City Council,http://statistics.data.gov.uk/id/local-authority/00ML,Adult Social Care,BVASOC,S Svcs - Older People Svcs,PPL,Third Party Payments,F,Other Establishments,FH,08/06/2012,PAY00481854,2913,Revenue,Allied Healthcare Brighton Domicillary
Brighton & Hove City Council,http://statistics.data.gov.uk/id/local-authority/00ML,Adult Social Care,BVASOC,S Svcs - Physical Disability,PDY,Customer n Client Receipts,M,Fees n Charges,MB,08/06/2012,PAY00481854,-112,Revenue,Allied Healthcare Brighton Domicillary
Brighton & Hove City Council,http://statistics.data.gov.uk/id/local-authority/00ML,Adult Social Care,BVASOC,S Svcs - Physical Disability,PDY,Third Party Payments,F,Other Establishments,FH,08/06/2012,PAY00481854,792.41,Revenue,Allied Healthcare Brighton Domicillary
Brighton & Hove City Council,http://statistics.data.gov.uk/id/local-authority/00ML,Adult Social Care,BVASOC,S Svcs - Learning Disability,LDY,Third Party Payments,F,Other Establishments,FH,15/06/2012,PAY00483178,67.4,Revenue,Allied Healthcare Brighton Domicillary
Brighton & Hove City Council,http://statistics.data.gov.uk/id/local-authority/00ML,Adult Social Care,BVASOC,S Svcs - Mental Health,MHT,Third Party Payments,F,Other Establishments,FH,15/06/2012,PAY00483178,41,Revenue,Allied Healthcare Brighton Domicillary
Brighton & Hove City Council,http://statistics.data.gov.uk/id/local-authority/00ML,Adult Social Care,BVASOC,S Svcs - Older People Svcs,PPL,Customer n Client Receipts,M,Fees n Charges,MB,15/06/2012,PAY00483178,-499,Revenue,Allied Healthcare Brighton Domicillary
Brighton & Hove City Council,http://statistics.data.gov.uk/id/local-authority/00ML,Adult Social Care,BVASOC,S Svcs - Older People Svcs,PPL,Third Party Payments,F,Other Establishments,FH,15/06/2012,PAY00483178,3042.07,Revenue,Allied Healthcare Brighton Domicillary
Brighton & Hove City Council,http://statistics.data.gov.uk/id/local-authority/00ML,Adult Social Care,BVASOC,S Svcs - Physical Disability,PDY,Customer n Client Receipts,M,Fees n Charges,MB,15/06/2012,PAY00483178,-112,Revenue,Allied Healthcare Brighton Domicillary
Brighton & Hove City Council,http://statistics.data.gov.uk/id/local-authority/00ML,Adult Social Care,BVASOC,S Svcs - Physical Disability,PDY,Third Party Payments,F,Other Establishments,FH,15/06/2012,PAY00483178,775.87,Revenue,Allied Healthcare Brighton Domicillary
Brighton & Hove City Council,http://statistics.data.gov.uk/id/local-authority/00ML,Adult Social Care,BVASOC,S Svcs - Learning Disability,LDY,Third Party Payments,F,Other Establishments,FH,22/06/2012,PAY00484736,67.4,Revenue,Allied Healthcare Brighton Domicillary
Brighton & Hove City Council,http://statistics.data.gov.uk/id/local-authority/00ML,Adult Social Care,BVASOC,S Svcs - Mental Health,MHT,Third Party Payments,F,Other Establishments,FH,22/06/2012,PAY00484736,41,Revenue,Allied Healthcare Brighton Domicillary
Brighton & Hove City Council,http://statistics.data.gov.uk/id/local-authority/00ML,Adult Social Care,BVASOC,S Svcs - Older People Svcs,PPL,Customer n Client Receipts,M,Fees n Charges,MB,22/06/2012,PAY00484736,-513,Revenue,Allied Healthcare Brighton Domicillary
Brighton & Hove City Council,http://statistics.data.gov.uk/id/local-authority/00ML,Adult Social Care,BVASOC,S Svcs - Older People Svcs,PPL,Third Party Payments,F,Other Establishments,FH,22/06/2012,PAY00484736,3269.58,Revenue,Allied Healthcare Brighton Domicillary
Brighton & Hove City Council,http://statistics.data.gov.uk/id/local-authority/00ML,Adult Social Care,BVASOC,S Svcs - Physical Disability,PDY,Customer n Client Receipts,M,Fees n Charges,MB,22/06/2012,PAY00484736,-112,Revenue,Allied Healthcare Brighton Domicillary
Brighton & Hove City Council,http://statistics.data.gov.uk/id/local-authority/00ML,Adult Social Care,BVASOC,S Svcs - Physical Disability,PDY,Third Party Payments,F,Other Establishments,FH,22/06/2012,PAY00484736,825.16,Revenue,Allied Healthcare Brighton Domicillary
Brighton & Hove City Council,http://statistics.data.gov.uk/id/local-authority/00ML,Central Services To The Public,BVACEN,Support Services (SSC),PPT,Premises Related,C,Repair Maint n Alterations,CA,15/06/2012,PAY00483151,1154.99,Revenue,Allsop & Francis Ltd
Brighton & Hove City Council,http://statistics.data.gov.uk/id/local-authority/00ML,Adult Social Care,BVASOC,S Svcs - Learning Disability,LDY,Premises Related,C,Repair Maint n Alterations,CA,27/06/2012,PAY00485616,420,Revenue,Allsop & Francis Ltd
Brighton & Hove City Council,http://statistics.data.gov.uk/id/local-authority/00ML,Central Services To The Public,BVACEN,Support Services (SSC),PPT,Transport Related,D,Direct Transport Costs,DA,07/06/2012,PAY00481611,149.95,Revenue,Allstar Business Solutions Ltd
Brighton & Hove City Council,http://statistics.data.gov.uk/id/local-authority/00ML,Cultural and Related Services,BVACUL,Culture & Heritage,CHG,Transport Related,D,Direct Transport Costs,DA,07/06/2012,PAY00481611,65.26,Revenue,Allstar Business Solutions Ltd
Brighton & Hove City Council,http://statistics.data.gov.uk/id/local-authority/00ML,Environment and Regulatory Ser,BVAERS,Environmental Health,EVH,Transport Related,D,Direct Transport Costs,DA,07/06/2012,PAY00481611,183.87,Revenue,Allstar Business Solutions Ltd
Brighton & Hove City Council,http://statistics.data.gov.uk/id/local-authority/00ML,Housing Services Revnue Acc,BVAHOU,Hsing Management - HRA,HGM,Transport Related,D,Direct Transport Costs,DA,07/06/2012,PAY00481611,1269.48,Revenue,Allstar Business Solutions Ltd
Brighton & Hove City Council,http://statistics.data.gov.uk/id/local-authority/00ML,Adult Social Care,BVASOC,Hsing Welfare,HGW,Transport Related,D,Direct Transport Costs,DA,13/06/2012,PAY00482944,190.05,Revenue,Allstar Business Solutions Ltd
Brighton & Hove City Council,http://statistics.data.gov.uk/id/local-authority/00ML,Central Services To The Public,BVACEN,Holding Accounts,PPH,Transport Related,D,Direct Transport Costs,DA,13/06/2012,PAY00482944,6158.3,Revenue,Allstar Business Solutions Ltd
Brighton & Hove City Council,http://statistics.data.gov.uk/id/local-authority/00ML,Central Services To The Public,BVACEN,Support Services (SSC),PPT,Supplies and Services,E,Miscellaneous Expenses,EM,13/06/2012,PAY00482944,43.32,Revenue,Allstar Business Solutions Ltd
Brighton & Hove City Council,http://statistics.data.gov.uk/id/local-authority/00ML,Central Services To The Public,BVACEN,Holding Accounts,PPH,Transport Related,D,Direct Transport Costs,DA,20/06/2012,PAY00484471,5679.03,Revenue,Allstar Business Solutions Ltd
Brighton & Hove City Council,http://statistics.data.gov.uk/id/local-authority/00ML,Environment and Regulatory Ser,BVAERS,Environmental Health,EVH,Transport Related,D,Direct Transport Costs,DA,20/06/2012,PAY00484471,440.64,Revenue,Allstar Business Solutions Ltd
Brighton & Hove City Council,http://statistics.data.gov.uk/id/local-authority/00ML,Housing Services Revnue Acc,BVAHOU,Hsing Management - HRA,HGM,Transport Related,D,Direct Transport Costs,DA,29/06/2012,PAY00487476,1141.44,Revenue,Allstar Business Solutions Ltd
Brighton & Hove City Council,http://statistics.data.gov.uk/id/local-authority/00ML,Adult Social Care,BVASOC,Hsing Welfare,HGW,Transport Related,D,Contract Hire n Operating Leas,DB,13/06/2012,PAY00482754,261.48,Revenue,Alphabet (UK) Fleet Management Limited
Brighton & Hove City Council,http://statistics.data.gov.uk/id/local-authority/00ML,Adult Social Care,BVASOC,S Svcs - Learning Disability,LDY,Transport Related,D,Contract Hire n Operating Leas,DB,13/06/2012,PAY00482754,3410.58,Revenue,Alphabet (UK) Fleet Management Limited
Brighton & Hove City Council,http://statistics.data.gov.uk/id/local-authority/00ML,Adult Social Care,BVASOC,S Svcs - Mental Health,MHT,Transport Related,D,Contract Hire n Operating Leas,DB,13/06/2012,PAY00482754,167.03,Revenue,Alphabet (UK) Fleet Management Limited
Brighton & Hove City Council,http://statistics.data.gov.uk/id/local-authority/00ML,Adult Social Care,BVASOC,S Svcs - Older People Svcs,PPL,Transport Related,D,Contract Hire n Operating Leas,DB,13/06/2012,PAY00482754,1121.01,Revenue,Alphabet (UK) Fleet Management Limited
Brighton & Hove City Council,http://statistics.data.gov.uk/id/local-authority/00ML,Adult Social Care,BVASOC,S Svcs - Physical Disability,PDY,Transport Related,D,Contract Hire n Operating Leas,DB,13/06/2012,PAY00482754,190.84,Revenue,Alphabet (UK) Fleet Management Limited
Brighton & Hove City Council,http://statistics.data.gov.uk/id/local-authority/00ML,Adult Social Care,BVASOC,S Svcs - Supported Employment,EMP,Transport Related,D,Contract Hire n Operating Leas,DB,13/06/2012,PAY00482754,263.12,Revenue,Alphabet (UK) Fleet Management Limited
Brighton & Hove City Council,http://statistics.data.gov.uk/id/local-authority/00ML,Adult Social Care,BVASOC,Support Services (SSC),PPT,Transport Related,D,Contract Hire n Operating Leas,DB,13/06/2012,PAY00482754,168.76,Revenue,Alphabet (UK) Fleet Management Limited
Brighton & Hove City Council,http://statistics.data.gov.uk/id/local-authority/00ML,Children�s Social Care,BVACSC,Child Srvcs - Com & Scl Work,FCW,Transport Related,D,Contract Hire n Operating Leas,DB,13/06/2012,PAY00482754,1114.73,Revenue,Alphabet (UK) Fleet Management Limited
Brighton & Hove City Council,http://statistics.data.gov.uk/id/local-authority/00ML,Children�s Social Care,BVACSC,Child Srvcs - Leaving Care,FAL,Transport Related,D,Contract Hire n Operating Leas,DB,13/06/2012,PAY00482754,160.34,Revenue,Alphabet (UK) Fleet Management Limited
Brighton & Hove City Council,http://statistics.data.gov.uk/id/local-authority/00ML,Children�s Social Care,BVACSC,Child Srvcs - Other Fam Supp,FFX,Transport Related,D,Contract Hire n Operating Leas,DB,13/06/2012,PAY00482754,289.08,Revenue,Alphabet (UK) Fleet Management Limited
Brighton & Hove City Council,http://statistics.data.gov.uk/id/local-authority/00ML,Children�s Social Care,BVACSC,Child Srvcs - Residential Svcs,FLR,Transport Related,D,Contract Hire n Operating Leas,DB,13/06/2012,PAY00482754,716.61,Revenue,Alphabet (UK) Fleet Management Limited
Brighton & Hove City Council,http://statistics.data.gov.uk/id/local-authority/00ML,Children�s Social Care,BVACSC,Child Srvcs - Yth Offender Tm,FYY,Transport Related,D,Contract Hire n Operating Leas,DB,13/06/2012,PAY00482754,246.43,Revenue,Alphabet (UK) Fleet Management Limited
Brighton & Hove City Council,http://statistics.data.gov.uk/id/local-authority/00ML,Highways and Transportation,BVAHRT,Parking Services,PRK,Transport Related,D,Contract Hire n Operating Leas,DB,13/06/2012,PAY00482754,553.02,Revenue,Alphabet (UK) Fleet Management Limited
Brighton & Hove City Council,http://statistics.data.gov.uk/id/local-authority/00ML,Housing Services Revnue Acc,BVAHOU,Hsing Management - HRA,HGM,Transport Related,D,Contract Hire n Operating Leas,DB,13/06/2012,PAY00482754,157.76,Revenue,Alphabet (UK) Fleet Management Limited
Brighton & Hove City Council,http://statistics.data.gov.uk/id/local-authority/00ML,Housing Services Revnue Acc,BVAHOU,Hsing Strategy - HRA,HGT,Transport Related,D,Contract Hire n Operating Leas,DB,13/06/2012,PAY00482754,240.93,Revenue,Alphabet (UK) Fleet Management Limited
Brighton & Hove City Council,http://statistics.data.gov.uk/id/local-authority/00ML,Adult Social Care,BVASOC,Hsing Welfare,HGW,Transport Related,D,Contract Hire n Operating Leas,DB,29/06/2012,PAY00486989,305.19,Revenue,Alphabet (UK) Fleet Management Limited
Brighton & Hove City Council,http://statistics.data.gov.uk/id/local-authority/00ML,Adult Social Care,BVASOC,S Svcs - Learning Disability,LDY,Transport Related,D,Contract Hire n Operating Leas,DB,29/06/2012,PAY00486989,1018.83,Revenue,Alphabet (UK) Fleet Management Limited
Brighton & Hove City Council,http://statistics.data.gov.uk/id/local-authority/00ML,Adult Social Care,BVASOC,S Svcs - Mental Health,MHT,Transport Related,D,Contract Hire n Operating Leas,DB,29/06/2012,PAY00486989,172.6,Revenue,Alphabet (UK) Fleet Management Limited
Brighton & Hove City Council,http://statistics.data.gov.uk/id/local-authority/00ML,Adult Social Care,BVASOC,S Svcs - Older People Svcs,PPL,Transport Related,D,Contract Hire n Operating Leas,DB,29/06/2012,PAY00486989,1158.37,Revenue,Alphabet (UK) Fleet Management Limited
Brighton & Hove City Council,http://statistics.data.gov.uk/id/local-authority/00ML,Adult Social Care,BVASOC,S Svcs - Physical Disability,PDY,Transport Related,D,Contract Hire n Operating Leas,DB,29/06/2012,PAY00486989,197.2,Revenue,Alphabet (UK) Fleet Management Limited
Brighton & Hove City Council,http://statistics.data.gov.uk/id/local-authority/00ML,Adult Social Care,BVASOC,S Svcs - Supported Employment,EMP,Transport Related,D,Contract Hire n Operating Leas,DB,29/06/2012,PAY00486989,271.9,Revenue,Alphabet (UK) Fleet Management Limited
Brighton & Hove City Council,http://statistics.data.gov.uk/id/local-authority/00ML,Adult Social Care,BVASOC,Support Services (SSC),PPT,Transport Related,D,Contract Hire n Operating Leas,DB,29/06/2012,PAY00486989,174.39,Revenue,Alphabet (UK) Fleet Management Limited
Brighton & Hove City Council,http://statistics.data.gov.uk/id/local-authority/00ML,Children�s Social Care,BVACSC,Child Srvcs - Com & Scl Work,FCW,Transport Related,D,Contract Hire n Operating Leas,DB,29/06/2012,PAY00486989,1151.91,Revenue,Alphabet (UK) Fleet Management Limited
Brighton & Hove City Council,http://statistics.data.gov.uk/id/local-authority/00ML,Children�s Social Care,BVACSC,Child Srvcs - Leaving Care,FAL,Transport Related,D,Contract Hire n Operating Leas,DB,29/06/2012,PAY00486989,165.68,Revenue,Alphabet (UK) Fleet Management Limited
Brighton & Hove City Council,http://statistics.data.gov.uk/id/local-authority/00ML,Children�s Social Care,BVACSC,Child Srvcs - Other Fam Supp,FFX,Transport Related,D,Contract Hire n Operating Leas,DB,29/06/2012,PAY00486989,298.73,Revenue,Alphabet (UK) Fleet Management Limited
Brighton & Hove City Council,http://statistics.data.gov.uk/id/local-authority/00ML,Children�s Social Care,BVACSC,Child Srvcs - Residential Svcs,FLR,Transport Related,D,Contract Hire n Operating Leas,DB,29/06/2012,PAY00486989,845.5,Revenue,Alphabet (UK) Fleet Management Limited
Brighton & Hove City Council,http://statistics.data.gov.uk/id/local-authority/00ML,Children�s Social Care,BVACSC,Child Srvcs - Yth Offender Tm,FYY,Transport Related,D,Contract Hire n Operating Leas,DB,29/06/2012,PAY00486989,360.28,Revenue,Alphabet (UK) Fleet Management Limited
Brighton & Hove City Council,http://statistics.data.gov.uk/id/local-authority/00ML,Highways and Transportation,BVAHRT,Parking Services,PRK,Transport Related,D,Contract Hire n Operating Leas,DB,29/06/2012,PAY00486989,387.15,Revenue,Alphabet (UK) Fleet Management Limited
Brighton & Hove City Council,http://statistics.data.gov.uk/id/local-authority/00ML,Housing Services Revnue Acc,BVAHOU,Hsing Management - HRA,HGM,Transport Related,D,Contract Hire n Operating Leas,DB,29/06/2012,PAY00486989,163.02,Revenue,Alphabet (UK) Fleet Management Limited
Brighton & Hove City Council,http://statistics.data.gov.uk/id/local-authority/00ML,Housing Services Revnue Acc,BVAHOU,Hsing Strategy - HRA,HGT,Transport Related,D,Contract Hire n Operating Leas,DB,29/06/2012,PAY00486989,248.95,Revenue,Alphabet (UK) Fleet Management Limited
Brighton & Hove City Council,http://statistics.data.gov.uk/id/local-authority/00ML,Environment and Regulatory Ser,BVAERS,Environmental Health,EVH,Supplies and Services,E,Services,EF,27/06/2012,PAY00486009,1955,Revenue,Alphaguard K9 Ltd
Brighton & Hove City Council,http://statistics.data.gov.uk/id/local-authority/00ML,Adult Social Care,BVASOC,S Svcs - Physical Disability,PDY,Supplies and Services,E,Equip't Furniture n Materials,EA,01/06/2012,PAY00479804,445.09,Revenue,Alsford Timber Ltd
Brighton & Hove City Council,http://statistics.data.gov.uk/id/local-authority/00ML,Adult Social Care,BVASOC,S Svcs - Physical Disability,PDY,Supplies and Services,E,Equip't Furniture n Materials,EA,15/06/2012,PAY00483121,518.93,Revenue,Alsford Timber Ltd
Brighton & Hove City Council,http://statistics.data.gov.uk/id/local-authority/00ML,Highways and Transportation,BVAHRT,Parking Services,PRK,Supplies and Services,E,Equip't Furniture n Materials,EA,15/06/2012,PAY00483245,1376.99,Revenue,AM Fire & Security Group
Brighton & Hove City Council,http://statistics.data.gov.uk/id/local-authority/00ML,Housing Services General Fund,BVAHOG,Homelessness,HML,Premises Related,C,Repair Maint n Alterations,CA,29/06/2012,PAY00486630,9760,Revenue,AM Fire & Security Group
Brighton & Hove City Council,http://statistics.data.gov.uk/id/local-authority/00ML,Non SERCOP,BVANON,Cap - Mgmnt & Support Services,4PT,New Construction n Conversion,PB,Level not required,NR5026,08/06/2012,PAY00482368,46269.6,Capital,Amalgamated Lifts Ltd
Brighton & Hove City Council,http://statistics.data.gov.uk/id/local-authority/00ML,Adult Social Care,BVASOC,S Svcs - Learning Disability,LDY,Third Party Payments,F,Other Establishments,FH,29/06/2012,PAY00486428,6706,Revenue,Amaze Brighton & Hove
Brighton & Hove City Council,http://statistics.data.gov.uk/id/local-authority/00ML,Non SERCOP,BVANON,Cap - Housing Services - GF,4HG,Capital Grants,PF,Level not required,NR5012,13/06/2012,PAY00482765,547.49,Capital,Amber
Brighton & Hove City Council,http://statistics.data.gov.uk/id/local-authority/00ML,Highways and Transportation,BVAHRT,Highways and Roads - Mntnce,HRM,Supplies and Services,E,Services,EF,13/06/2012,PAY00482480,1119.24,Revenue,Amey OW Limited
Brighton & Hove City Council,http://statistics.data.gov.uk/id/local-authority/00ML,Highways and Transportation,BVAHRT,Highways and Roads - Mntnce,HRM,Supplies and Services,E,Services,EF,15/06/2012,PAY00483100,2390,Revenue,Amey OW Limited
Brighton & Hove City Council,http://statistics.data.gov.uk/id/local-authority/00ML,Non SERCOP,BVANON,Cap - Transport,4TR,New Construction n Conversion,PB,Level not required,NR5026,15/06/2012,PAY00483100,380,Capital,Amey OW Limited
Brighton & Hove City Council,http://statistics.data.gov.uk/id/local-authority/00ML,Non SERCOP,BVANON,Cap - Transport,4TR,New Construction n Conversion,PB,Level not required,NR5026,22/06/2012,PAY00484655,2117.58,Capital,Amey OW Limited
Brighton & Hove City Council,http://statistics.data.gov.uk/id/local-authority/00ML,Cultural and Related Services,BVACUL,Management Services (DEC),MGT,Transport Related,D,Direct Transport Costs,DA,20/06/2012,PAY00484119,2112.02,Revenue,AMP Groundcare Machinery Services Ltd
Brighton & Hove City Council,http://statistics.data.gov.uk/id/local-authority/00ML,Cultural and Related Services,BVACUL,Open Spaces,PEN,Transport Related,D,Direct Transport Costs,DA,20/06/2012,PAY00484119,208.63,Revenue,AMP Groundcare Machinery Services Ltd
Brighton & Hove City Council,http://statistics.data.gov.uk/id/local-authority/00ML,Adult Social Care,BVASOC,S Svcs - Other Adult Services,ADT,Customer n Client Receipts,M,Fees n Charges,MB,15/06/2012,PAY00483554,-311.4,Revenue,ANA Treatment Centres Ltd
Brighton & Hove City Council,http://statistics.data.gov.uk/id/local-authority/00ML,Adult Social Care,BVASOC,S Svcs - Other Adult Services,ADT,Third Party Payments,F,Other Establishments,FH,15/06/2012,PAY00483554,2440,Revenue,ANA Treatment Centres Ltd
Brighton & Hove City Council,http://statistics.data.gov.uk/id/local-authority/00ML,Cultural and Related Services,BVACUL,Culture & Heritage,CHG,Supplies and Services,E,Goods for Resale,EG,13/06/2012,PAY00482726,813.9,Revenue,Ancestors of Dover Ltd
Brighton & Hove City Council,http://statistics.data.gov.uk/id/local-authority/00ML,Adult Social Care,BVASOC,S Svcs - Older People Svcs,PPL,Customer n Client Receipts,M,Fees n Charges,MB,01/06/2012,PAY00479781,-14750.98,Revenue,Anchor Trust Homes (Partridge House)
Brighton & Hove City Council,http://statistics.data.gov.uk/id/local-authority/00ML,Adult Social Care,BVASOC,S Svcs - Older People Svcs,PPL,Third Party Payments,F,Other Establishments,FH,01/06/2012,PAY00479781,119122.4,Revenue,Anchor Trust Homes (Partridge House)
Brighton & Hove City Council,http://statistics.data.gov.uk/id/local-authority/00ML,Adult Social Care,BVASOC,S Svcs - Older People Svcs,PPL,Customer n Client Receipts,M,Fees n Charges,MB,01/06/2012,PAY00479908,-21748,Revenue,Anchor Trust Homes (Sycamore Court)
Brighton & Hove City Council,http://statistics.data.gov.uk/id/local-authority/00ML,Adult Social Care,BVASOC,S Svcs - Older People Svcs,PPL,Third Party Payments,F,Other Establishments,FH,01/06/2012,PAY00479908,93656.4,Revenue,Anchor Trust Homes (Sycamore Court)
Brighton & Hove City Council,http://statistics.data.gov.uk/id/local-authority/00ML,Adult Social Care,BVASOC,S Svcs - Older People Svcs,PPL,Customer n Client Receipts,M,Fees n Charges,MB,15/06/2012,PAY00483182,9261.92,Revenue,Anchor Trust Homes (Sycamore Court)
Brighton & Hove City Council,http://statistics.data.gov.uk/id/local-authority/00ML,Adult Social Care,BVASOC,S Svcs - Older People Svcs,PPL,Third Party Payments,F,Other Establishments,FH,15/06/2012,PAY00483182,3261,Revenue,Anchor Trust Homes (Sycamore Court)
Brighton & Hove City Council,http://statistics.data.gov.uk/id/local-authority/00ML,Adult Social Care,BVASOC,S Svcs - Older People Svcs,PPL,Customer n Client Receipts,M,Fees n Charges,MB,20/06/2012,PAY00484037,522.97,Revenue,Anchor Trust Homes (Sycamore Court)
Brighton & Hove City Council,http://statistics.data.gov.uk/id/local-authority/00ML,Adult Social Care,BVASOC,S Svcs - Older People Svcs,PPL,Third Party Payments,F,Other Establishments,FH,22/06/2012,PAY00484741,2174,Revenue,Anchor Trust Homes (Sycamore Court)
Brighton & Hove City Council,http://statistics.data.gov.uk/id/local-authority/00ML,Housing Services General Fund,BVAHOG,Hsing Welfare,HGW,Transfer Payments,G,Supporting People,GF,01/06/2012,PAY00479915,3001.58,Revenue,Anchor Trust Rent Account
Brighton & Hove City Council,http://statistics.data.gov.uk/id/local-authority/00ML,Housing Services General Fund,BVAHOG,Hsing Welfare,HGW,Transfer Payments,G,Supporting People,GF,29/06/2012,PAY00486534,3001.58,Revenue,Anchor Trust Rent Account
Brighton & Hove City Council,http://statistics.data.gov.uk/id/local-authority/00ML,Children�s Social Care,BVACSC,Child Srvcs - Residential Svcs,FLR,Third Party Payments,F,Other Establishments,FH,01/06/2012,PAY00480707,12000,Revenue,Anderida Adolescent Care Ltd
Brighton & Hove City Council,http://statistics.data.gov.uk/id/local-authority/00ML,Children�s Social Care,BVACSC,Child Srvcs - Residential Svcs,FLR,Third Party Payments,F,Other Establishments,FH,27/06/2012,PAY00486070,31540,Revenue,Anderida Adolescent Care Ltd
Brighton & Hove City Council,http://statistics.data.gov.uk/id/local-authority/00ML,Non SERCOP,BVANON,Cap - Education Services,4ED,New Construction n Conversion,PB,Level not required,NR5026,22/06/2012,PAY00485057,1072.5,Capital,Anderson Acoustics Limited
Brighton & Hove City Council,http://statistics.data.gov.uk/id/local-authority/00ML,Central Services To The Public,BVACEN,Support Services (SSC),PPT,Supplies and Services,E,Services,EF,07/06/2012,PAY00481256,2994,Revenue,Andus Print Limited
Brighton & Hove City Council,http://statistics.data.gov.uk/id/local-authority/00ML,Central Services To The Public,BVACEN,Support Services (SSC),PPT,Supplies and Services,E,Services,EF,22/06/2012,PAY00484787,7118,Revenue,Andus Print Limited
Brighton & Hove City Council,http://statistics.data.gov.uk/id/local-authority/00ML,Non SERCOP,BVANON,Cap - Education Services,4ED,New Construction n Conversion,PB,Level not required,NR5026,27/06/2012,PAY00485890,1134780.69,Capital,Apollo Group Holdings Limited
Brighton & Hove City Council,http://statistics.data.gov.uk/id/local-authority/00ML,Children�s Social Care,BVACSC,Child Srvcs - Residential Svcs,FLR,Third Party Payments,F,Other Establishments,FH,29/06/2012,PAY00487490,16341.03,Revenue,Apple Orchard 
Brighton & Hove City Council,http://statistics.data.gov.uk/id/local-authority/00ML,Environment and Regulatory Ser,BVAERS,Consumer Protection,CNP,Supplies and Services,E,Services,EF,01/06/2012,PAY00479950,920,Revenue,Appleby Petfield Ltd
Brighton & Hove City Council,http://statistics.data.gov.uk/id/local-authority/00ML,Housing Services General Fund,BVAHOG,Homelessness,HML,Premises Related,C,Rents Payable,CC,08/06/2012,PAY00482182,765,Revenue,Applegate Properties Ltd
Brighton & Hove City Council,http://statistics.data.gov.uk/id/local-authority/00ML,Housing Services General Fund,BVAHOG,Homelessness,HML,Premises Related,C,Rents Payable,CC,13/06/2012,PAY00482783,1200,Revenue,Applegate Properties Ltd
Brighton & Hove City Council,http://statistics.data.gov.uk/id/local-authority/00ML,Adult Social Care,BVASOC,S Svcs - Older People Svcs,PPL,Customer n Client Receipts,M,Fees n Charges,MB,29/06/2012,PAY00486625,-1265.84,Revenue,Appletree House Care Home
Brighton & Hove City Council,http://statistics.data.gov.uk/id/local-authority/00ML,Adult Social Care,BVASOC,S Svcs - Older People Svcs,PPL,Third Party Payments,F,Other Establishments,FH,29/06/2012,PAY00486625,2760,Revenue,Appletree House Care Home
Brighton & Hove City Council,http://statistics.data.gov.uk/id/local-authority/00ML,Highways and Transportation,BVAHRT,Parking Services,PRK,Supplies and Services,E,Equip't Furniture n Materials,EA,29/06/2012,PAY00486557,973.86,Revenue,APT Skidata Ltd
Brighton & Hove City Council,http://statistics.data.gov.uk/id/local-authority/00ML,Non SERCOP,BVANON,Cap - Transport,4TR,New Construction n Conversion,PB,Level not required,NR5026,29/06/2012,PAY00486557,724,Capital,APT Skidata Ltd
Brighton & Hove City Council,http://statistics.data.gov.uk/id/local-authority/00ML,Children�s Social Care,BVACSC,Child Srvcs - Residential Svcs,FLR,Third Party Payments,F,Other Establishments,FH,27/06/2012,PAY00485741,12000,Revenue,ARC Adventure (Sussex) Ltd
Brighton & Hove City Council,http://statistics.data.gov.uk/id/local-authority/00ML,Education Services,BVAEDU,Ed - Ed Other - Other,ENF,Premises Related,C,Repair Maint n Alterations,CA,22/06/2012,PAY00485165,618.5,Revenue,Arcool Ltd
Brighton & Hove City Council,http://statistics.data.gov.uk/id/local-authority/00ML,Children�s Social Care,BVACSC,Child Srvcs - Leaving Care,FAL,Transfer Payments,G,Other Transfer Payments,GD,13/06/2012,PAY00482994,506.4,Revenue,Arena Housing Association
Brighton & Hove City Council,http://statistics.data.gov.uk/id/local-authority/00ML,Children�s Social Care,BVACSC,Child Srvcs - Leaving Care,FAL,Transfer Payments,G,Other Transfer Payments,GD,15/06/2012,PAY00483230,534.72,Revenue,Argos Business Solutions Ltd
Brighton & Hove City Council,http://statistics.data.gov.uk/id/local-authority/00ML,Housing Services Revnue Acc,BVAHOU,Hsing Management - HRA,HGM,Supplies and Services,E,Equip't Furniture n Materials,EA,15/06/2012,PAY00483230,137.49,Revenue,Argos Business Solutions Ltd
Brighton & Hove City Council,http://statistics.data.gov.uk/id/local-authority/00ML,Adult Social Care,BVASOC,S Svcs - Physical Disability,PDY,Supplies and Services,E,Communications n Computing,EH,22/06/2012,PAY00484772,4.96,Revenue,Argos Business Solutions Ltd
Brighton & Hove City Council,http://statistics.data.gov.uk/id/local-authority/00ML,Adult Social Care,BVASOC,S Svcs - Physical Disability,PDY,Supplies and Services,E,Equip't Furniture n Materials,EA,22/06/2012,PAY00484772,33.32,Revenue,Argos Business Solutions Ltd
Brighton & Hove City Council,http://statistics.data.gov.uk/id/local-authority/00ML,Children�s Social Care,BVACSC,Child Srvcs - Leaving Care,FAL,Transfer Payments,G,Other Transfer Payments,GD,22/06/2012,PAY00484772,780.55,Revenue,Argos Business Solutions Ltd
Brighton & Hove City Council,http://statistics.data.gov.uk/id/local-authority/00ML,Housing Services General Fund,BVAHOG,Homelessness,HML,Premises Related,C,Repair Maint n Alterations,CA,22/06/2012,PAY00484772,860.96,Revenue,Argos Business Solutions Ltd
Brighton & Hove City Council,http://statistics.data.gov.uk/id/local-authority/00ML,Housing Services General Fund,BVAHOG,Homelessness,HML,Supplies and Services,E,Equip't Furniture n Materials,EA,22/06/2012,PAY00484772,199.98,Revenue,Argos Business Solutions Ltd
Brighton & Hove City Council,http://statistics.data.gov.uk/id/local-authority/00ML,Children�s Social Care,BVACSC,Child Srvcs - Leaving Care,FAL,Transfer Payments,G,Other Transfer Payments,GD,29/06/2012,PAY00486611,988.41,Revenue,Argos Business Solutions Ltd
Brighton & Hove City Council,http://statistics.data.gov.uk/id/local-authority/00ML,Children�s Social Care,BVACSC,Child Srvcs - Residential Svcs,FLR,Supplies and Services,E,Equip't Furniture n Materials,EA,29/06/2012,PAY00486611,90.81,Revenue,Argos Business Solutions Ltd
Brighton & Hove City Council,http://statistics.data.gov.uk/id/local-authority/00ML,Education Services,BVAEDU,Ed - Srvcs YP - Youth Srvcs,ENY,Supplies and Services,E,Miscellaneous Expenses,EM,29/06/2012,PAY00486611,278.99,Revenue,Argos Business Solutions Ltd
Brighton & Hove City Council,http://statistics.data.gov.uk/id/local-authority/00ML,Housing Services General Fund,BVAHOG,Homelessness,HML,Premises Related,C,Repair Maint n Alterations,CA,29/06/2012,PAY00486611,210.13,Revenue,Argos Business Solutions Ltd
Brighton & Hove City Council,http://statistics.data.gov.uk/id/local-authority/00ML,Housing Services General Fund,BVAHOG,Homelessness,HML,Supplies and Services,E,Equip't Furniture n Materials,EA,29/06/2012,PAY00486611,-79.17,Revenue,Argos Business Solutions Ltd
Brighton & Hove City Council,http://statistics.data.gov.uk/id/local-authority/00ML,Children�s Social Care,BVACSC,Child Srvcs - Residential Svcs,FLR,Third Party Payments,F,Other Establishments,FH,27/06/2012,PAY00485976,37998.21,Revenue,Ark House
Brighton & Hove City Council,http://statistics.data.gov.uk/id/local-authority/00ML,Adult Social Care,BVASOC,S Svcs - Learning Disability,LDY,Customer n Client Receipts,M,Fees n Charges,MB,01/06/2012,PAY00480564,-176,Revenue,Arundel Domiciliary Care Services
Brighton & Hove City Council,http://statistics.data.gov.uk/id/local-authority/00ML,Adult Social Care,BVASOC,S Svcs - Learning Disability,LDY,Third Party Payments,F,Other Establishments,FH,01/06/2012,PAY00480564,34482,Revenue,Arundel Domiciliary Care Services
Brighton & Hove City Council,http://statistics.data.gov.uk/id/local-authority/00ML,Non SERCOP,BVANON,Cap - Housing Services - GF,4HG,Capital Grants,PF,Level not required,NR5012,29/06/2012,PAY00486487,9885,Capital,Ascendit Lifts Ltd
Brighton & Hove City Council,http://statistics.data.gov.uk/id/local-authority/00ML,Adult Social Care,BVASOC,S Svcs - Learning Disability,LDY,Customer n Client Receipts,M,Fees n Charges,MB,07/06/2012,PAY00481098,-311.4,Revenue,ASD Unique Services LLP
Brighton & Hove City Council,http://statistics.data.gov.uk/id/local-authority/00ML,Adult Social Care,BVASOC,S Svcs - Learning Disability,LDY,Third Party Payments,F,Other Establishments,FH,07/06/2012,PAY00481098,4486.2,Revenue,ASD Unique Services LLP
Brighton & Hove City Council,http://statistics.data.gov.uk/id/local-authority/00ML,Adult Social Care,BVASOC,S Svcs - Older People Svcs,PPL,Customer n Client Receipts,M,Fees n Charges,MB,01/06/2012,PAY00479938,-2646.84,Revenue,Ashdown NH - Newcare Homes Ltd
Brighton & Hove City Council,http://statistics.data.gov.uk/id/local-authority/00ML,Adult Social Care,BVASOC,S Svcs - Older People Svcs,PPL,Third Party Payments,F,Other Establishments,FH,01/06/2012,PAY00479938,16364,Revenue,Ashdown NH - Newcare Homes Ltd
Brighton & Hove City Council,http://statistics.data.gov.uk/id/local-authority/00ML,Adult Social Care,BVASOC,S Svcs - Physical Disability,PDY,Third Party Payments,F,Other Establishments,FH,01/06/2012,PAY00479938,2577.6,Revenue,Ashdown NH - Newcare Homes Ltd
Brighton & Hove City Council,http://statistics.data.gov.uk/id/local-authority/00ML,Adult Social Care,BVASOC,S Svcs - Learning Disability,LDY,Customer n Client Receipts,M,Fees n Charges,MB,15/06/2012,PAY00483692,-264,Revenue,Ashmeadows House Ltd
Brighton & Hove City Council,http://statistics.data.gov.uk/id/local-authority/00ML,Adult Social Care,BVASOC,S Svcs - Learning Disability,LDY,Third Party Payments,F,Other Establishments,FH,15/06/2012,PAY00483692,5484,Revenue,Ashmeadows House Ltd
Brighton & Hove City Council,http://statistics.data.gov.uk/id/local-authority/00ML,Cultural and Related Services,BVACUL,Open Spaces,PEN,Third Party Payments,F,Private Contractors,FJ,29/06/2012,PAY00486631,492.84,Revenue,Ashtead Plant Hire Company Ltd
Brighton & Hove City Council,http://statistics.data.gov.uk/id/local-authority/00ML,Adult Social Care,BVASOC,S Svcs - Mental Health,MHT,Customer n Client Receipts,M,Fees n Charges,MB,01/06/2012,PAY00479876,-476.8,Revenue,Ashton Care
Brighton & Hove City Council,http://statistics.data.gov.uk/id/local-authority/00ML,Adult Social Care,BVASOC,S Svcs - Mental Health,MHT,Third Party Payments,F,Other Establishments,FH,01/06/2012,PAY00479876,1712,Revenue,Ashton Care
Brighton & Hove City Council,http://statistics.data.gov.uk/id/local-authority/00ML,Adult Social Care,BVASOC,S Svcs - Older People Svcs,PPL,Customer n Client Receipts,M,Fees n Charges,MB,01/06/2012,PAY00479876,-476.8,Revenue,Ashton Care
Brighton & Hove City Council,http://statistics.data.gov.uk/id/local-authority/00ML,Adult Social Care,BVASOC,S Svcs - Older People Svcs,PPL,Third Party Payments,F,Other Establishments,FH,01/06/2012,PAY00479876,1804,Revenue,Ashton Care
Brighton & Hove City Council,http://statistics.data.gov.uk/id/local-authority/00ML,Adult Social Care,BVASOC,S Svcs - Older People Svcs,PPL,Customer n Client Receipts,M,Fees n Charges,MB,01/06/2012,PAY00479767,-940.4,Revenue,Ashton House
Brighton & Hove City Council,http://statistics.data.gov.uk/id/local-authority/00ML,Adult Social Care,BVASOC,S Svcs - Older People Svcs,PPL,Third Party Payments,F,Other Establishments,FH,01/06/2012,PAY00479767,8492.8,Revenue,Ashton House
Brighton & Hove City Council,http://statistics.data.gov.uk/id/local-authority/00ML,Children�s Social Care,BVACSC,Child Srvcs - Fostering,FLF,Third Party Payments,F,Other Establishments,FH,27/06/2012,PAY00485565,8156.8,Revenue,Asphaleia Ltd
Brighton & Hove City Council,http://statistics.data.gov.uk/id/local-authority/00ML,Children�s Social Care,BVACSC,Child Srvcs - Leaving Care,FAL,Transfer Payments,G,Other Transfer Payments,GD,27/06/2012,PAY00485565,2907.09,Revenue,Asphaleia Ltd
Brighton & Hove City Council,http://statistics.data.gov.uk/id/local-authority/00ML,Adult Social Care,BVASOC,S Svcs - Learning Disability,LDY,Third Party Payments,F,Other Establishments,FH,20/06/2012,PAY00484197,1340.79,Revenue,Aspirations Active
Brighton & Hove City Council,http://statistics.data.gov.uk/id/local-authority/00ML,Adult Social Care,BVASOC,S Svcs - Learning Disability,LDY,Third Party Payments,F,Other Establishments,FH,27/06/2012,PAY00485848,40011.78,Revenue,Aspirations Active
Brighton & Hove City Council,http://statistics.data.gov.uk/id/local-authority/00ML,Central Services To The Public,BVACEN,Non service costs,NVC,Capital Financing Costs,J,Interest payable,JN,08/06/2012,PAY00481812,700,Revenue,Asset Advantage Limited
Brighton & Hove City Council,http://statistics.data.gov.uk/id/local-authority/00ML,Central Services To The Public,BVACEN,Non service costs,NVC,Capital Financing Costs,J,Interest payable,JN,07/06/2012,PAY00481245,2151.24,Revenue,AssetCo Rental No2 Ltd
Brighton & Hove City Council,http://statistics.data.gov.uk/id/local-authority/00ML,Central Services To The Public,BVACEN,Elections,ELE,Supplies and Services,E,Expenses,EJ,01/06/2012,PAY00479725,488.34,Revenue,Assoc Of Electoral Administrators Ltd
Brighton & Hove City Council,http://statistics.data.gov.uk/id/local-authority/00ML,Central Services To The Public,BVACEN,Support Services (SSC),PPT,Indirect Employees,B,Training,BM,13/06/2012,PAY00482455,780,Revenue,Association of Directors of Children Services Ltd
Brighton & Hove City Council,http://statistics.data.gov.uk/id/local-authority/00ML,Adult Social Care,BVASOC,S Svcs - Older People Svcs,PPL,Transport Related,D,Direct Transport Costs,DA,07/06/2012,PAY00481257,134.2,Revenue,ATS Euromaster Ltd
Brighton & Hove City Council,http://statistics.data.gov.uk/id/local-authority/00ML,Cultural and Related Services,BVACUL,Management Services (DEC),MGT,Transport Related,D,Direct Transport Costs,DA,07/06/2012,PAY00481257,1096.92,Revenue,ATS Euromaster Ltd
Brighton & Hove City Council,http://statistics.data.gov.uk/id/local-authority/00ML,Cultural and Related Services,BVACUL,Open Spaces,PEN,Transport Related,D,Direct Transport Costs,DA,07/06/2012,PAY00481257,117.51,Revenue,ATS Euromaster Ltd
Brighton & Hove City Council,http://statistics.data.gov.uk/id/local-authority/00ML,Environment and Regulatory Ser,BVAERS,Street Cleansing,CLE,Transport Related,D,Direct Transport Costs,DA,07/06/2012,PAY00481257,624.56,Revenue,ATS Euromaster Ltd
Brighton & Hove City Council,http://statistics.data.gov.uk/id/local-authority/00ML,Environment and Regulatory Ser,BVAERS,Waste Management,WMT,Transport Related,D,Direct Transport Costs,DA,07/06/2012,PAY00481257,5035.34,Revenue,ATS Euromaster Ltd
Brighton & Hove City Council,http://statistics.data.gov.uk/id/local-authority/00ML,Central Services To The Public,BVACEN,Support Services (SSC),PPT,Supplies and Services,E,Services,EF,27/06/2012,PAY00485746,26870,Revenue,Audit Commission
Brighton & Hove City Council,http://statistics.data.gov.uk/id/local-authority/00ML,Housing Services Revnue Acc,BVAHOU,Hsing Management - HRA,HGM,Supplies and Services,E,Print Stat & Gen Office Exps,ED,20/06/2012,PAY00484234,835.71,Revenue,A-UKPay Ltd
Brighton & Hove City Council,http://statistics.data.gov.uk/id/local-authority/00ML,Cultural and Related Services,BVACUL,Culture & Heritage,CHG,Supplies and Services,E,Goods for Resale,EG,27/06/2012,PAY00486057,801.01,Revenue,Aurora World UK Ltd.
Brighton & Hove City Council,http://statistics.data.gov.uk/id/local-authority/00ML,Adult Social Care,BVASOC,S Svcs - Learning Disability,LDY,Customer n Client Receipts,M,Fees n Charges,MB,01/06/2012,PAY00480282,-1321.6,Revenue,Autism Sussex Ltd
Brighton & Hove City Council,http://statistics.data.gov.uk/id/local-authority/00ML,Adult Social Care,BVASOC,S Svcs - Learning Disability,LDY,Third Party Payments,F,Other Establishments,FH,01/06/2012,PAY00480282,30452.4,Revenue,Autism Sussex Ltd
Brighton & Hove City Council,http://statistics.data.gov.uk/id/local-authority/00ML,Adult Social Care,BVASOC,S Svcs - Mental Health,MHT,Customer n Client Receipts,M,Fees n Charges,MB,27/06/2012,PAY00485852,-200,Revenue,Autism Sussex Ltd
Brighton & Hove City Council,http://statistics.data.gov.uk/id/local-authority/00ML,Adult Social Care,BVASOC,S Svcs - Mental Health,MHT,Third Party Payments,F,Other Establishments,FH,27/06/2012,PAY00485852,2628.3,Revenue,Autism Sussex Ltd
Brighton & Hove City Council,http://statistics.data.gov.uk/id/local-authority/00ML,Adult Social Care,BVASOC,S Svcs - Learning Disability,LDY,Third Party Payments,F,Other Establishments,FH,29/06/2012,PAY00486872,885.35,Revenue,Autism Sussex Ltd
Brighton & Hove City Council,http://statistics.data.gov.uk/id/local-authority/00ML,Children�s Social Care,BVACSC,Child Srvcs - Com & Scl Work,FCW,Transport Related,D,Direct Transport Costs,DA,22/06/2012,PAY00485044,423.13,Revenue,Autoglass Ltd
Brighton & Hove City Council,http://statistics.data.gov.uk/id/local-authority/00ML,Central Services To The Public,BVACEN,Support Services (SSC),PPT,Supplies and Services,E,Communications n Computing,EH,29/06/2012,PAY00486499,5000,Revenue,Avco Systems Ltd
Brighton & Hove City Council,http://statistics.data.gov.uk/id/local-authority/00ML,Central Services To The Public,BVACEN,Support Services (SSC),PPT,Supplies and Services,E,Miscellaneous Expenses,EM,15/06/2012,PAY00483167,1375,Revenue,Aviation Projects Ltd
Brighton & Hove City Council,http://statistics.data.gov.uk/id/local-authority/00ML,Central Services To The Public,BVACEN,Support Services (SSC),PPT,Supplies and Services,E,Miscellaneous Expenses,EM,20/06/2012,PAY00484334,72649.22,Revenue,Aviva Insurance Uk Ltd
Brighton & Hove City Council,http://statistics.data.gov.uk/id/local-authority/00ML,Children�s Social Care,BVACSC,Child Srvcs - Com & Scl Work,FCW,Indirect Employees,B,Misc Employee Costs,BP,07/06/2012,PAY00481565,6368.8,Revenue,Avocet Services Limited
Brighton & Hove City Council,http://statistics.data.gov.uk/id/local-authority/00ML,Housing Services General Fund,BVAHOG,Homelessness,HML,Premises Related,C,Rents Payable,CC,01/06/2012,PAY00479929,900,Revenue,Avon Estates (London) Ltd
Brighton & Hove City Council,http://statistics.data.gov.uk/id/local-authority/00ML,Housing Services General Fund,BVAHOG,Homelessness,HML,Premises Related,C,Rents Payable,CC,13/06/2012,PAY00482583,550,Revenue,Avon Estates (London) Ltd
Brighton & Hove City Council,http://statistics.data.gov.uk/id/local-authority/00ML,Adult Social Care,BVASOC,S Svcs - Older People Svcs,PPL,Customer n Client Receipts,M,Fees n Charges,MB,13/06/2012,PAY00482720,-608.56,Revenue,Avon House (Balcombe) Ltd
Brighton & Hove City Council,http://statistics.data.gov.uk/id/local-authority/00ML,Adult Social Care,BVASOC,S Svcs - Older People Svcs,PPL,Third Party Payments,F,Other Establishments,FH,13/06/2012,PAY00482720,1468,Revenue,Avon House (Balcombe) Ltd
Brighton & Hove City Council,http://statistics.data.gov.uk/id/local-authority/00ML,Central Services To The Public,BVACEN,Support Services (SSC),PPT,Supplies and Services,E,Miscellaneous Expenses,EM,27/06/2012,PAY00485681,1500,Revenue,AWCFA Limited
Brighton & Hove City Council,http://statistics.data.gov.uk/id/local-authority/00ML,Education Services,BVAEDU,Ed - Ed Other - LA Attrib Sch,ELA,Transport Related,D,Other Transport Costs,DG,07/06/2012,PAY00481307,18895.68,Revenue,B & H City Cabs
Brighton & Hove City Council,http://statistics.data.gov.uk/id/local-authority/00ML,Central Services To The Public,BVACEN,Support Services (SSC),PPT,Transport Related,D,Public Transport,DD,20/06/2012,PAY00484170,10922.7,Revenue,B & H City Cabs
Brighton & Hove City Council,http://statistics.data.gov.uk/id/local-authority/00ML,Children�s Social Care,BVACSC,Child Srvcs - Other,FAX,Transport Related,D,Public Transport,DD,20/06/2012,PAY00484170,16.5,Revenue,B & H City Cabs
Brighton & Hove City Council,http://statistics.data.gov.uk/id/local-authority/00ML,Education Services,BVAEDU,Ed - Ed Other - LA Attrib Sch,ELA,Transport Related,D,Recharges,DC,20/06/2012,PAY00484170,5533.5,Revenue,B & H City Cabs
Brighton & Hove City Council,http://statistics.data.gov.uk/id/local-authority/00ML,Adult Social Care,BVASOC,S Svcs - Mental Health,MHT,Third Party Payments,F,Other Establishments,FH,22/06/2012,PAY00484984,159,Revenue,B & H City Cabs
Brighton & Hove City Council,http://statistics.data.gov.uk/id/local-authority/00ML,Children�s Social Care,BVACSC,Child Srvcs - Com & Scl Work,FCW,Transport Related,D,Public Transport,DD,22/06/2012,PAY00484984,32.6,Revenue,B & H City Cabs
Brighton & Hove City Council,http://statistics.data.gov.uk/id/local-authority/00ML,Education Services,BVAEDU,Ed - Ed Other - LA Attrib Sch,ELA,Transport Related,D,Other Transport Costs,DG,22/06/2012,PAY00484984,36263.92,Revenue,B & H City Cabs
Brighton & Hove City Council,http://statistics.data.gov.uk/id/local-authority/00ML,Education Services,BVAEDU,Ed - Ed Other - LA Attrib Sch,ELA,Transport Related,D,Other Transport Costs,DG,29/06/2012,PAY00486842,18913.55,Revenue,B & H City Cabs
Brighton & Hove City Council,http://statistics.data.gov.uk/id/local-authority/00ML,Adult Social Care,BVASOC,S Svcs - Physical Disability,PDY,Customer n Client Receipts,M,Fees n Charges,MB,15/06/2012,PAY00483477,-5355.1,Revenue,B & J G Richardson Business Account
Brighton & Hove City Council,http://statistics.data.gov.uk/id/local-authority/00ML,Adult Social Care,BVASOC,S Svcs - Physical Disability,PDY,Third Party Payments,F,Other Establishments,FH,15/06/2012,PAY00483477,9137.65,Revenue,B & J G Richardson Business Account
Brighton & Hove City Council,http://statistics.data.gov.uk/id/local-authority/00ML,Housing Services General Fund,BVAHOG,Homelessness,HML,Premises Related,C,Repair Maint n Alterations,CA,20/06/2012,PAY00483999,3236.32,Revenue,B & Q Plc
Brighton & Hove City Council,http://statistics.data.gov.uk/id/local-authority/00ML,Environment and Regulatory Ser,BVAERS,Management Services (DEC),MGT,Transport Related,D,Direct Transport Costs,DA,29/06/2012,PAY00486627,1997.03,Revenue,B S Russell Commercials Limited
Brighton & Hove City Council,http://statistics.data.gov.uk/id/local-authority/00ML,Adult Social Care,BVASOC,S Svcs - Learning Disability,LDY,Customer n Client Receipts,M,Fees n Charges,MB,07/06/2012,PAY00481473,-311.4,Revenue,Ballater House
Brighton & Hove City Council,http://statistics.data.gov.uk/id/local-authority/00ML,Adult Social Care,BVASOC,S Svcs - Learning Disability,LDY,Third Party Payments,F,Other Establishments,FH,07/06/2012,PAY00481473,7980,Revenue,Ballater House
Brighton & Hove City Council,http://statistics.data.gov.uk/id/local-authority/00ML,Children�s Social Care,BVACSC,Child Srvcs - Adoption,FAA,Third Party Payments,F,Other Establishments,FH,07/06/2012,PAY00481132,12748,Revenue,Barnardos
Brighton & Hove City Council,http://statistics.data.gov.uk/id/local-authority/00ML,Children�s Social Care,BVACSC,Child Srvcs - Fostering,FLF,Third Party Payments,F,Other Establishments,FH,27/06/2012,PAY00485588,3214.68,Revenue,Barnardos
Brighton & Hove City Council,http://statistics.data.gov.uk/id/local-authority/00ML,Central Services To The Public,BVACEN,Holding Accounts,PPH,Transport Related,D,Direct Transport Costs,DA,22/06/2012,PAY00484712,465,Revenue,Barnes DAF
Brighton & Hove City Council,http://statistics.data.gov.uk/id/local-authority/00ML,Central Services To The Public,BVACEN,Holding Accounts,PPH,Transport Related,D,Direct Transport Costs,DA,29/06/2012,PAY00486489,132,Revenue,Barnes DAF
Brighton & Hove City Council,http://statistics.data.gov.uk/id/local-authority/00ML,Environment and Regulatory Ser,BVAERS,Management Services (DEC),MGT,Transport Related,D,Direct Transport Costs,DA,29/06/2012,PAY00486489,632.13,Revenue,Barnes DAF
Brighton & Hove City Council,http://statistics.data.gov.uk/id/local-authority/00ML,Housing Services General Fund,BVAHOG,Homelessness,HML,Premises Related,C,Rents Payable,CC,20/06/2012,PAY00484242,11410,Revenue,Baron Management Ltd
Brighton & Hove City Council,http://statistics.data.gov.uk/id/local-authority/00ML,Adult Social Care,BVASOC,S Svcs - Learning Disability,LDY,Customer n Client Receipts,M,Fees n Charges,MB,13/06/2012,PAY00482679,-476.8,Revenue,Barrington House Ltd
Brighton & Hove City Council,http://statistics.data.gov.uk/id/local-authority/00ML,Adult Social Care,BVASOC,S Svcs - Learning Disability,LDY,Third Party Payments,F,Other Establishments,FH,13/06/2012,PAY00482679,1656,Revenue,Barrington House Ltd
Brighton & Hove City Council,http://statistics.data.gov.uk/id/local-authority/00ML,Adult Social Care,BVASOC,S Svcs - Older People Svcs,PPL,Customer n Client Receipts,M,Fees n Charges,MB,27/06/2012,PAY00486045,-487.24,Revenue,Barty House Nursing Home
Brighton & Hove City Council,http://statistics.data.gov.uk/id/local-authority/00ML,Adult Social Care,BVASOC,S Svcs - Older People Svcs,PPL,Third Party Payments,F,Other Establishments,FH,27/06/2012,PAY00486045,1945.98,Revenue,Barty House Nursing Home
Brighton & Hove City Council,http://statistics.data.gov.uk/id/local-authority/00ML,Cultural and Related Services,BVACUL,Recreation and sport,REC,Supplies and Services,E,Print Stat & Gen Office Exps,ED,20/06/2012,PAY00484061,2480,Revenue,Bay Media Ltd
Brighton & Hove City Council,http://statistics.data.gov.uk/id/local-authority/00ML,Housing Services Revnue Acc,BVAHOU,Hsing Management - HRA,HGM,Supplies and Services,E,Services,EF,13/06/2012,PAY00482808,3500,Revenue,BBM Sustainable Design Ltd
Brighton & Hove City Council,http://statistics.data.gov.uk/id/local-authority/00ML,Adult Social Care,BVASOC,S Svcs - Learning Disability,LDY,Customer n Client Receipts,M,Fees n Charges,MB,13/06/2012,PAY00482698,-311.4,Revenue,Beach House Kingsdown Ltd
Brighton & Hove City Council,http://statistics.data.gov.uk/id/local-authority/00ML,Adult Social Care,BVASOC,S Svcs - Learning Disability,LDY,Third Party Payments,F,Other Establishments,FH,13/06/2012,PAY00482698,3259.92,Revenue,Beach House Kingsdown Ltd
Brighton & Hove City Council,http://statistics.data.gov.uk/id/local-authority/00ML,Cultural and Related Services,BVACUL,Culture & Heritage,CHG,Supplies and Services,E,Services,EF,07/06/2012,PAY00481115,1741,Revenue,Beacon Press
Brighton & Hove City Council,http://statistics.data.gov.uk/id/local-authority/00ML,Cultural and Related Services,BVACUL,Culture & Heritage,CHG,Supplies and Services,E,Print Stat & Gen Office Exps,ED,27/06/2012,PAY00485558,1000,Revenue,Beacon Press
Brighton & Hove City Council,http://statistics.data.gov.uk/id/local-authority/00ML,Cultural and Related Services,BVACUL,Culture & Heritage,CHG,Supplies and Services,E,Services,EF,27/06/2012,PAY00485558,1802,Revenue,Beacon Press
Brighton & Hove City Council,http://statistics.data.gov.uk/id/local-authority/00ML,Education Services,BVAEDU,Ed - EY - Central,EAE,Supplies and Services,E,Miscellaneous Expenses,EM,27/06/2012,PAY00485601,675,Revenue,BeCCA Pre-School Playgroup
Brighton & Hove City Council,http://statistics.data.gov.uk/id/local-authority/00ML,Adult Social Care,BVASOC,S Svcs - Learning Disability,LDY,Customer n Client Receipts,M,Fees n Charges,MB,01/06/2012,PAY00479918,-349.4,Revenue,Beech Lodge
Brighton & Hove City Council,http://statistics.data.gov.uk/id/local-authority/00ML,Adult Social Care,BVASOC,S Svcs - Learning Disability,LDY,Third Party Payments,F,Other Establishments,FH,01/06/2012,PAY00479918,6379.72,Revenue,Beech Lodge
Brighton & Hove City Council,http://statistics.data.gov.uk/id/local-authority/00ML,Adult Social Care,BVASOC,S Svcs - Older People Svcs,PPL,Customer n Client Receipts,M,Fees n Charges,MB,01/06/2012,PAY00479918,-636.8,Revenue,Beech Lodge
Brighton & Hove City Council,http://statistics.data.gov.uk/id/local-authority/00ML,Adult Social Care,BVASOC,S Svcs - Older People Svcs,PPL,Third Party Payments,F,Other Establishments,FH,01/06/2012,PAY00479918,2292.8,Revenue,Beech Lodge
Brighton & Hove City Council,http://statistics.data.gov.uk/id/local-authority/00ML,Adult Social Care,BVASOC,S Svcs - Older People Svcs,PPL,Customer n Client Receipts,M,Fees n Charges,MB,13/06/2012,PAY00482758,-551.76,Revenue,Bel-Amie Gables 
Brighton & Hove City Council,http://statistics.data.gov.uk/id/local-authority/00ML,Adult Social Care,BVASOC,S Svcs - Older People Svcs,PPL,Third Party Payments,F,Other Establishments,FH,13/06/2012,PAY00482758,1789.72,Revenue,Bel-Amie Gables 
Brighton & Hove City Council,http://statistics.data.gov.uk/id/local-authority/00ML,Highways and Transportation,BVAHRT,Parking Services,PRK,Supplies and Services,E,Print Stat & Gen Office Exps,ED,01/06/2012,PAY00480187,2395,Revenue,Bemrose Booth Paragon Ltd
Brighton & Hove City Council,http://statistics.data.gov.uk/id/local-authority/00ML,Cultural and Related Services,BVACUL,Management Services (DEC),MGT,Transport Related,D,Direct Transport Costs,DA,20/06/2012,PAY00484255,438.6,Revenue,Bernhard and Company Ltd
Brighton & Hove City Council,http://statistics.data.gov.uk/id/local-authority/00ML,Housing Services Revnue Acc,BVAHOU,Hsing Management - HRA,HGM,Supplies and Services,E,Services,EF,27/06/2012,PAY00485591,1090,Revenue,Best of Brighton & Sussex Cottages Ltd
Brighton & Hove City Council,http://statistics.data.gov.uk/id/local-authority/00ML,Adult Social Care,BVASOC,S Svcs - Older People Svcs,PPL,Customer n Client Receipts,M,Fees n Charges,MB,01/06/2012,PAY00479914,-5226.39,Revenue,Birchgrove Healthcare (Sussex) Ltd
Brighton & Hove City Council,http://statistics.data.gov.uk/id/local-authority/00ML,Adult Social Care,BVASOC,S Svcs - Older People Svcs,PPL,Third Party Payments,F,Other Establishments,FH,01/06/2012,PAY00479914,40790.06,Revenue,Birchgrove Healthcare (Sussex) Ltd
Brighton & Hove City Council,http://statistics.data.gov.uk/id/local-authority/00ML,Adult Social Care,BVASOC,S Svcs - Older People Svcs,PPL,Customer n Client Receipts,M,Fees n Charges,MB,07/06/2012,PAY00481205,423.91,Revenue,Birchgrove Healthcare (Sussex) Ltd
Brighton & Hove City Council,http://statistics.data.gov.uk/id/local-authority/00ML,Adult Social Care,BVASOC,S Svcs - Older People Svcs,PPL,Third Party Payments,F,Other Establishments,FH,07/06/2012,PAY00481205,4567.55,Revenue,Birchgrove Healthcare (Sussex) Ltd
Brighton & Hove City Council,http://statistics.data.gov.uk/id/local-authority/00ML,Adult Social Care,BVASOC,S Svcs - Older People Svcs,PPL,Third Party Payments,F,Other Establishments,FH,15/06/2012,PAY00483186,8728.57,Revenue,Birchgrove Healthcare (Sussex) Ltd
Brighton & Hove City Council,http://statistics.data.gov.uk/id/local-authority/00ML,Adult Social Care,BVASOC,S Svcs - Older People Svcs,PPL,Third Party Payments,F,Other Establishments,FH,22/06/2012,PAY00484743,2256.8,Revenue,Birchgrove Healthcare (Sussex) Ltd
Brighton & Hove City Council,http://statistics.data.gov.uk/id/local-authority/00ML,Adult Social Care,BVASOC,S Svcs - Older People Svcs,PPL,Third Party Payments,F,Other Establishments,FH,27/06/2012,PAY00485671,897.2,Revenue,Birchgrove Healthcare (Sussex) Ltd
Brighton & Hove City Council,http://statistics.data.gov.uk/id/local-authority/00ML,Housing Services General Fund,BVAHOG,Homelessness,HML,Supplies and Services,E,Miscellaneous Expenses,EM,01/06/2012,PAY00480452,4537.2,Revenue,Bishop`s Move
Brighton & Hove City Council,http://statistics.data.gov.uk/id/local-authority/00ML,Adult Social Care,BVASOC,S Svcs - Supported Employment,EMP,Premises Related,C,Rents Payable,CC,13/06/2012,PAY00482548,3188.64,Revenue,Bizspace Ltd
Brighton & Hove City Council,http://statistics.data.gov.uk/id/local-authority/00ML,Adult Social Care,BVASOC,S Svcs - Supported Employment,EMP,Premises Related,C,Energy Costs,CB,15/06/2012,PAY00483165,610.05,Revenue,Bizspace Ltd
Brighton & Hove City Council,http://statistics.data.gov.uk/id/local-authority/00ML,Adult Social Care,BVASOC,S Svcs - Supported Employment,EMP,Premises Related,C,Rents Payable,CC,15/06/2012,PAY00483165,182,Revenue,Bizspace Ltd
Brighton & Hove City Council,http://statistics.data.gov.uk/id/local-authority/00ML,Central Services To The Public,BVACEN,Support Services (SSC),PPT,Supplies and Services,E,Equip't Furniture n Materials,EA,07/06/2012,PAY00481204,1124.6,Revenue,Blackburns Metals Ltd
Brighton & Hove City Council,http://statistics.data.gov.uk/id/local-authority/00ML,Environment and Regulatory Ser,BVAERS,Agricultural and Fisheries,AGF,Third Party Payments,F,Private Contractors,FJ,07/06/2012,PAY00481176,11716.36,Revenue,Blair Installations Ltd
Brighton & Hove City Council,http://statistics.data.gov.uk/id/local-authority/00ML,Adult Social Care,BVASOC,S Svcs - Older People Svcs,PPL,Customer n Client Receipts,M,Fees n Charges,MB,07/06/2012,PAY00481593,-648.28,Revenue,Blatchington Court
Brighton & Hove City Council,http://statistics.data.gov.uk/id/local-authority/00ML,Adult Social Care,BVASOC,S Svcs - Older People Svcs,PPL,Third Party Payments,F,Other Establishments,FH,07/06/2012,PAY00481593,1772.12,Revenue,Blatchington Court
Brighton & Hove City Council,http://statistics.data.gov.uk/id/local-authority/00ML,Adult Social Care,BVASOC,S Svcs - Older People Svcs,PPL,Customer n Client Receipts,M,Fees n Charges,MB,20/06/2012,PAY00484456,-648.28,Revenue,Blatchington Court
Brighton & Hove City Council,http://statistics.data.gov.uk/id/local-authority/00ML,Adult Social Care,BVASOC,S Svcs - Older People Svcs,PPL,Third Party Payments,F,Other Establishments,FH,20/06/2012,PAY00484456,1772.12,Revenue,Blatchington Court
Brighton & Hove City Council,http://statistics.data.gov.uk/id/local-authority/00ML,Adult Social Care,BVASOC,S Svcs - Older People Svcs,PPL,Third Party Payments,F,Other Establishments,FH,29/06/2012,PAY00487439,5316.36,Revenue,Blatchington Court
Brighton & Hove City Council,http://statistics.data.gov.uk/id/local-authority/00ML,Housing Services Revnue Acc,BVAHOU,Hsing Management - HRA,HGM,Supplies and Services,E,Services,EF,07/06/2012,PAY00481571,525,Revenue,BLB Chartered Engineers Ltd
Brighton & Hove City Council,http://statistics.data.gov.uk/id/local-authority/00ML,Housing Services Revnue Acc,BVAHOU,Hsing Management - HRA,HGM,Supplies and Services,E,Services,EF,20/06/2012,PAY00484439,725.5,Revenue,BLB Chartered Engineers Ltd
Brighton & Hove City Council,http://statistics.data.gov.uk/id/local-authority/00ML,Housing Services Revnue Acc,BVAHOU,Hsing Management - HRA,HGM,Supplies and Services,E,Services,EF,22/06/2012,PAY00485300,525,Revenue,BLB Chartered Engineers Ltd
Brighton & Hove City Council,http://statistics.data.gov.uk/id/local-authority/00ML,Adult Social Care,BVASOC,S Svcs - Older People Svcs,PPL,Customer n Client Receipts,M,Fees n Charges,MB,13/06/2012,PAY00482512,-1585.2,Revenue,Blind Veterans UK
Brighton & Hove City Council,http://statistics.data.gov.uk/id/local-authority/00ML,Adult Social Care,BVASOC,S Svcs - Older People Svcs,PPL,Third Party Payments,F,Other Establishments,FH,13/06/2012,PAY00482512,4056,Revenue,Blind Veterans UK
Brighton & Hove City Council,http://statistics.data.gov.uk/id/local-authority/00ML,Adult Social Care,BVASOC,S Svcs - Older People Svcs,PPL,Third Party Payments,F,Other Establishments,FH,22/06/2012,PAY00484698,2201.6,Revenue,Blind Veterans UK
Brighton & Hove City Council,http://statistics.data.gov.uk/id/local-authority/00ML,Children�s Social Care,BVACSC,Child Srvcs - Leaving Care,FAL,Transfer Payments,G,Other Transfer Payments,GD,20/06/2012,PAY00484317,5999.7,Revenue,Blue Sky Fostering Limited
Brighton & Hove City Council,http://statistics.data.gov.uk/id/local-authority/00ML,Children�s Social Care,BVACSC,Child Srvcs - Fostering,FLF,Third Party Payments,F,Other Establishments,FH,27/06/2012,PAY00486001,65955.03,Revenue,Blue Sky Fostering Limited
Brighton & Hove City Council,http://statistics.data.gov.uk/id/local-authority/00ML,Education Services,BVAEDU,Ed - EY - Central,EAE,Third Party Payments,F,Other Establishments,FH,22/06/2012,PAY00485016,4000,Revenue,Blueberry Nursery & Early Learning Organisation Ld
Brighton & Hove City Council,http://statistics.data.gov.uk/id/local-authority/00ML,Cultural and Related Services,BVACUL,Culture & Heritage,CHG,Premises Related,C,Repair Maint n Alterations,CA,22/06/2012,PAY00484788,52.35,Revenue,BOC Ltd
Brighton & Hove City Council,http://statistics.data.gov.uk/id/local-authority/00ML,Cultural and Related Services,BVACUL,Management Services (DEC),MGT,Transport Related,D,Direct Transport Costs,DA,22/06/2012,PAY00484788,371.1,Revenue,BOC Ltd
Brighton & Hove City Council,http://statistics.data.gov.uk/id/local-authority/00ML,Education Services,BVAEDU,Ed - Special Ed,EKE,Third Party Payments,F,Other Agencies,FL,08/06/2012,PAY00481834,2906.25,Revenue,Boomerang Kids
Brighton & Hove City Council,http://statistics.data.gov.uk/id/local-authority/00ML,Cultural and Related Services,BVACUL,Highways and Roads - Mntnce,HRM,Premises Related,C,Repair Maint n Alterations,CA,20/06/2012,PAY00484474,600,Revenue,Boretec Water Specialists
Brighton & Hove City Council,http://statistics.data.gov.uk/id/local-authority/00ML,Education Services,BVAEDU,Ed - Mgmt & Support Services,EMG,Indirect Employees,B,Training,BM,22/06/2012,PAY00485126,200,Revenue,Brackley Educational Consultancy
Brighton & Hove City Council,http://statistics.data.gov.uk/id/local-authority/00ML,Education Services,BVAEDU,Ed - Mgmt & Support Services,EMG,Supplies and Services,E,Services,EF,22/06/2012,PAY00485126,2000,Revenue,Brackley Educational Consultancy
Brighton & Hove City Council,http://statistics.data.gov.uk/id/local-authority/00ML,Adult Social Care,BVASOC,S Svcs - Learning Disability,LDY,Customer n Client Receipts,M,Fees n Charges,MB,07/06/2012,PAY00481454,-311.4,Revenue,Bradfield House
Brighton & Hove City Council,http://statistics.data.gov.uk/id/local-authority/00ML,Adult Social Care,BVASOC,S Svcs - Learning Disability,LDY,Third Party Payments,F,Other Establishments,FH,07/06/2012,PAY00481454,12960,Revenue,Bradfield House
Brighton & Hove City Council,http://statistics.data.gov.uk/id/local-authority/00ML,Housing Services General Fund,BVAHOG,Homelessness,HML,Supplies and Services,E,Equip't Furniture n Materials,EA,07/06/2012,PAY00481303,783.55,Revenue,Brady Corp Ltd t/a Seton
Brighton & Hove City Council,http://statistics.data.gov.uk/id/local-authority/00ML,Central Services To The Public,BVACEN,Support Services (SSC),PPT,Premises Related,C,Repair Maint n Alterations,CA,01/06/2012,PAY00480296,8931.87,Revenue,Bramber Construction Co Ltd
Brighton & Hove City Council,http://statistics.data.gov.uk/id/local-authority/00ML,Central Services To The Public,BVACEN,Support Services (SSC),PPT,Premises Related,C,Repair Maint n Alterations,CA,07/06/2012,PAY00481379,6460,Revenue,Bramber Construction Co Ltd
Brighton & Hove City Council,http://statistics.data.gov.uk/id/local-authority/00ML,Cultural and Related Services,BVACUL,Recreation and sport,REC,Premises Related,C,Repair Maint n Alterations,CA,07/06/2012,PAY00481379,1746.2,Revenue,Bramber Construction Co Ltd
Brighton & Hove City Council,http://statistics.data.gov.uk/id/local-authority/00ML,Non SERCOP,BVANON,Cap - Other Env Services,4EV,New Construction n Conversion,PB,Level not required,NR5026,07/06/2012,PAY00481379,7130.36,Capital,Bramber Construction Co Ltd
Brighton & Hove City Council,http://statistics.data.gov.uk/id/local-authority/00ML,Non SERCOP,BVANON,Cap - Housing Services - GF,4HG,Capital Grants,PF,Level not required,NR5012,20/06/2012,PAY00484203,20192,Capital,Bramber Construction Co Ltd
Brighton & Hove City Council,http://statistics.data.gov.uk/id/local-authority/00ML,Central Services To The Public,BVACEN,Support Services (SSC),PPT,Premises Related,C,Repair Maint n Alterations,CA,27/06/2012,PAY00485859,55426.32,Revenue,Bramber Construction Co Ltd
Brighton & Hove City Council,http://statistics.data.gov.uk/id/local-authority/00ML,Non SERCOP,BVANON,Cap - Mgmnt & Support Services,4PT,New Construction n Conversion,PB,Level not required,NR5026,27/06/2012,PAY00485859,21317.82,Capital,Bramber Construction Co Ltd
Brighton & Hove City Council,http://statistics.data.gov.uk/id/local-authority/00ML,Non SERCOP,BVANON,Cap - Other Env Services,4EV,New Construction n Conversion,PB,Level not required,NR5026,27/06/2012,PAY00485859,20000,Capital,Bramber Construction Co Ltd
Brighton & Hove City Council,http://statistics.data.gov.uk/id/local-authority/00ML,Adult Social Care,BVASOC,S Svcs - Older People Svcs,PPL,Customer n Client Receipts,M,Fees n Charges,MB,01/06/2012,PAY00480220,-534.8,Revenue,Bramber Nursing Home Ltd
Brighton & Hove City Council,http://statistics.data.gov.uk/id/local-authority/00ML,Adult Social Care,BVASOC,S Svcs - Older People Svcs,PPL,Third Party Payments,F,Other Establishments,FH,01/06/2012,PAY00480220,4446.56,Revenue,Bramber Nursing Home Ltd
Brighton & Hove City Council,http://statistics.data.gov.uk/id/local-authority/00ML,Adult Social Care,BVASOC,S Svcs - Older People Svcs,PPL,Customer n Client Receipts,M,Fees n Charges,MB,01/06/2012,PAY00480267,-7053.24,Revenue,Bravery Care
Brighton & Hove City Council,http://statistics.data.gov.uk/id/local-authority/00ML,Adult Social Care,BVASOC,S Svcs - Older People Svcs,PPL,Third Party Payments,F,Other Establishments,FH,01/06/2012,PAY00480267,24439.95,Revenue,Bravery Care
Brighton & Hove City Council,http://statistics.data.gov.uk/id/local-authority/00ML,Adult Social Care,BVASOC,S Svcs - Older People Svcs,PPL,Customer n Client Receipts,M,Fees n Charges,MB,07/06/2012,PAY00481360,-616.88,Revenue,Bravery Care
Brighton & Hove City Council,http://statistics.data.gov.uk/id/local-authority/00ML,Adult Social Care,BVASOC,S Svcs - Older People Svcs,PPL,Third Party Payments,F,Other Establishments,FH,07/06/2012,PAY00481360,1178.58,Revenue,Bravery Care
Brighton & Hove City Council,http://statistics.data.gov.uk/id/local-authority/00ML,Non SERCOP,BVANON,Cap - Housing Services - GF,4HG,Capital Grants,PF,Level not required,NR5012,29/06/2012,PAY00486628,3335.79,Capital,Brian Huntly Builders Limited
Brighton & Hove City Council,http://statistics.data.gov.uk/id/local-authority/00ML,Children�s Social Care,BVACSC,Child Srvcs - Fostering,FLF,Third Party Payments,F,Other Establishments,FH,27/06/2012,PAY00485990,45848.57,Revenue,Brighter Futures Foster Care Ltd
Brighton & Hove City Council,http://statistics.data.gov.uk/id/local-authority/00ML,Children�s Social Care,BVACSC,Child Srvcs - Other Fam Supp,FFX,Supplies and Services,E,Services,EF,07/06/2012,PAY00481266,462.9,Revenue,Brighthelm Church & Community Centre Trust Ltd
Brighton & Hove City Council,http://statistics.data.gov.uk/id/local-authority/00ML,Education Services,BVAEDU,Ed - EY - Central,EAE,Supplies and Services,E,Miscellaneous Expenses,EM,07/06/2012,PAY00481266,70,Revenue,Brighthelm Church & Community Centre Trust Ltd
Brighton & Hove City Council,http://statistics.data.gov.uk/id/local-authority/00ML,Education Services,BVAEDU,Ed - EY - Central,EAE,Indirect Employees,B,Training,BM,08/06/2012,PAY00481900,1236.97,Revenue,Brighthelm Church & Community Centre Trust Ltd
Brighton & Hove City Council,http://statistics.data.gov.uk/id/local-authority/00ML,Central Services To The Public,BVACEN,Support Services (SSC),PPT,Premises Related,C,Rents Payable,CC,27/06/2012,PAY00485755,160,Revenue,Brighthelm Church & Community Centre Trust Ltd
Brighton & Hove City Council,http://statistics.data.gov.uk/id/local-authority/00ML,Central Services To The Public,BVACEN,Support Services (SSC),PPT,Supplies and Services,E,Equip't Furniture n Materials,EA,27/06/2012,PAY00485755,10,Revenue,Brighthelm Church & Community Centre Trust Ltd
Brighton & Hove City Council,http://statistics.data.gov.uk/id/local-authority/00ML,Children�s Social Care,BVACSC,Management Services (DEC),MGT,Premises Related,C,Rents Payable,CC,27/06/2012,PAY00485755,294,Revenue,Brighthelm Church & Community Centre Trust Ltd
Brighton & Hove City Council,http://statistics.data.gov.uk/id/local-authority/00ML,Planning Services,BVAPLA,Community Development,CDV,Supplies and Services,E,Grants n Subscriptions,EK,27/06/2012,PAY00485755,222.17,Revenue,Brighthelm Church & Community Centre Trust Ltd
Brighton & Hove City Council,http://statistics.data.gov.uk/id/local-authority/00ML,Adult Social Care,BVASOC,S Svcs - Older People Svcs,PPL,Customer n Client Receipts,M,Fees n Charges,MB,01/06/2012,PAY00479735,-2239.88,Revenue,Brighton & Hove Bethesda Home
Brighton & Hove City Council,http://statistics.data.gov.uk/id/local-authority/00ML,Adult Social Care,BVASOC,S Svcs - Older People Svcs,PPL,Third Party Payments,F,Other Establishments,FH,01/06/2012,PAY00479735,6808,Revenue,Brighton & Hove Bethesda Home
Brighton & Hove City Council,http://statistics.data.gov.uk/id/local-authority/00ML,Adult Social Care,BVASOC,S Svcs - Older People Svcs,PPL,Indirect Employees,B,Misc Employee Costs,BP,07/06/2012,PAY00481391,310,Revenue,Brighton & Hove Bus & Coach Co Ltd
Brighton & Hove City Council,http://statistics.data.gov.uk/id/local-authority/00ML,Central Services To The Public,BVACEN,Holding Accounts,PPH,Transport Related,D,Direct Transport Costs,DA,07/06/2012,PAY00481391,34.24,Revenue,Brighton & Hove Bus & Coach Co Ltd
Brighton & Hove City Council,http://statistics.data.gov.uk/id/local-authority/00ML,Education Services,BVAEDU,Ed - EY - Central,EAE,Transport Related,D,Public Transport,DD,07/06/2012,PAY00481391,122.4,Revenue,Brighton & Hove Bus & Coach Co Ltd
Brighton & Hove City Council,http://statistics.data.gov.uk/id/local-authority/00ML,Environment and Regulatory Ser,BVAERS,Waste Management,WMT,Transport Related,D,Contract Hire n Operating Leas,DB,07/06/2012,PAY00481391,784,Revenue,Brighton & Hove Bus & Coach Co Ltd
Brighton & Hove City Council,http://statistics.data.gov.uk/id/local-authority/00ML,Highways and Transportation,BVAHRT,Parking Services,PRK,Transport Related,D,Contract Hire n Operating Leas,DB,07/06/2012,PAY00481391,212.89,Revenue,Brighton & Hove Bus & Coach Co Ltd
Brighton & Hove City Council,http://statistics.data.gov.uk/id/local-authority/00ML,Highways and Transportation,BVAHRT,Parking Services,PRK,Transport Related,D,Direct Transport Costs,DA,07/06/2012,PAY00481391,978.72,Revenue,Brighton & Hove Bus & Coach Co Ltd
Brighton & Hove City Council,http://statistics.data.gov.uk/id/local-authority/00ML,Central Services To The Public,BVACEN,Support Services (SSC),PPT,Transport Related,D,Public Transport,DD,08/06/2012,PAY00482110,1800,Revenue,Brighton & Hove Bus & Coach Co Ltd
Brighton & Hove City Council,http://statistics.data.gov.uk/id/local-authority/00ML,Highways and Transportation,BVAHRT,Public transport,PTR,Third Party Payments,F,Private Contractors,FJ,08/06/2012,PAY00482110,850,Revenue,Brighton & Hove Bus & Coach Co Ltd
Brighton & Hove City Council,http://statistics.data.gov.uk/id/local-authority/00ML,Adult Social Care,BVASOC,S Svcs - Learning Disability,LDY,Transport Related,D,Public Transport,DD,13/06/2012,PAY00482708,176.5,Revenue,Brighton & Hove Bus & Coach Co Ltd
Brighton & Hove City Council,http://statistics.data.gov.uk/id/local-authority/00ML,Cultural and Related Services,BVACUL,Culture & Heritage,CHG,Supplies and Services,E,Goods for Resale,EG,13/06/2012,PAY00482708,4033,Revenue,Brighton & Hove Bus & Coach Co Ltd
Brighton & Hove City Council,http://statistics.data.gov.uk/id/local-authority/00ML,Cultural and Related Services,BVACUL,Open Spaces,PEN,Transport Related,D,Contract Hire n Operating Leas,DB,13/06/2012,PAY00482708,400,Revenue,Brighton & Hove Bus & Coach Co Ltd
Brighton & Hove City Council,http://statistics.data.gov.uk/id/local-authority/00ML,Highways and Transportation,BVAHRT,Parking Services,PRK,Transport Related,D,Public Transport,DD,13/06/2012,PAY00482708,176.5,Revenue,Brighton & Hove Bus & Coach Co Ltd
Brighton & Hove City Council,http://statistics.data.gov.uk/id/local-authority/00ML,Housing Services General Fund,BVAHOG,Homelessness,HML,Transport Related,D,Contract Hire n Operating Leas,DB,13/06/2012,PAY00482708,253.71,Revenue,Brighton & Hove Bus & Coach Co Ltd
Brighton & Hove City Council,http://statistics.data.gov.uk/id/local-authority/00ML,Children�s Social Care,BVACSC,Child Srvcs - Fostering,FLF,Supplies and Services,E,Miscellaneous Expenses,EM,15/06/2012,PAY00483499,241.1,Revenue,Brighton & Hove Bus & Coach Co Ltd
Brighton & Hove City Council,http://statistics.data.gov.uk/id/local-authority/00ML,Children�s Social Care,BVACSC,Child Srvcs - Other Fam Supp,FFX,Transfer Payments,G,Other Transfer Payments,GD,15/06/2012,PAY00483499,1224,Revenue,Brighton & Hove Bus & Coach Co Ltd
Brighton & Hove City Council,http://statistics.data.gov.uk/id/local-authority/00ML,Planning Services,BVAPLA,Development Control,DEV,Transport Related,D,Public Transport,DD,15/06/2012,PAY00483499,70.6,Revenue,Brighton & Hove Bus & Coach Co Ltd
Brighton & Hove City Council,http://statistics.data.gov.uk/id/local-authority/00ML,Adult Social Care,BVASOC,Support Services (SSC),PPT,Transport Related,D,Public Transport,DD,20/06/2012,PAY00484214,155,Revenue,Brighton & Hove Bus & Coach Co Ltd
Brighton & Hove City Council,http://statistics.data.gov.uk/id/local-authority/00ML,Children�s Social Care,BVACSC,Child Srvcs - Leaving Care,FAL,Transfer Payments,G,Other Transfer Payments,GD,20/06/2012,PAY00484214,1129.8,Revenue,Brighton & Hove Bus & Coach Co Ltd
Brighton & Hove City Council,http://statistics.data.gov.uk/id/local-authority/00ML,Environment and Regulatory Ser,BVAERS,Environmental Health,EVH,Transport Related,D,Contract Hire n Operating Leas,DB,20/06/2012,PAY00484214,1116.12,Revenue,Brighton & Hove Bus & Coach Co Ltd
Brighton & Hove City Council,http://statistics.data.gov.uk/id/local-authority/00ML,Adult Social Care,BVASOC,S Svcs - Older People Svcs,PPL,Transport Related,D,Public Transport,DD,22/06/2012,PAY00485046,775,Revenue,Brighton & Hove Bus & Coach Co Ltd
Brighton & Hove City Council,http://statistics.data.gov.uk/id/local-authority/00ML,Cultural and Related Services,BVACUL,Open Spaces,PEN,Transport Related,D,Contract Hire n Operating Leas,DB,22/06/2012,PAY00485046,391.67,Revenue,Brighton & Hove Bus & Coach Co Ltd
Brighton & Hove City Council,http://statistics.data.gov.uk/id/local-authority/00ML,Adult Social Care,BVASOC,Child Srvcs - Other Fam Supp,FFX,Transfer Payments,G,Other Transfer Payments,GD,27/06/2012,PAY00485875,612,Revenue,Brighton & Hove Bus & Coach Co Ltd
Brighton & Hove City Council,http://statistics.data.gov.uk/id/local-authority/00ML,Adult Social Care,BVASOC,S Svcs - Mental Health,MHT,Transport Related,D,Public Transport,DD,27/06/2012,PAY00485875,105.9,Revenue,Brighton & Hove Bus & Coach Co Ltd
Brighton & Hove City Council,http://statistics.data.gov.uk/id/local-authority/00ML,Children�s Social Care,BVACSC,Child Srvcs - Fostering,FLF,Transport Related,D,Contract Hire n Operating Leas,DB,27/06/2012,PAY00485875,1518.1,Revenue,Brighton & Hove Bus & Coach Co Ltd
Brighton & Hove City Council,http://statistics.data.gov.uk/id/local-authority/00ML,Environment and Regulatory Ser,BVAERS,Environmental Health,EVH,Transport Related,D,Public Transport,DD,27/06/2012,PAY00485875,96.9,Revenue,Brighton & Hove Bus & Coach Co Ltd
Brighton & Hove City Council,http://statistics.data.gov.uk/id/local-authority/00ML,Housing Services Revnue Acc,BVAHOU,Hsing Management - HRA,HGM,Transport Related,D,Direct Transport Costs,DA,27/06/2012,PAY00485875,784,Revenue,Brighton & Hove Bus & Coach Co Ltd
Brighton & Hove City Council,http://statistics.data.gov.uk/id/local-authority/00ML,Children�s Social Care,BVACSC,Child Srvcs - Fostering,FLF,Transport Related,D,Contract Hire n Operating Leas,DB,29/06/2012,PAY00486899,675.5,Revenue,Brighton & Hove Bus & Coach Co Ltd
Brighton & Hove City Council,http://statistics.data.gov.uk/id/local-authority/00ML,Cultural and Related Services,BVACUL,Open Spaces,PEN,Transport Related,D,Contract Hire n Operating Leas,DB,29/06/2012,PAY00486899,28.79,Revenue,Brighton & Hove Bus & Coach Co Ltd
Brighton & Hove City Council,http://statistics.data.gov.uk/id/local-authority/00ML,Environment and Regulatory Ser,BVAERS,Waste Management,WMT,Transport Related,D,Contract Hire n Operating Leas,DB,29/06/2012,PAY00486899,784,Revenue,Brighton & Hove Bus & Coach Co Ltd
Brighton & Hove City Council,http://statistics.data.gov.uk/id/local-authority/00ML,Highways and Transportation,BVAHRT,Parking Services,PRK,Transport Related,D,Contract Hire n Operating Leas,DB,29/06/2012,PAY00486899,188.16,Revenue,Brighton & Hove Bus & Coach Co Ltd
Brighton & Hove City Council,http://statistics.data.gov.uk/id/local-authority/00ML,Highways and Transportation,BVAHRT,Public transport,PTR,Transport Related,D,Public Transport,DD,29/06/2012,PAY00486899,741487.5,Revenue,Brighton & Hove Bus & Coach Co Ltd
Brighton & Hove City Council,http://statistics.data.gov.uk/id/local-authority/00ML,Planning Services,BVAPLA,Community Development,CDV,Supplies and Services,E,Miscellaneous Expenses,EM,27/06/2012,PAY00485751,3479,Revenue,Brighton & Hove Citizens Advice Bureau
Brighton & Hove City Council,http://statistics.data.gov.uk/id/local-authority/00ML,Children�s Social Care,BVACSC,Ed - Ed Other - Strat Mgt,ENM,Third Party Payments,F,Other Establishments,FH,27/06/2012,PAY00485620,17126.47,Revenue,Brighton & Hove City Teaching PCT
Brighton & Hove City Council,http://statistics.data.gov.uk/id/local-authority/00ML,Children�s Social Care,BVACSC,Management Services (DEC),MGT,Third Party Payments,F,Other Establishments,FH,27/06/2012,PAY00485620,4450.95,Revenue,Brighton & Hove City Teaching PCT
Brighton & Hove City Council,http://statistics.data.gov.uk/id/local-authority/00ML,Adult Social Care,BVASOC,S Svcs - Strategy,TGY,Third Party Payments,F,Health Authorities,FC,29/06/2012,PAY00486497,17500,Revenue,Brighton & Hove City Teaching PCT
Brighton & Hove City Council,http://statistics.data.gov.uk/id/local-authority/00ML,Adult Social Care,BVASOC,Management Services (DEC),MGT,Supplies and Services,E,Miscellaneous Expenses,EM,15/06/2012,PAY00483253,564.86,Revenue,Brighton & Hove Federation of Disabled People 
Brighton & Hove City Council,http://statistics.data.gov.uk/id/local-authority/00ML,Planning Services,BVAPLA,Community Development,CDV,Supplies and Services,E,Miscellaneous Expenses,EM,22/06/2012,PAY00484792,500,Revenue,Brighton & Hove Federation of Disabled People 
Brighton & Hove City Council,http://statistics.data.gov.uk/id/local-authority/00ML,Education Services,BVAEDU,Ed - EY - Central,EAE,Supplies and Services,E,Grants n Subscriptions,EK,15/06/2012,PAY00483149,2159.4,Revenue,Brighton & Hove Inclusion Project
Brighton & Hove City Council,http://statistics.data.gov.uk/id/local-authority/00ML,Adult Social Care,BVASOC,S Svcs - Mental Health,MHT,Indirect Employees,B,Training,BM,27/06/2012,PAY00485530,577,Revenue,Brighton & Hove Independent Mediation Service
Brighton & Hove City Council,http://statistics.data.gov.uk/id/local-authority/00ML,Housing Services General Fund,BVAHOG,Hsing Welfare,HGW,Transfer Payments,G,Supporting People,GF,01/06/2012,PAY00479750,1096.49,Revenue,Brighton & Hove Jewish Housing Assoc Ltd
Brighton & Hove City Council,http://statistics.data.gov.uk/id/local-authority/00ML,Housing Services General Fund,BVAHOG,Hsing Welfare,HGW,Transfer Payments,G,Supporting People,GF,29/06/2012,PAY00486419,1096.49,Revenue,Brighton & Hove Jewish Housing Assoc Ltd
Brighton & Hove City Council,http://statistics.data.gov.uk/id/local-authority/00ML,Housing Services General Fund,BVAHOG,Hsing Welfare,HGW,Transfer Payments,G,Supporting People,GF,01/06/2012,PAY00479772,11537,Revenue,Brighton & Hove Mencap
Brighton & Hove City Council,http://statistics.data.gov.uk/id/local-authority/00ML,Housing Services General Fund,BVAHOG,Hsing Welfare,HGW,Transfer Payments,G,Supporting People,GF,29/06/2012,PAY00486430,11537,Revenue,Brighton & Hove Mencap
Brighton & Hove City Council,http://statistics.data.gov.uk/id/local-authority/00ML,Central Services To The Public,BVACEN,Support Services (SSC),PPT,Transport Related,D,Public Transport,DD,07/06/2012,PAY00481389,2137.2,Revenue,Brighton & Hove Radio Cabs Ltd
Brighton & Hove City Council,http://statistics.data.gov.uk/id/local-authority/00ML,Central Services To The Public,BVACEN,Support Services (SSC),PPT,Transport Related,D,Other Transport Costs,DG,20/06/2012,PAY00484212,1620,Revenue,Brighton & Hove Radio Cabs Ltd
Brighton & Hove City Council,http://statistics.data.gov.uk/id/local-authority/00ML,Education Services,BVAEDU,Ed - Ed Other - LA Attrib Sch,ELA,Transport Related,D,Other Transport Costs,DG,20/06/2012,PAY00484212,14206.4,Revenue,Brighton & Hove Radio Cabs Ltd
Brighton & Hove City Council,http://statistics.data.gov.uk/id/local-authority/00ML,Central Services To The Public,BVACEN,Support Services (SSC),PPT,Transport Related,D,Public Transport,DD,22/06/2012,PAY00485045,1031.6,Revenue,Brighton & Hove Radio Cabs Ltd
Brighton & Hove City Council,http://statistics.data.gov.uk/id/local-authority/00ML,Cultural and Related Services,BVACUL,Culture & Heritage,CHG,Transport Related,D,Public Transport,DD,22/06/2012,PAY00485045,599.76,Revenue,Brighton & Hove Radio Cabs Ltd
Brighton & Hove City Council,http://statistics.data.gov.uk/id/local-authority/00ML,Highways and Transportation,BVAHRT,Transport plan policy strategy,TPP,Transport Related,D,Public Transport,DD,22/06/2012,PAY00485045,74.8,Revenue,Brighton & Hove Radio Cabs Ltd
Brighton & Hove City Council,http://statistics.data.gov.uk/id/local-authority/00ML,Central Services To The Public,BVACEN,Support Services (SSC),PPT,Transport Related,D,Public Transport,DD,27/06/2012,PAY00485873,1106.3,Revenue,Brighton & Hove Radio Cabs Ltd
Brighton & Hove City Council,http://statistics.data.gov.uk/id/local-authority/00ML,Highways and Transportation,BVAHRT,Public transport,PTR,Transport Related,D,Public Transport,DD,29/06/2012,PAY00486897,838,Revenue,Brighton & Hove Radio Cabs Ltd
Brighton & Hove City Council,http://statistics.data.gov.uk/id/local-authority/00ML,Housing Services Revnue Acc,BVAHOU,Hsing Management - HRA,HGM,Supplies and Services,E,Grants n Subscriptions,EK,20/06/2012,PAY00484124,8373.42,Revenue,Brighton & Hove Social Welfare Educational Trust
Brighton & Hove City Council,http://statistics.data.gov.uk/id/local-authority/00ML,Adult Social Care,BVASOC,S Svcs - Learning Disability,LDY,Third Party Payments,F,Other Establishments,FH,29/06/2012,PAY00486456,20000,Revenue,Brighton & Hove Speak Out
Brighton & Hove City Council,http://statistics.data.gov.uk/id/local-authority/00ML,Adult Social Care,BVASOC,Management Services (DEC),MGT,Transport Related,D,Public Transport,DD,20/06/2012,PAY00484127,23.32,Revenue,Brighton & Hove Streamline Taxis Ltd
Brighton & Hove City Council,http://statistics.data.gov.uk/id/local-authority/00ML,Central Services To The Public,BVACEN,Reg - Birth Death and Marriage,RBD,Transport Related,D,Public Transport,DD,20/06/2012,PAY00484127,95.6,Revenue,Brighton & Hove Streamline Taxis Ltd
Brighton & Hove City Council,http://statistics.data.gov.uk/id/local-authority/00ML,Central Services To The Public,BVACEN,Support Services (SSC),PPT,Transport Related,D,Public Transport,DD,20/06/2012,PAY00484127,249.04,Revenue,Brighton & Hove Streamline Taxis Ltd
Brighton & Hove City Council,http://statistics.data.gov.uk/id/local-authority/00ML,Children�s Social Care,BVACSC,Management Services (DEC),MGT,Transport Related,D,Public Transport,DD,20/06/2012,PAY00484127,69.96,Revenue,Brighton & Hove Streamline Taxis Ltd
Brighton & Hove City Council,http://statistics.data.gov.uk/id/local-authority/00ML,Education Services,BVAEDU,Ed - EY - Central,EAE,Transport Related,D,Public Transport,DD,20/06/2012,PAY00484127,29.7,Revenue,Brighton & Hove Streamline Taxis Ltd
Brighton & Hove City Council,http://statistics.data.gov.uk/id/local-authority/00ML,Highways and Transportation,BVAHRT,Parking Services,PRK,Transport Related,D,Public Transport,DD,20/06/2012,PAY00484127,1798.58,Revenue,Brighton & Hove Streamline Taxis Ltd
Brighton & Hove City Council,http://statistics.data.gov.uk/id/local-authority/00ML,Highways and Transportation,BVAHRT,Public transport,PTR,Transport Related,D,Public Transport,DD,20/06/2012,PAY00484127,3546,Revenue,Brighton & Hove Streamline Taxis Ltd
Brighton & Hove City Council,http://statistics.data.gov.uk/id/local-authority/00ML,Housing Services Revnue Acc,BVAHOU,Hsing Management - HRA,HGM,Transport Related,D,Public Transport,DD,20/06/2012,PAY00484127,785.3,Revenue,Brighton & Hove Streamline Taxis Ltd
Brighton & Hove City Council,http://statistics.data.gov.uk/id/local-authority/00ML,Central Services To The Public,BVACEN,Support Services (SSC),PPT,Transport Related,D,Public Transport,DD,27/06/2012,PAY00485750,106.5,Revenue,Brighton & Hove Streamline Taxis Ltd
Brighton & Hove City Council,http://statistics.data.gov.uk/id/local-authority/00ML,Cultural and Related Services,BVACUL,Tourism,TRM,Transport Related,D,Public Transport,DD,27/06/2012,PAY00485750,134,Revenue,Brighton & Hove Streamline Taxis Ltd
Brighton & Hove City Council,http://statistics.data.gov.uk/id/local-authority/00ML,Education Services,BVAEDU,Ed - EY - Central,EAE,Transport Related,D,Public Transport,DD,27/06/2012,PAY00485750,434.5,Revenue,Brighton & Hove Streamline Taxis Ltd
Brighton & Hove City Council,http://statistics.data.gov.uk/id/local-authority/00ML,Housing Services General Fund,BVAHOG,Homelessness,HML,Transport Related,D,Public Transport,DD,27/06/2012,PAY00485750,401.04,Revenue,Brighton & Hove Streamline Taxis Ltd
Brighton & Hove City Council,http://statistics.data.gov.uk/id/local-authority/00ML,Housing Services Revnue Acc,BVAHOU,Hsing Management - HRA,HGM,Transport Related,D,Public Transport,DD,27/06/2012,PAY00485750,39.82,Revenue,Brighton & Hove Streamline Taxis Ltd
Brighton & Hove City Council,http://statistics.data.gov.uk/id/local-authority/00ML,Central Services To The Public,BVACEN,Support Services (SSC),PPT,Transport Related,D,Public Transport,DD,29/06/2012,PAY00486635,149.6,Revenue,Brighton & Hove Streamline Taxis Ltd
Brighton & Hove City Council,http://statistics.data.gov.uk/id/local-authority/00ML,Education Services,BVAEDU,Ed - Ed Other - LA Attrib Sch,ELA,Transport Related,D,Other Transport Costs,DG,29/06/2012,PAY00486635,11322.53,Revenue,Brighton & Hove Streamline Taxis Ltd
Brighton & Hove City Council,http://statistics.data.gov.uk/id/local-authority/00ML,Adult Social Care,BVASOC,Child Srvcs - Other Fam Supp,FFX,Transfer Payments,G,Other Transfer Payments,GD,08/06/2012,PAY00481898,48.8,Revenue,Brighton & Sussex University Hospitals NHS Trust
Brighton & Hove City Council,http://statistics.data.gov.uk/id/local-authority/00ML,Children�s Social Care,BVACSC,Child Srvcs - Other Fam Supp,FFX,Transfer Payments,G,Other Transfer Payments,GD,08/06/2012,PAY00481898,1659.2,Revenue,Brighton & Sussex University Hospitals NHS Trust
Brighton & Hove City Council,http://statistics.data.gov.uk/id/local-authority/00ML,Environment and Regulatory Ser,BVAERS,Court Services,CRT,Supplies and Services,E,Equip't Furniture n Materials,EA,20/06/2012,PAY00484128,7415,Revenue,Brighton & Sussex University Hospitals NHS Trust
Brighton & Hove City Council,http://statistics.data.gov.uk/id/local-authority/00ML,Environment and Regulatory Ser,BVAERS,Court Services,CRT,Supplies and Services,E,Equip't Furniture n Materials,EA,29/06/2012,PAY00486637,1840,Revenue,Brighton & Sussex University Hospitals NHS Trust
Brighton & Hove City Council,http://statistics.data.gov.uk/id/local-authority/00ML,Cultural and Related Services,BVACUL,Culture & Heritage,CHG,Supplies and Services,E,Miscellaneous Expenses,EM,22/06/2012,PAY00484674,2700,Revenue,Brighton and Hove Radio Ltd
Brighton & Hove City Council,http://statistics.data.gov.uk/id/local-authority/00ML,Housing Services General Fund,BVAHOG,Homelessness,HML,Customer n Client Receipts,M,Fees n Charges,MB,08/06/2012,PAY00482360,63843,Revenue,Brighton and Hove Seaside Community Homes Ltd
Brighton & Hove City Council,http://statistics.data.gov.uk/id/local-authority/00ML,Adult Social Care,BVASOC,S Svcs - Learning Disability,LDY,Third Party Payments,F,Other Establishments,FH,01/06/2012,PAY00480817,8703.46,Revenue,Brighton and Sussex Care Ltd
Brighton & Hove City Council,http://statistics.data.gov.uk/id/local-authority/00ML,Adult Social Care,BVASOC,S Svcs - Learning Disability,LDY,Customer n Client Receipts,M,Fees n Charges,MB,15/06/2012,PAY00483742,-180,Revenue,Brighton and Sussex Care Ltd
Brighton & Hove City Council,http://statistics.data.gov.uk/id/local-authority/00ML,Adult Social Care,BVASOC,S Svcs - Learning Disability,LDY,Third Party Payments,F,Other Establishments,FH,15/06/2012,PAY00483742,19627.32,Revenue,Brighton and Sussex Care Ltd
Brighton & Hove City Council,http://statistics.data.gov.uk/id/local-authority/00ML,Adult Social Care,BVASOC,S Svcs - Mental Health,MHT,Customer n Client Receipts,M,Fees n Charges,MB,15/06/2012,PAY00483742,-68,Revenue,Brighton and Sussex Care Ltd
Brighton & Hove City Council,http://statistics.data.gov.uk/id/local-authority/00ML,Adult Social Care,BVASOC,S Svcs - Mental Health,MHT,Third Party Payments,F,Other Establishments,FH,15/06/2012,PAY00483742,2441.32,Revenue,Brighton and Sussex Care Ltd
Brighton & Hove City Council,http://statistics.data.gov.uk/id/local-authority/00ML,Adult Social Care,BVASOC,S Svcs - Learning Disability,LDY,Third Party Payments,F,Other Establishments,FH,27/06/2012,PAY00486120,1516.57,Revenue,Brighton and Sussex Care Ltd
Brighton & Hove City Council,http://statistics.data.gov.uk/id/local-authority/00ML,Non SERCOP,BVANON,Non-Council,NNC,Third Party Payments,F,Other Establishments,FH,07/06/2012,PAY00481248,14204.9,Revenue,Brighton BID Limited
Brighton & Hove City Council,http://statistics.data.gov.uk/id/local-authority/00ML,Planning Services,BVAPLA,Economic Development,ECD,Supplies and Services,E,Miscellaneous Expenses,EM,20/06/2012,PAY00484108,1640,Revenue,Brighton BID Limited
Brighton & Hove City Council,http://statistics.data.gov.uk/id/local-authority/00ML,Education Services,BVAEDU,Ed - Mgmt & Support Services,EMG,Premises Related,C,Rents Payable,CC,20/06/2012,PAY00484048,1200,Revenue,Brighton College Services Ltd
Brighton & Hove City Council,http://statistics.data.gov.uk/id/local-authority/00ML,Cultural and Related Services,BVACUL,Culture & Heritage,CHG,Third Party Payments,F,Other Establishments,FH,01/06/2012,PAY00479798,177238,Revenue,Brighton Dome & Festival Ltd
Brighton & Hove City Council,http://statistics.data.gov.uk/id/local-authority/00ML,Cultural and Related Services,BVACUL,Culture & Heritage,CHG,Premises Related,C,Energy Costs,CB,07/06/2012,PAY00481110,4402.81,Revenue,Brighton Dome & Festival Ltd
Brighton & Hove City Council,http://statistics.data.gov.uk/id/local-authority/00ML,Cultural and Related Services,BVACUL,Culture & Heritage,CHG,Third Party Payments,F,Other Establishments,FH,29/06/2012,PAY00486448,212263,Revenue,Brighton Dome & Festival Ltd
Brighton & Hove City Council,http://statistics.data.gov.uk/id/local-authority/00ML,Adult Social Care,BVASOC,S Svcs - Mental Health,MHT,Customer n Client Receipts,M,Fees n Charges,MB,01/06/2012,PAY00480011,-676.8,Revenue,Brighton Housing Trust
Brighton & Hove City Council,http://statistics.data.gov.uk/id/local-authority/00ML,Adult Social Care,BVASOC,S Svcs - Mental Health,MHT,Third Party Payments,F,Other Establishments,FH,01/06/2012,PAY00480011,14488,Revenue,Brighton Housing Trust
Brighton & Hove City Council,http://statistics.data.gov.uk/id/local-authority/00ML,Adult Social Care,BVASOC,S Svcs - Older People Svcs,PPL,Customer n Client Receipts,M,Fees n Charges,MB,01/06/2012,PAY00480011,-476.8,Revenue,Brighton Housing Trust
Brighton & Hove City Council,http://statistics.data.gov.uk/id/local-authority/00ML,Adult Social Care,BVASOC,S Svcs - Older People Svcs,PPL,Third Party Payments,F,Other Establishments,FH,01/06/2012,PAY00480011,1212,Revenue,Brighton Housing Trust
Brighton & Hove City Council,http://statistics.data.gov.uk/id/local-authority/00ML,Housing Services General Fund,BVAHOG,Homelessness,HML,Indirect Employees,B,Training,BM,01/06/2012,PAY00480011,145,Revenue,Brighton Housing Trust
Brighton & Hove City Council,http://statistics.data.gov.uk/id/local-authority/00ML,Housing Services General Fund,BVAHOG,Hsing Welfare,HGW,Transfer Payments,G,Supporting People,GF,01/06/2012,PAY00480011,194509,Revenue,Brighton Housing Trust
Brighton & Hove City Council,http://statistics.data.gov.uk/id/local-authority/00ML,Adult Social Care,BVASOC,S Svcs - Mental Health,MHT,Third Party Payments,F,Other Establishments,FH,13/06/2012,PAY00482633,4335,Revenue,Brighton Housing Trust
Brighton & Hove City Council,http://statistics.data.gov.uk/id/local-authority/00ML,Adult Social Care,BVASOC,S Svcs - Mental Health,MHT,Indirect Employees,B,Training,BM,20/06/2012,PAY00484130,700,Revenue,Brighton Housing Trust
Brighton & Hove City Council,http://statistics.data.gov.uk/id/local-authority/00ML,Cultural and Related Services,BVACUL,Open Spaces,PEN,Third Party Payments,F,Private Contractors,FJ,20/06/2012,PAY00484130,66.96,Revenue,Brighton Housing Trust
Brighton & Hove City Council,http://statistics.data.gov.uk/id/local-authority/00ML,Non SERCOP,BVANON,Trusts,TRT,Supplies and Services,E,Grants n Subscriptions,EK,21/06/2012,PAY492303,714.86,Revenue,Brighton Housing Trust
Brighton & Hove City Council,http://statistics.data.gov.uk/id/local-authority/00ML,Housing Services General Fund,BVAHOG,Hsing Welfare,HGW,Transfer Payments,G,Supporting People,GF,29/06/2012,PAY00486639,194509,Revenue,Brighton Housing Trust
Brighton & Hove City Council,http://statistics.data.gov.uk/id/local-authority/00ML,Education Services,BVAEDU,Ed - Mgmt & Support Services,EMG,Supplies and Services,E,Miscellaneous Expenses,EM,01/06/2012,PAY00480009,500,Revenue,Brighton Piano Warehouse
Brighton & Hove City Council,http://statistics.data.gov.uk/id/local-authority/00ML,Adult Social Care,BVASOC,S Svcs - Learning Disability,LDY,Indirect Employees,B,Training,BM,20/06/2012,PAY00483972,30,Revenue,Brighton Quaker Meeting
Brighton & Hove City Council,http://statistics.data.gov.uk/id/local-authority/00ML,Housing Services General Fund,BVAHOG,Hsing Strat Advice and RSLs,HGR,Supplies and Services,E,Miscellaneous Expenses,EM,20/06/2012,PAY00483972,595.2,Revenue,Brighton Quaker Meeting
Brighton & Hove City Council,http://statistics.data.gov.uk/id/local-authority/00ML,Children�s Social Care,BVACSC,Child Srvcs - Other Fam Supp,FFX,Premises Related,C,Rents Payable,CC,27/06/2012,PAY00485570,462,Revenue,Brighton Quaker Meeting
Brighton & Hove City Council,http://statistics.data.gov.uk/id/local-authority/00ML,Non SERCOP,BVANON,Cap - Transport,4TR,New Construction n Conversion,PB,Level not required,NR5026,27/06/2012,PAY00485570,232,Capital,Brighton Quaker Meeting
Brighton & Hove City Council,http://statistics.data.gov.uk/id/local-authority/00ML,Cultural and Related Services,BVACUL,Open Spaces,PEN,Third Party Payments,F,Private Contractors,FJ,13/06/2012,PAY00482852,828.55,Revenue,Brighton Temptation
Brighton & Hove City Council,http://statistics.data.gov.uk/id/local-authority/00ML,Planning Services,BVAPLA,Economic Development,ECD,Supplies and Services,E,Grants n Subscriptions,EK,13/06/2012,PAY00482870,1000,Revenue,Brighton Welsh Male Voice Choir
Brighton & Hove City Council,http://statistics.data.gov.uk/id/local-authority/00ML,Housing Services General Fund,BVAHOG,Hsing Welfare,HGW,Transfer Payments,G,Supporting People,GF,01/06/2012,PAY00479782,54933.17,Revenue,Brighton YMCA
Brighton & Hove City Council,http://statistics.data.gov.uk/id/local-authority/00ML,Housing Services General Fund,BVAHOG,Hsing Welfare,HGW,Transfer Payments,G,Supporting People,GF,29/06/2012,PAY00486437,54933.17,Revenue,Brighton YMCA
Brighton & Hove City Council,http://statistics.data.gov.uk/id/local-authority/00ML,Planning Services,BVAPLA,Economic Development,ECD,Supplies and Services,E,Grants n Subscriptions,EK,13/06/2012,PAY00483006,1000,Revenue,Brightonshed
Brighton & Hove City Council,http://statistics.data.gov.uk/id/local-authority/00ML,Central Services To The Public,BVACEN,Support Services (SSC),PPT,Indirect Employees,B,Training,BM,20/06/2012,PAY00484269,2250,Revenue,Brightstone Consulting Ltd
Brighton & Hove City Council,http://statistics.data.gov.uk/id/local-authority/00ML,Central Services To The Public,BVACEN,Support Services (SSC),PPT,Indirect Employees,B,Training,BM,22/06/2012,PAY00485117,7244.49,Revenue,Brightstone Consulting Ltd
Brighton & Hove City Council,http://statistics.data.gov.uk/id/local-authority/00ML,Housing Services Revnue Acc,BVAHOU,Hsing Management - HRA,HGM,Indirect Employees,B,Training,BM,22/06/2012,PAY00485117,4568.77,Revenue,Brightstone Consulting Ltd
Brighton & Hove City Council,http://statistics.data.gov.uk/id/local-authority/00ML,Non SERCOP,BVANON,Cap - Education Services,4ED,New Construction n Conversion,PB,Level not required,NR5026,01/06/2012,PAY00480673,25107.94,Capital,British Gas Business
Brighton & Hove City Council,http://statistics.data.gov.uk/id/local-authority/00ML,Planning Services,BVAPLA,Economic Development,ECD,Premises Related,C,Energy Costs,CB,08/06/2012,PAY00481797,2323.9,Revenue,British Gas Business
Brighton & Hove City Council,http://statistics.data.gov.uk/id/local-authority/00ML,Housing Services Revnue Acc,BVAHOU,Hsing Management - HRA,HGM,Premises Related,C,Energy Costs,CB,22/06/2012,PAY00484662,4591.96,Revenue,British Gas Business
Brighton & Hove City Council,http://statistics.data.gov.uk/id/local-authority/00ML,Highways and Transportation,BVAHRT,Highways and Roads - Mntnce,HRM,Supplies and Services,E,Communications n Computing,EH,07/06/2012,PAY00481390,1159.15,Revenue,British Telecommunications Plc
Brighton & Hove City Council,http://statistics.data.gov.uk/id/local-authority/00ML,Adult Social Care,BVASOC,S Svcs - Learning Disability,LDY,Supplies and Services,E,Communications n Computing,EH,20/06/2012,PAY00484213,50.57,Revenue,British Telecommunications Plc
Brighton & Hove City Council,http://statistics.data.gov.uk/id/local-authority/00ML,Highways and Transportation,BVAHRT,Highways and Roads - Mntnce,HRM,Supplies and Services,E,Communications n Computing,EH,20/06/2012,PAY00484213,3862.25,Revenue,British Telecommunications Plc
Brighton & Hove City Council,http://statistics.data.gov.uk/id/local-authority/00ML,Cultural and Related Services,BVACUL,Open Spaces,PEN,Supplies and Services,E,Equip't Furniture n Materials,EA,13/06/2012,PAY00482627,572,Revenue,Broxap Ltd
Brighton & Hove City Council,http://statistics.data.gov.uk/id/local-authority/00ML,Environment and Regulatory Ser,BVAERS,Management Services (DEC),MGT,Supplies and Services,E,Services,EF,01/06/2012,PAY00479771,1656,Revenue,BSI Management Systems
Brighton & Hove City Council,http://statistics.data.gov.uk/id/local-authority/00ML,Planning Services,BVAPLA,Building Control,BLD,Supplies and Services,E,Grants n Subscriptions,EK,29/06/2012,PAY00486429,519,Revenue,BSI Management Systems
Brighton & Hove City Council,http://statistics.data.gov.uk/id/local-authority/00ML,Central Services To The Public,BVACEN,Support Services (SSC),PPT,Supplies and Services,E,Communications n Computing,EH,01/06/2012,PAY00480793,7209.15,Revenue,BT iNet
Brighton & Hove City Council,http://statistics.data.gov.uk/id/local-authority/00ML,Education Services,BVAEDU,Ed - Secondary Ed,EJE,Supplies and Services,E,Services,EF,22/06/2012,PAY00484731,248570.04,Revenue,Bton & Hove City Schools Services Ltd
Brighton & Hove City Council,http://statistics.data.gov.uk/id/local-authority/00ML,Education Services,BVAEDU,Ed - Secondary Ed,EJE,Supplies and Services,E,Services,EF,27/06/2012,PAY00485646,-3236.68,Revenue,Bton & Hove City Schools Services Ltd
Brighton & Hove City Council,http://statistics.data.gov.uk/id/local-authority/00ML,Non SERCOP,BVANON,Cap - Education Services,4ED,New Construction n Conversion,PB,Level not required,NR5026,27/06/2012,PAY00485646,11389.83,Capital,Bton & Hove City Schools Services Ltd
Brighton & Hove City Council,http://statistics.data.gov.uk/id/local-authority/00ML,Adult Social Care,BVASOC,S Svcs - Learning Disability,LDY,Indirect Employees,B,Misc Employee Costs,BP,27/06/2012,PAY00485562,200,Revenue,Bton & Hove Unwaged Advice & Rights Centre
Brighton & Hove City Council,http://statistics.data.gov.uk/id/local-authority/00ML,Central Services To The Public,BVACEN,Support Services (SSC),PPT,Supplies and Services,E,Services,EF,27/06/2012,PAY00485562,1200,Revenue,Bton & Hove Unwaged Advice & Rights Centre
Brighton & Hove City Council,http://statistics.data.gov.uk/id/local-authority/00ML,Environment and Regulatory Ser,BVAERS,Management Services (DEC),MGT,Transport Related,D,Direct Transport Costs,DA,07/06/2012,PAY00481117,427.5,Revenue,BTR Brakes (Sussex) Ltd
Brighton & Hove City Council,http://statistics.data.gov.uk/id/local-authority/00ML,Environment and Regulatory Ser,BVAERS,Management Services (DEC),MGT,Transport Related,D,Direct Transport Costs,DA,15/06/2012,PAY00483120,1023.88,Revenue,BTR Brakes (Sussex) Ltd
Brighton & Hove City Council,http://statistics.data.gov.uk/id/local-authority/00ML,Highways and Transportation,BVAHRT,Traffic Mgmnt and Road Safety,TMR,Premises Related,C,Repair Maint n Alterations,CA,29/06/2012,PAY00486871,1000,Revenue,Buckinghamshire County Council
Brighton & Hove City Council,http://statistics.data.gov.uk/id/local-authority/00ML,Central Services To The Public,BVACEN,Support Services (SSC),PPT,Supplies and Services,E,Communications n Computing,EH,07/06/2012,PAY00481264,600,Revenue,Building Research Establishment Ltd
Brighton & Hove City Council,http://statistics.data.gov.uk/id/local-authority/00ML,Adult Social Care,BVASOC,S Svcs - Older People Svcs,PPL,Customer n Client Receipts,M,Fees n Charges,MB,01/06/2012,PAY00480273,-5733.59,Revenue,BUPA Care Services
Brighton & Hove City Council,http://statistics.data.gov.uk/id/local-authority/00ML,Adult Social Care,BVASOC,S Svcs - Older People Svcs,PPL,Third Party Payments,F,Other Establishments,FH,01/06/2012,PAY00480273,18039.71,Revenue,BUPA Care Services
Brighton & Hove City Council,http://statistics.data.gov.uk/id/local-authority/00ML,Adult Social Care,BVASOC,S Svcs - Older People Svcs,PPL,Customer n Client Receipts,M,Fees n Charges,MB,15/06/2012,PAY00483473,-439.19,Revenue,BUPA Care Services
Brighton & Hove City Council,http://statistics.data.gov.uk/id/local-authority/00ML,Adult Social Care,BVASOC,S Svcs - Older People Svcs,PPL,Third Party Payments,F,Other Establishments,FH,15/06/2012,PAY00483473,3109.34,Revenue,BUPA Care Services
Brighton & Hove City Council,http://statistics.data.gov.uk/id/local-authority/00ML,Adult Social Care,BVASOC,S Svcs - Older People Svcs,PPL,Customer n Client Receipts,M,Fees n Charges,MB,27/06/2012,PAY00485866,-1103.36,Revenue,Bupa Nursing Homes Ltd
Brighton & Hove City Council,http://statistics.data.gov.uk/id/local-authority/00ML,Adult Social Care,BVASOC,S Svcs - Older People Svcs,PPL,Third Party Payments,F,Other Establishments,FH,27/06/2012,PAY00485866,4049.8,Revenue,Bupa Nursing Homes Ltd
Brighton & Hove City Council,http://statistics.data.gov.uk/id/local-authority/00ML,Cultural and Related Services,BVACUL,Culture & Heritage,CHG,Premises Related,C,Cleaning n Domestic Supps,CH,27/06/2012,PAY00485756,325.2,Revenue,Burlington Uniforms Limited
Brighton & Hove City Council,http://statistics.data.gov.uk/id/local-authority/00ML,Cultural and Related Services,BVACUL,Library Service,LBR,Supplies and Services,E,Clothing Uniforms n Laundry,EC,27/06/2012,PAY00485756,198.8,Revenue,Burlington Uniforms Limited
Brighton & Hove City Council,http://statistics.data.gov.uk/id/local-authority/00ML,Adult Social Care,BVASOC,S Svcs - Older People Svcs,PPL,Customer n Client Receipts,M,Fees n Charges,MB,01/06/2012,PAY00480667,-3867.4,Revenue,Bybuckle Court
Brighton & Hove City Council,http://statistics.data.gov.uk/id/local-authority/00ML,Adult Social Care,BVASOC,S Svcs - Older People Svcs,PPL,Third Party Payments,F,Other Establishments,FH,01/06/2012,PAY00480667,7666.71,Revenue,Bybuckle Court
Brighton & Hove City Council,http://statistics.data.gov.uk/id/local-authority/00ML,Children�s Social Care,BVACSC,Child Srvcs - Yth Offender Tm,FYY,Supplies and Services,E,Miscellaneous Expenses,EM,27/06/2012,PAY00485757,-24.56,Revenue,C Brewer & Sons Ltd
Brighton & Hove City Council,http://statistics.data.gov.uk/id/local-authority/00ML,Housing Services Revnue Acc,BVAHOU,Hsing Management - HRA,HGM,Premises Related,C,Repair Maint n Alterations,CA,27/06/2012,PAY00485757,841.81,Revenue,C Brewer & Sons Ltd
Brighton & Hove City Council,http://statistics.data.gov.uk/id/local-authority/00ML,Non SERCOP,BVANON,Cap - Social Services,4RV,New Construction n Conversion,PB,Level not required,NR5026,27/06/2012,PAY00485757,181.59,Capital,C Brewer & Sons Ltd
Brighton & Hove City Council,http://statistics.data.gov.uk/id/local-authority/00ML,Environment and Regulatory Ser,BVAERS,Flood Drainage and Coast Prtn,FDC,Premises Related,C,Repair Maint n Alterations,CA,13/06/2012,PAY00482704,20236.24,Revenue,C J Thorne & Co Ltd
Brighton & Hove City Council,http://statistics.data.gov.uk/id/local-authority/00ML,Highways and Transportation,BVAHRT,Highways and Roads - Mntnce,HRM,Premises Related,C,Repair Maint n Alterations,CA,13/06/2012,PAY00482704,12342.78,Revenue,C J Thorne & Co Ltd
Brighton & Hove City Council,http://statistics.data.gov.uk/id/local-authority/00ML,Housing Services General Fund,BVAHOG,Homelessness,HML,Premises Related,C,Rents Payable,CC,01/06/2012,PAY00480427,520,Revenue,C V Howard Investments Ltd
Brighton & Hove City Council,http://statistics.data.gov.uk/id/local-authority/00ML,Housing Services General Fund,BVAHOG,Homelessness,HML,Premises Related,C,Rents Payable,CC,08/06/2012,PAY00482174,980,Revenue,C V Howard Investments Ltd
Brighton & Hove City Council,http://statistics.data.gov.uk/id/local-authority/00ML,Adult Social Care,BVASOC,S Svcs - Learning Disability,LDY,Customer n Client Receipts,M,Fees n Charges,MB,07/06/2012,PAY00481103,-261,Revenue,Caburn Support Services
Brighton & Hove City Council,http://statistics.data.gov.uk/id/local-authority/00ML,Adult Social Care,BVASOC,S Svcs - Learning Disability,LDY,Third Party Payments,F,Other Establishments,FH,07/06/2012,PAY00481103,5393.75,Revenue,Caburn Support Services
Brighton & Hove City Council,http://statistics.data.gov.uk/id/local-authority/00ML,Adult Social Care,BVASOC,S Svcs - Mental Health,MHT,Customer n Client Receipts,M,Fees n Charges,MB,07/06/2012,PAY00481103,-37,Revenue,Caburn Support Services
Brighton & Hove City Council,http://statistics.data.gov.uk/id/local-authority/00ML,Adult Social Care,BVASOC,S Svcs - Mental Health,MHT,Third Party Payments,F,Other Establishments,FH,07/06/2012,PAY00481103,62,Revenue,Caburn Support Services
Brighton & Hove City Council,http://statistics.data.gov.uk/id/local-authority/00ML,Adult Social Care,BVASOC,S Svcs - Learning Disability,LDY,Customer n Client Receipts,M,Fees n Charges,MB,13/06/2012,PAY00482486,-261,Revenue,Caburn Support Services
Brighton & Hove City Council,http://statistics.data.gov.uk/id/local-authority/00ML,Adult Social Care,BVASOC,S Svcs - Learning Disability,LDY,Third Party Payments,F,Other Establishments,FH,13/06/2012,PAY00482486,5116.95,Revenue,Caburn Support Services
Brighton & Hove City Council,http://statistics.data.gov.uk/id/local-authority/00ML,Adult Social Care,BVASOC,S Svcs - Learning Disability,LDY,Customer n Client Receipts,M,Fees n Charges,MB,20/06/2012,PAY00483951,-261,Revenue,Caburn Support Services
Brighton & Hove City Council,http://statistics.data.gov.uk/id/local-authority/00ML,Adult Social Care,BVASOC,S Svcs - Learning Disability,LDY,Third Party Payments,F,Other Establishments,FH,20/06/2012,PAY00483951,4933.66,Revenue,Caburn Support Services
Brighton & Hove City Council,http://statistics.data.gov.uk/id/local-authority/00ML,Adult Social Care,BVASOC,S Svcs - Mental Health,MHT,Customer n Client Receipts,M,Fees n Charges,MB,20/06/2012,PAY00483951,-37,Revenue,Caburn Support Services
Brighton & Hove City Council,http://statistics.data.gov.uk/id/local-authority/00ML,Adult Social Care,BVASOC,S Svcs - Mental Health,MHT,Third Party Payments,F,Other Establishments,FH,20/06/2012,PAY00483951,62,Revenue,Caburn Support Services
Brighton & Hove City Council,http://statistics.data.gov.uk/id/local-authority/00ML,Children�s Social Care,BVACSC,Child Srvcs - Other Fam Supp,FFX,Transfer Payments,G,Other Transfer Payments,GD,20/06/2012,PAY00483951,855,Revenue,Caburn Support Services
Brighton & Hove City Council,http://statistics.data.gov.uk/id/local-authority/00ML,Adult Social Care,BVASOC,S Svcs - Learning Disability,LDY,Customer n Client Receipts,M,Fees n Charges,MB,27/06/2012,PAY00485544,-261,Revenue,Caburn Support Services
Brighton & Hove City Council,http://statistics.data.gov.uk/id/local-authority/00ML,Adult Social Care,BVASOC,S Svcs - Learning Disability,LDY,Third Party Payments,F,Other Establishments,FH,27/06/2012,PAY00485544,5154.91,Revenue,Caburn Support Services
Brighton & Hove City Council,http://statistics.data.gov.uk/id/local-authority/00ML,Highways and Transportation,BVAHRT,Parking Services,PRK,Supplies and Services,E,Communications n Computing,EH,07/06/2012,PAY00481550,1337,Revenue,Cadpoint Limited
Brighton & Hove City Council,http://statistics.data.gov.uk/id/local-authority/00ML,Children�s Social Care,BVACSC,Child Srvcs - Residential Svcs,FLR,Third Party Payments,F,Other Establishments,FH,27/06/2012,PAY00485532,14310.8,Revenue,Caldecott Foundation
Brighton & Hove City Council,http://statistics.data.gov.uk/id/local-authority/00ML,Cultural and Related Services,BVACUL,Management Services (DEC),MGT,Transport Related,D,Direct Transport Costs,DA,01/06/2012,PAY00480205,561.95,Revenue,Camberley Auto Factors Ltd
Brighton & Hove City Council,http://statistics.data.gov.uk/id/local-authority/00ML,Environment and Regulatory Ser,BVAERS,Management Services (DEC),MGT,Supplies and Services,E,Equip't Furniture n Materials,EA,01/06/2012,PAY00480205,375.55,Revenue,Camberley Auto Factors Ltd
Brighton & Hove City Council,http://statistics.data.gov.uk/id/local-authority/00ML,Environment and Regulatory Ser,BVAERS,Management Services (DEC),MGT,Transport Related,D,Direct Transport Costs,DA,01/06/2012,PAY00480205,60,Revenue,Camberley Auto Factors Ltd
Brighton & Hove City Council,http://statistics.data.gov.uk/id/local-authority/00ML,Adult Social Care,BVASOC,S Svcs - Learning Disability,LDY,Third Party Payments,F,Other Establishments,FH,27/06/2012,PAY00485846,46630.2,Revenue,Cambian Autism Services Ltd
Brighton & Hove City Council,http://statistics.data.gov.uk/id/local-authority/00ML,Adult Social Care,BVASOC,S Svcs - Older People Svcs,PPL,Customer n Client Receipts,M,Fees n Charges,MB,01/06/2012,PAY00479708,-2209.12,Revenue,Camelot Nursing Home
Brighton & Hove City Council,http://statistics.data.gov.uk/id/local-authority/00ML,Adult Social Care,BVASOC,S Svcs - Older People Svcs,PPL,Third Party Payments,F,Other Establishments,FH,01/06/2012,PAY00479708,6652.8,Revenue,Camelot Nursing Home
Brighton & Hove City Council,http://statistics.data.gov.uk/id/local-authority/00ML,Adult Social Care,BVASOC,S Svcs - Learning Disability,LDY,Customer n Client Receipts,M,Fees n Charges,MB,07/06/2012,PAY00481045,-311.4,Revenue,Canterbury Oast Trust Ltd
Brighton & Hove City Council,http://statistics.data.gov.uk/id/local-authority/00ML,Adult Social Care,BVASOC,S Svcs - Learning Disability,LDY,Third Party Payments,F,Other Establishments,FH,07/06/2012,PAY00481045,6363,Revenue,Canterbury Oast Trust Ltd
Brighton & Hove City Council,http://statistics.data.gov.uk/id/local-authority/00ML,Central Services To The Public,BVACEN,Support Services (SSC),PPT,Supplies and Services,E,Communications n Computing,EH,01/06/2012,PAY00480006,6490,Revenue,Capita Business Services Ltd
Brighton & Hove City Council,http://statistics.data.gov.uk/id/local-authority/00ML,Central Services To The Public,BVACEN,Support Services (SSC),PPT,Supplies and Services,E,Communications n Computing,EH,22/06/2012,PAY00484786,559.5,Revenue,Capita Business Services Ltd
Brighton & Hove City Council,http://statistics.data.gov.uk/id/local-authority/00ML,Education Services,BVAEDU,Ed - Ed Other - Other,ENF,Premises Related,C,Cleaning n Domestic Supps,CH,01/06/2012,PAY00479755,2256.8,Revenue,Capital Hygiene/Capital Cleaning
Brighton & Hove City Council,http://statistics.data.gov.uk/id/local-authority/00ML,Cultural and Related Services,BVACUL,Recreation and sport,REC,Premises Related,C,Cleaning n Domestic Supps,CH,15/06/2012,PAY00483103,285,Revenue,Capricorn Signs
Brighton & Hove City Council,http://statistics.data.gov.uk/id/local-authority/00ML,Cultural and Related Services,BVACUL,Recreation and sport,REC,Supplies and Services,E,Highways,EN,15/06/2012,PAY00483103,330,Revenue,Capricorn Signs
Brighton & Hove City Council,http://statistics.data.gov.uk/id/local-authority/00ML,Children�s Social Care,BVACSC,Child Srvcs - Fostering,FLF,Third Party Payments,F,Other Establishments,FH,27/06/2012,PAY00486052,15912,Revenue,Capstone Vision Foster Care Ltd
Brighton & Hove City Council,http://statistics.data.gov.uk/id/local-authority/00ML,Children�s Social Care,BVACSC,Child Srvcs - Other Fam Supp,FFX,Direct Employees,A,Salaries,AA,27/06/2012,PAY00486052,661.68,Revenue,Capstone Vision Foster Care Ltd
Brighton & Hove City Council,http://statistics.data.gov.uk/id/local-authority/00ML,Adult Social Care,BVASOC,Management Services (DEC),MGT,Indirect Employees,B,Training,BM,27/06/2012,PAY00486193,750,Revenue,Care and Health Solutions
Brighton & Hove City Council,http://statistics.data.gov.uk/id/local-authority/00ML,Housing Services General Fund,BVAHOG,Hsing Welfare,HGW,Transfer Payments,G,Supporting People,GF,01/06/2012,PAY00479775,5774,Revenue,Care Co-operatives Ltd
Brighton & Hove City Council,http://statistics.data.gov.uk/id/local-authority/00ML,Adult Social Care,BVASOC,S Svcs - Learning Disability,LDY,Third Party Payments,F,Other Establishments,FH,20/06/2012,PAY00483945,6111.84,Revenue,Care Co-operatives Ltd
Brighton & Hove City Council,http://statistics.data.gov.uk/id/local-authority/00ML,Adult Social Care,BVASOC,S Svcs - Mental Health,MHT,Third Party Payments,F,Other Establishments,FH,20/06/2012,PAY00483945,1851.6,Revenue,Care Co-operatives Ltd
Brighton & Hove City Council,http://statistics.data.gov.uk/id/local-authority/00ML,Adult Social Care,BVASOC,S Svcs - Mental Health,MHT,Third Party Payments,F,Other Establishments,FH,22/06/2012,PAY00484656,22323.25,Revenue,Care Co-operatives Ltd
Brighton & Hove City Council,http://statistics.data.gov.uk/id/local-authority/00ML,Adult Social Care,BVASOC,S Svcs - Mental Health,MHT,Third Party Payments,F,Other Establishments,FH,27/06/2012,PAY00485539,5426,Revenue,Care Co-operatives Ltd
Brighton & Hove City Council,http://statistics.data.gov.uk/id/local-authority/00ML,Housing Services General Fund,BVAHOG,Hsing Welfare,HGW,Transfer Payments,G,Supporting People,GF,29/06/2012,PAY00486432,5774,Revenue,Care Co-operatives Ltd
Brighton & Hove City Council,http://statistics.data.gov.uk/id/local-authority/00ML,Adult Social Care,BVASOC,S Svcs - Older People Svcs,PPL,Supplies and Services,E,Communications n Computing,EH,22/06/2012,PAY00485189,12365.2,Revenue,Care Monitoring 2000 Ltd
Brighton & Hove City Council,http://statistics.data.gov.uk/id/local-authority/00ML,Adult Social Care,BVASOC,S Svcs - Older People Svcs,PPL,Third Party Payments,F,Other Establishments,FH,22/06/2012,PAY00485187,4358,Revenue,Care Outlook
Brighton & Hove City Council,http://statistics.data.gov.uk/id/local-authority/00ML,Adult Social Care,BVASOC,S Svcs - Mental Health,MHT,Customer n Client Receipts,M,Fees n Charges,MB,29/06/2012,PAY00487178,-264,Revenue,Care Outlook
Brighton & Hove City Council,http://statistics.data.gov.uk/id/local-authority/00ML,Adult Social Care,BVASOC,S Svcs - Mental Health,MHT,Third Party Payments,F,Other Establishments,FH,29/06/2012,PAY00487178,801.28,Revenue,Care Outlook
Brighton & Hove City Council,http://statistics.data.gov.uk/id/local-authority/00ML,Adult Social Care,BVASOC,S Svcs - Older People Svcs,PPL,Customer n Client Receipts,M,Fees n Charges,MB,29/06/2012,PAY00487178,-2854,Revenue,Care Outlook
Brighton & Hove City Council,http://statistics.data.gov.uk/id/local-authority/00ML,Adult Social Care,BVASOC,S Svcs - Older People Svcs,PPL,Third Party Payments,F,Other Establishments,FH,29/06/2012,PAY00487178,19497.7,Revenue,Care Outlook
Brighton & Hove City Council,http://statistics.data.gov.uk/id/local-authority/00ML,Adult Social Care,BVASOC,S Svcs - Other Adult Services,ADT,Third Party Payments,F,Other Establishments,FH,29/06/2012,PAY00487178,180.13,Revenue,Care Outlook
Brighton & Hove City Council,http://statistics.data.gov.uk/id/local-authority/00ML,Adult Social Care,BVASOC,S Svcs - Older People Svcs,PPL,Customer n Client Receipts,M,Fees n Charges,MB,01/06/2012,PAY00479797,-1605.32,Revenue,Care UK Community Partnerships Ltd
Brighton & Hove City Council,http://statistics.data.gov.uk/id/local-authority/00ML,Adult Social Care,BVASOC,S Svcs - Older People Svcs,PPL,Third Party Payments,F,Other Establishments,FH,01/06/2012,PAY00479797,12316.8,Revenue,Care UK Community Partnerships Ltd
Brighton & Hove City Council,http://statistics.data.gov.uk/id/local-authority/00ML,Adult Social Care,BVASOC,S Svcs - Older People Svcs,PPL,Customer n Client Receipts,M,Fees n Charges,MB,01/06/2012,PAY00479844,-506,Revenue,Care UK Homecare
Brighton & Hove City Council,http://statistics.data.gov.uk/id/local-authority/00ML,Adult Social Care,BVASOC,S Svcs - Older People Svcs,PPL,Third Party Payments,F,Other Establishments,FH,01/06/2012,PAY00479844,2593.12,Revenue,Care UK Homecare
Brighton & Hove City Council,http://statistics.data.gov.uk/id/local-authority/00ML,Adult Social Care,BVASOC,S Svcs - Physical Disability,PDY,Customer n Client Receipts,M,Fees n Charges,MB,01/06/2012,PAY00479844,-144,Revenue,Care UK Homecare
Brighton & Hove City Council,http://statistics.data.gov.uk/id/local-authority/00ML,Adult Social Care,BVASOC,S Svcs - Physical Disability,PDY,Third Party Payments,F,Other Establishments,FH,01/06/2012,PAY00479844,10144.08,Revenue,Care UK Homecare
Brighton & Hove City Council,http://statistics.data.gov.uk/id/local-authority/00ML,Adult Social Care,BVASOC,S Svcs - Mental Health,MHT,Customer n Client Receipts,M,Fees n Charges,MB,07/06/2012,PAY00481148,-75.6,Revenue,Care UK Homecare
Brighton & Hove City Council,http://statistics.data.gov.uk/id/local-authority/00ML,Adult Social Care,BVASOC,S Svcs - Mental Health,MHT,Third Party Payments,F,Other Establishments,FH,07/06/2012,PAY00481148,88.7,Revenue,Care UK Homecare
Brighton & Hove City Council,http://statistics.data.gov.uk/id/local-authority/00ML,Adult Social Care,BVASOC,S Svcs - Older People Svcs,PPL,Customer n Client Receipts,M,Fees n Charges,MB,07/06/2012,PAY00481148,-1288.12,Revenue,Care UK Homecare
Brighton & Hove City Council,http://statistics.data.gov.uk/id/local-authority/00ML,Adult Social Care,BVASOC,S Svcs - Older People Svcs,PPL,Third Party Payments,F,Other Establishments,FH,07/06/2012,PAY00481148,7317.68,Revenue,Care UK Homecare
Brighton & Hove City Council,http://statistics.data.gov.uk/id/local-authority/00ML,Adult Social Care,BVASOC,S Svcs - Physical Disability,PDY,Customer n Client Receipts,M,Fees n Charges,MB,07/06/2012,PAY00481148,-112.2,Revenue,Care UK Homecare
Brighton & Hove City Council,http://statistics.data.gov.uk/id/local-authority/00ML,Adult Social Care,BVASOC,S Svcs - Physical Disability,PDY,Third Party Payments,F,Other Establishments,FH,07/06/2012,PAY00481148,746.51,Revenue,Care UK Homecare
Brighton & Hove City Council,http://statistics.data.gov.uk/id/local-authority/00ML,Adult Social Care,BVASOC,S Svcs - Older People Svcs,PPL,Customer n Client Receipts,M,Fees n Charges,MB,20/06/2012,PAY00483991,310.7,Revenue,Care UK Homecare
Brighton & Hove City Council,http://statistics.data.gov.uk/id/local-authority/00ML,Adult Social Care,BVASOC,S Svcs - Older People Svcs,PPL,Third Party Payments,F,Other Establishments,FH,20/06/2012,PAY00483991,7524.46,Revenue,Care UK Homecare
Brighton & Hove City Council,http://statistics.data.gov.uk/id/local-authority/00ML,Adult Social Care,BVASOC,S Svcs - Physical Disability,PDY,Customer n Client Receipts,M,Fees n Charges,MB,20/06/2012,PAY00483991,-96,Revenue,Care UK Homecare
Brighton & Hove City Council,http://statistics.data.gov.uk/id/local-authority/00ML,Adult Social Care,BVASOC,S Svcs - Physical Disability,PDY,Third Party Payments,F,Other Establishments,FH,20/06/2012,PAY00483991,779.79,Revenue,Care UK Homecare
Brighton & Hove City Council,http://statistics.data.gov.uk/id/local-authority/00ML,Adult Social Care,BVASOC,S Svcs - Mental Health,MHT,Third Party Payments,F,Other Establishments,FH,22/06/2012,PAY00484708,7.25,Revenue,Care UK Homecare
Brighton & Hove City Council,http://statistics.data.gov.uk/id/local-authority/00ML,Adult Social Care,BVASOC,S Svcs - Older People Svcs,PPL,Customer n Client Receipts,M,Fees n Charges,MB,22/06/2012,PAY00484708,-992,Revenue,Care UK Homecare
Brighton & Hove City Council,http://statistics.data.gov.uk/id/local-authority/00ML,Adult Social Care,BVASOC,S Svcs - Older People Svcs,PPL,Third Party Payments,F,Other Establishments,FH,22/06/2012,PAY00484708,10134.42,Revenue,Care UK Homecare
Brighton & Hove City Council,http://statistics.data.gov.uk/id/local-authority/00ML,Adult Social Care,BVASOC,S Svcs - Physical Disability,PDY,Customer n Client Receipts,M,Fees n Charges,MB,22/06/2012,PAY00484708,-72,Revenue,Care UK Homecare
Brighton & Hove City Council,http://statistics.data.gov.uk/id/local-authority/00ML,Adult Social Care,BVASOC,S Svcs - Physical Disability,PDY,Third Party Payments,F,Other Establishments,FH,22/06/2012,PAY00484708,1045.14,Revenue,Care UK Homecare
Brighton & Hove City Council,http://statistics.data.gov.uk/id/local-authority/00ML,Adult Social Care,BVASOC,S Svcs - Older People Svcs,PPL,Third Party Payments,F,Other Establishments,FH,27/06/2012,PAY00485582,20103.5,Revenue,Carers Centre for Brighton & Hove Ltd
Brighton & Hove City Council,http://statistics.data.gov.uk/id/local-authority/00ML,Children�s Social Care,BVACSC,Child Srvcs - Other Fam Supp,FFX,Third Party Payments,F,Other Establishments,FH,27/06/2012,PAY00485582,4536.5,Revenue,Carers Centre for Brighton & Hove Ltd
Brighton & Hove City Council,http://statistics.data.gov.uk/id/local-authority/00ML,Children�s Social Care,BVACSC,Child Srvcs - Leaving Care,FAL,Transfer Payments,G,Other Transfer Payments,GD,20/06/2012,PAY00483941,417.89,Revenue,Car-es (UK) Ltd
Brighton & Hove City Council,http://statistics.data.gov.uk/id/local-authority/00ML,Adult Social Care,BVASOC,S Svcs - Older People Svcs,PPL,Customer n Client Receipts,M,Fees n Charges,MB,01/06/2012,PAY00480222,-634,Revenue,Carewatch (Brighton & Hove)
Brighton & Hove City Council,http://statistics.data.gov.uk/id/local-authority/00ML,Adult Social Care,BVASOC,S Svcs - Older People Svcs,PPL,Third Party Payments,F,Other Establishments,FH,01/06/2012,PAY00480222,7428.36,Revenue,Carewatch (Brighton & Hove)
Brighton & Hove City Council,http://statistics.data.gov.uk/id/local-authority/00ML,Adult Social Care,BVASOC,S Svcs - Physical Disability,PDY,Customer n Client Receipts,M,Fees n Charges,MB,01/06/2012,PAY00480222,-12,Revenue,Carewatch (Brighton & Hove)
Brighton & Hove City Council,http://statistics.data.gov.uk/id/local-authority/00ML,Adult Social Care,BVASOC,S Svcs - Physical Disability,PDY,Third Party Payments,F,Other Establishments,FH,01/06/2012,PAY00480222,1040.21,Revenue,Carewatch (Brighton & Hove)
Brighton & Hove City Council,http://statistics.data.gov.uk/id/local-authority/00ML,Adult Social Care,BVASOC,S Svcs - Learning Disability,LDY,Customer n Client Receipts,M,Fees n Charges,MB,07/06/2012,PAY00481322,-108,Revenue,Carewatch (Brighton & Hove)
Brighton & Hove City Council,http://statistics.data.gov.uk/id/local-authority/00ML,Adult Social Care,BVASOC,S Svcs - Learning Disability,LDY,Third Party Payments,F,Other Establishments,FH,07/06/2012,PAY00481322,527.92,Revenue,Carewatch (Brighton & Hove)
Brighton & Hove City Council,http://statistics.data.gov.uk/id/local-authority/00ML,Adult Social Care,BVASOC,S Svcs - Mental Health,MHT,Customer n Client Receipts,M,Fees n Charges,MB,07/06/2012,PAY00481322,-57.71,Revenue,Carewatch (Brighton & Hove)
Brighton & Hove City Council,http://statistics.data.gov.uk/id/local-authority/00ML,Adult Social Care,BVASOC,S Svcs - Mental Health,MHT,Third Party Payments,F,Other Establishments,FH,07/06/2012,PAY00481322,620.38,Revenue,Carewatch (Brighton & Hove)
Brighton & Hove City Council,http://statistics.data.gov.uk/id/local-authority/00ML,Adult Social Care,BVASOC,S Svcs - Older People Svcs,PPL,Customer n Client Receipts,M,Fees n Charges,MB,07/06/2012,PAY00481322,-4286.05,Revenue,Carewatch (Brighton & Hove)
Brighton & Hove City Council,http://statistics.data.gov.uk/id/local-authority/00ML,Adult Social Care,BVASOC,S Svcs - Older People Svcs,PPL,Third Party Payments,F,Other Establishments,FH,07/06/2012,PAY00481322,30940.46,Revenue,Carewatch (Brighton & Hove)
Brighton & Hove City Council,http://statistics.data.gov.uk/id/local-authority/00ML,Adult Social Care,BVASOC,S Svcs - Physical Disability,PDY,Customer n Client Receipts,M,Fees n Charges,MB,07/06/2012,PAY00481322,-396.14,Revenue,Carewatch (Brighton & Hove)
Brighton & Hove City Council,http://statistics.data.gov.uk/id/local-authority/00ML,Adult Social Care,BVASOC,S Svcs - Physical Disability,PDY,Third Party Payments,F,Other Establishments,FH,07/06/2012,PAY00481322,5797.18,Revenue,Carewatch (Brighton & Hove)
Brighton & Hove City Council,http://statistics.data.gov.uk/id/local-authority/00ML,Adult Social Care,BVASOC,S Svcs - Learning Disability,LDY,Customer n Client Receipts,M,Fees n Charges,MB,08/06/2012,PAY00482083,-98,Revenue,Carewatch (Brighton & Hove)
Brighton & Hove City Council,http://statistics.data.gov.uk/id/local-authority/00ML,Adult Social Care,BVASOC,S Svcs - Learning Disability,LDY,Third Party Payments,F,Other Establishments,FH,08/06/2012,PAY00482083,499.63,Revenue,Carewatch (Brighton & Hove)
Brighton & Hove City Council,http://statistics.data.gov.uk/id/local-authority/00ML,Adult Social Care,BVASOC,S Svcs - Mental Health,MHT,Third Party Payments,F,Other Establishments,FH,08/06/2012,PAY00482083,99.9,Revenue,Carewatch (Brighton & Hove)
Brighton & Hove City Council,http://statistics.data.gov.uk/id/local-authority/00ML,Adult Social Care,BVASOC,S Svcs - Older People Svcs,PPL,Customer n Client Receipts,M,Fees n Charges,MB,08/06/2012,PAY00482083,-1652,Revenue,Carewatch (Brighton & Hove)
Brighton & Hove City Council,http://statistics.data.gov.uk/id/local-authority/00ML,Adult Social Care,BVASOC,S Svcs - Older People Svcs,PPL,Third Party Payments,F,Other Establishments,FH,08/06/2012,PAY00482083,13912.71,Revenue,Carewatch (Brighton & Hove)
Brighton & Hove City Council,http://statistics.data.gov.uk/id/local-authority/00ML,Adult Social Care,BVASOC,S Svcs - Other Adult Services,ADT,Third Party Payments,F,Other Establishments,FH,08/06/2012,PAY00482083,144.1,Revenue,Carewatch (Brighton & Hove)
Brighton & Hove City Council,http://statistics.data.gov.uk/id/local-authority/00ML,Adult Social Care,BVASOC,S Svcs - Physical Disability,PDY,Customer n Client Receipts,M,Fees n Charges,MB,08/06/2012,PAY00482083,-116,Revenue,Carewatch (Brighton & Hove)
Brighton & Hove City Council,http://statistics.data.gov.uk/id/local-authority/00ML,Adult Social Care,BVASOC,S Svcs - Physical Disability,PDY,Third Party Payments,F,Other Establishments,FH,08/06/2012,PAY00482083,2453.92,Revenue,Carewatch (Brighton & Hove)
Brighton & Hove City Council,http://statistics.data.gov.uk/id/local-authority/00ML,Adult Social Care,BVASOC,S Svcs - Older People Svcs,PPL,Customer n Client Receipts,M,Fees n Charges,MB,13/06/2012,PAY00482680,-84,Revenue,Carewatch (Brighton & Hove)
Brighton & Hove City Council,http://statistics.data.gov.uk/id/local-authority/00ML,Adult Social Care,BVASOC,S Svcs - Older People Svcs,PPL,Third Party Payments,F,Other Establishments,FH,13/06/2012,PAY00482680,1549.04,Revenue,Carewatch (Brighton & Hove)
Brighton & Hove City Council,http://statistics.data.gov.uk/id/local-authority/00ML,Adult Social Care,BVASOC,S Svcs - Physical Disability,PDY,Third Party Payments,F,Other Establishments,FH,13/06/2012,PAY00482680,2200.28,Revenue,Carewatch (Brighton & Hove)
Brighton & Hove City Council,http://statistics.data.gov.uk/id/local-authority/00ML,Adult Social Care,BVASOC,S Svcs - Learning Disability,LDY,Third Party Payments,F,Other Establishments,FH,15/06/2012,PAY00483462,68.87,Revenue,Carewatch (Brighton & Hove)
Brighton & Hove City Council,http://statistics.data.gov.uk/id/local-authority/00ML,Adult Social Care,BVASOC,S Svcs - Older People Svcs,PPL,Customer n Client Receipts,M,Fees n Charges,MB,15/06/2012,PAY00483462,-290,Revenue,Carewatch (Brighton & Hove)
Brighton & Hove City Council,http://statistics.data.gov.uk/id/local-authority/00ML,Adult Social Care,BVASOC,S Svcs - Older People Svcs,PPL,Third Party Payments,F,Other Establishments,FH,15/06/2012,PAY00483462,1423.86,Revenue,Carewatch (Brighton & Hove)
Brighton & Hove City Council,http://statistics.data.gov.uk/id/local-authority/00ML,Adult Social Care,BVASOC,S Svcs - Physical Disability,PDY,Customer n Client Receipts,M,Fees n Charges,MB,15/06/2012,PAY00483462,-38,Revenue,Carewatch (Brighton & Hove)
Brighton & Hove City Council,http://statistics.data.gov.uk/id/local-authority/00ML,Adult Social Care,BVASOC,S Svcs - Physical Disability,PDY,Third Party Payments,F,Other Establishments,FH,15/06/2012,PAY00483462,118.13,Revenue,Carewatch (Brighton & Hove)
Brighton & Hove City Council,http://statistics.data.gov.uk/id/local-authority/00ML,Adult Social Care,BVASOC,S Svcs - Learning Disability,LDY,Customer n Client Receipts,M,Fees n Charges,MB,20/06/2012,PAY00484179,-206,Revenue,Carewatch (Brighton & Hove)
Brighton & Hove City Council,http://statistics.data.gov.uk/id/local-authority/00ML,Adult Social Care,BVASOC,S Svcs - Learning Disability,LDY,Third Party Payments,F,Other Establishments,FH,20/06/2012,PAY00484179,1063.39,Revenue,Carewatch (Brighton & Hove)
Brighton & Hove City Council,http://statistics.data.gov.uk/id/local-authority/00ML,Adult Social Care,BVASOC,S Svcs - Mental Health,MHT,Customer n Client Receipts,M,Fees n Charges,MB,20/06/2012,PAY00484179,-32,Revenue,Carewatch (Brighton & Hove)
Brighton & Hove City Council,http://statistics.data.gov.uk/id/local-authority/00ML,Adult Social Care,BVASOC,S Svcs - Mental Health,MHT,Third Party Payments,F,Other Establishments,FH,20/06/2012,PAY00484179,629.79,Revenue,Carewatch (Brighton & Hove)
Brighton & Hove City Council,http://statistics.data.gov.uk/id/local-authority/00ML,Adult Social Care,BVASOC,S Svcs - Older People Svcs,PPL,Customer n Client Receipts,M,Fees n Charges,MB,20/06/2012,PAY00484179,-5302.43,Revenue,Carewatch (Brighton & Hove)
Brighton & Hove City Council,http://statistics.data.gov.uk/id/local-authority/00ML,Adult Social Care,BVASOC,S Svcs - Older People Svcs,PPL,Third Party Payments,F,Other Establishments,FH,20/06/2012,PAY00484179,41445.7,Revenue,Carewatch (Brighton & Hove)
Brighton & Hove City Council,http://statistics.data.gov.uk/id/local-authority/00ML,Adult Social Care,BVASOC,S Svcs - Other Adult Services,ADT,Third Party Payments,F,Other Establishments,FH,20/06/2012,PAY00484179,144.09,Revenue,Carewatch (Brighton & Hove)
Brighton & Hove City Council,http://statistics.data.gov.uk/id/local-authority/00ML,Adult Social Care,BVASOC,S Svcs - Physical Disability,PDY,Customer n Client Receipts,M,Fees n Charges,MB,20/06/2012,PAY00484179,-422,Revenue,Carewatch (Brighton & Hove)
Brighton & Hove City Council,http://statistics.data.gov.uk/id/local-authority/00ML,Adult Social Care,BVASOC,S Svcs - Physical Disability,PDY,Third Party Payments,F,Other Establishments,FH,20/06/2012,PAY00484179,6902.98,Revenue,Carewatch (Brighton & Hove)
Brighton & Hove City Council,http://statistics.data.gov.uk/id/local-authority/00ML,Adult Social Care,BVASOC,S Svcs - Older People Svcs,PPL,Customer n Client Receipts,M,Fees n Charges,MB,22/06/2012,PAY00484996,-980,Revenue,Carewatch (Brighton & Hove)
Brighton & Hove City Council,http://statistics.data.gov.uk/id/local-authority/00ML,Adult Social Care,BVASOC,S Svcs - Older People Svcs,PPL,Third Party Payments,F,Other Establishments,FH,22/06/2012,PAY00484996,25353.33,Revenue,Carewatch (Brighton & Hove)
Brighton & Hove City Council,http://statistics.data.gov.uk/id/local-authority/00ML,Adult Social Care,BVASOC,S Svcs - Physical Disability,PDY,Customer n Client Receipts,M,Fees n Charges,MB,22/06/2012,PAY00484996,-38,Revenue,Carewatch (Brighton & Hove)
Brighton & Hove City Council,http://statistics.data.gov.uk/id/local-authority/00ML,Adult Social Care,BVASOC,S Svcs - Physical Disability,PDY,Third Party Payments,F,Other Establishments,FH,22/06/2012,PAY00484996,1146.08,Revenue,Carewatch (Brighton & Hove)
Brighton & Hove City Council,http://statistics.data.gov.uk/id/local-authority/00ML,Adult Social Care,BVASOC,S Svcs - Learning Disability,LDY,Customer n Client Receipts,M,Fees n Charges,MB,27/06/2012,PAY00485822,-206,Revenue,Carewatch (Brighton & Hove)
Brighton & Hove City Council,http://statistics.data.gov.uk/id/local-authority/00ML,Adult Social Care,BVASOC,S Svcs - Learning Disability,LDY,Third Party Payments,F,Other Establishments,FH,27/06/2012,PAY00485822,883.84,Revenue,Carewatch (Brighton & Hove)
Brighton & Hove City Council,http://statistics.data.gov.uk/id/local-authority/00ML,Adult Social Care,BVASOC,S Svcs - Mental Health,MHT,Customer n Client Receipts,M,Fees n Charges,MB,27/06/2012,PAY00485822,-32,Revenue,Carewatch (Brighton & Hove)
Brighton & Hove City Council,http://statistics.data.gov.uk/id/local-authority/00ML,Adult Social Care,BVASOC,S Svcs - Mental Health,MHT,Third Party Payments,F,Other Establishments,FH,27/06/2012,PAY00485822,724.76,Revenue,Carewatch (Brighton & Hove)
Brighton & Hove City Council,http://statistics.data.gov.uk/id/local-authority/00ML,Adult Social Care,BVASOC,S Svcs - Older People Svcs,PPL,Customer n Client Receipts,M,Fees n Charges,MB,27/06/2012,PAY00485822,-7401.21,Revenue,Carewatch (Brighton & Hove)
Brighton & Hove City Council,http://statistics.data.gov.uk/id/local-authority/00ML,Adult Social Care,BVASOC,S Svcs - Older People Svcs,PPL,Third Party Payments,F,Other Establishments,FH,27/06/2012,PAY00485822,56244.33,Revenue,Carewatch (Brighton & Hove)
Brighton & Hove City Council,http://statistics.data.gov.uk/id/local-authority/00ML,Adult Social Care,BVASOC,S Svcs - Other Adult Services,ADT,Third Party Payments,F,Other Establishments,FH,27/06/2012,PAY00485822,144.09,Revenue,Carewatch (Brighton & Hove)
Brighton & Hove City Council,http://statistics.data.gov.uk/id/local-authority/00ML,Adult Social Care,BVASOC,S Svcs - Physical Disability,PDY,Customer n Client Receipts,M,Fees n Charges,MB,27/06/2012,PAY00485822,-432,Revenue,Carewatch (Brighton & Hove)
Brighton & Hove City Council,http://statistics.data.gov.uk/id/local-authority/00ML,Adult Social Care,BVASOC,S Svcs - Physical Disability,PDY,Third Party Payments,F,Other Establishments,FH,27/06/2012,PAY00485822,9481.74,Revenue,Carewatch (Brighton & Hove)
Brighton & Hove City Council,http://statistics.data.gov.uk/id/local-authority/00ML,Non SERCOP,BVANON,Cap - Housing Services - GF,4HG,Capital Grants,PF,Level not required,NR5012,20/06/2012,PAY00484233,1142.72,Capital,Carillion Energy Services Limited
Brighton & Hove City Council,http://statistics.data.gov.uk/id/local-authority/00ML,Adult Social Care,BVASOC,Child Srvcs - Other Fam Supp,FFX,Direct Employees,A,Salaries,AA,01/06/2012,PAY00479890,1701.16,Revenue,Carlisle Staffing Plc
Brighton & Hove City Council,http://statistics.data.gov.uk/id/local-authority/00ML,Adult Social Care,BVASOC,Management Services (DEC),MGT,Direct Employees,A,Salaries,AA,01/06/2012,PAY00479890,16238,Revenue,Carlisle Staffing Plc
Brighton & Hove City Council,http://statistics.data.gov.uk/id/local-authority/00ML,Adult Social Care,BVASOC,Management Services (DEC),MGT,Indirect Employees,B,Training,BM,01/06/2012,PAY00479890,9.63,Revenue,Carlisle Staffing Plc
Brighton & Hove City Council,http://statistics.data.gov.uk/id/local-authority/00ML,Adult Social Care,BVASOC,S Svcs - Learning Disability,LDY,Direct Employees,A,Salaries,AA,01/06/2012,PAY00479890,3830.61,Revenue,Carlisle Staffing Plc
Brighton & Hove City Council,http://statistics.data.gov.uk/id/local-authority/00ML,Adult Social Care,BVASOC,S Svcs - Mental Health,MHT,Direct Employees,A,Salaries,AA,01/06/2012,PAY00479890,134.71,Revenue,Carlisle Staffing Plc
Brighton & Hove City Council,http://statistics.data.gov.uk/id/local-authority/00ML,Adult Social Care,BVASOC,S Svcs - Older People Svcs,PPL,Direct Employees,A,Salaries,AA,01/06/2012,PAY00479890,11583.42,Revenue,Carlisle Staffing Plc
Brighton & Hove City Council,http://statistics.data.gov.uk/id/local-authority/00ML,Adult Social Care,BVASOC,S Svcs - Supported Employment,EMP,Direct Employees,A,Salaries,AA,01/06/2012,PAY00479890,9.69,Revenue,Carlisle Staffing Plc
Brighton & Hove City Council,http://statistics.data.gov.uk/id/local-authority/00ML,Adult Social Care,BVASOC,Support Services (SSC),PPT,Direct Employees,A,Salaries,AA,01/06/2012,PAY00479890,46.82,Revenue,Carlisle Staffing Plc
Brighton & Hove City Council,http://statistics.data.gov.uk/id/local-authority/00ML,Central Services To The Public,BVACEN,Ed - EY - Central,EAE,Direct Employees,A,Salaries,AA,01/06/2012,PAY00479890,357.96,Revenue,Carlisle Staffing Plc
Brighton & Hove City Council,http://statistics.data.gov.uk/id/local-authority/00ML,Central Services To The Public,BVACEN,Reg - Birth Death and Marriage,RBD,Direct Employees,A,Salaries,AA,01/06/2012,PAY00479890,18.44,Revenue,Carlisle Staffing Plc
Brighton & Hove City Council,http://statistics.data.gov.uk/id/local-authority/00ML,Central Services To The Public,BVACEN,Support Services (SSC),PPT,Direct Employees,A,Salaries,AA,01/06/2012,PAY00479890,12305.45,Revenue,Carlisle Staffing Plc
Brighton & Hove City Council,http://statistics.data.gov.uk/id/local-authority/00ML,Children�s Social Care,BVACSC,Child Srvcs - Com & Scl Work,FCW,Direct Employees,A,Salaries,AA,01/06/2012,PAY00479890,285.06,Revenue,Carlisle Staffing Plc
Brighton & Hove City Council,http://statistics.data.gov.uk/id/local-authority/00ML,Children�s Social Care,BVACSC,Child Srvcs - Family Centres,FFF,Direct Employees,A,Salaries,AA,01/06/2012,PAY00479890,246.71,Revenue,Carlisle Staffing Plc
Brighton & Hove City Council,http://statistics.data.gov.uk/id/local-authority/00ML,Children�s Social Care,BVACSC,Child Srvcs - Fostering,FLF,Direct Employees,A,Salaries,AA,01/06/2012,PAY00479890,5.63,Revenue,Carlisle Staffing Plc
Brighton & Hove City Council,http://statistics.data.gov.uk/id/local-authority/00ML,Children�s Social Care,BVACSC,Child Srvcs - Leaving Care,FAL,Direct Employees,A,Salaries,AA,01/06/2012,PAY00479890,132.12,Revenue,Carlisle Staffing Plc
Brighton & Hove City Council,http://statistics.data.gov.uk/id/local-authority/00ML,Children�s Social Care,BVACSC,Child Srvcs - Other,FAX,Direct Employees,A,Salaries,AA,01/06/2012,PAY00479890,1.13,Revenue,Carlisle Staffing Plc
Brighton & Hove City Council,http://statistics.data.gov.uk/id/local-authority/00ML,Children�s Social Care,BVACSC,Child Srvcs - Other Fam Supp,FFX,Direct Employees,A,Salaries,AA,01/06/2012,PAY00479890,577.81,Revenue,Carlisle Staffing Plc
Brighton & Hove City Council,http://statistics.data.gov.uk/id/local-authority/00ML,Children�s Social Care,BVACSC,Child Srvcs - Other Yth Jstce,FYX,Direct Employees,A,Salaries,AA,01/06/2012,PAY00479890,1.88,Revenue,Carlisle Staffing Plc
Brighton & Hove City Council,http://statistics.data.gov.uk/id/local-authority/00ML,Children�s Social Care,BVACSC,Child Srvcs - Residential Svcs,FLR,Direct Employees,A,Salaries,AA,01/06/2012,PAY00479890,1104.85,Revenue,Carlisle Staffing Plc
Brighton & Hove City Council,http://statistics.data.gov.uk/id/local-authority/00ML,Children�s Social Care,BVACSC,Child Srvcs - Yth Offender Tm,FYY,Direct Employees,A,Salaries,AA,01/06/2012,PAY00479890,1.75,Revenue,Carlisle Staffing Plc
Brighton & Hove City Council,http://statistics.data.gov.uk/id/local-authority/00ML,Cultural and Related Services,BVACUL,Management Services (DEC),MGT,Direct Employees,A,Salaries,AA,01/06/2012,PAY00479890,9.19,Revenue,Carlisle Staffing Plc
Brighton & Hove City Council,http://statistics.data.gov.uk/id/local-authority/00ML,Cultural and Related Services,BVACUL,Open Spaces,PEN,Direct Employees,A,Salaries,AA,01/06/2012,PAY00479890,1135.51,Revenue,Carlisle Staffing Plc
Brighton & Hove City Council,http://statistics.data.gov.uk/id/local-authority/00ML,Cultural and Related Services,BVACUL,Recreation and sport,REC,Direct Employees,A,Salaries,AA,01/06/2012,PAY00479890,256.54,Revenue,Carlisle Staffing Plc
Brighton & Hove City Council,http://statistics.data.gov.uk/id/local-authority/00ML,Education Services,BVAEDU,Ed - Ed Other - LA Attrib Sch,ELA,Direct Employees,A,Salaries,AA,01/06/2012,PAY00479890,4.75,Revenue,Carlisle Staffing Plc
Brighton & Hove City Council,http://statistics.data.gov.uk/id/local-authority/00ML,Education Services,BVAEDU,Ed - Ed Other - Other,ENF,Direct Employees,A,Salaries,AA,01/06/2012,PAY00479890,14.63,Revenue,Carlisle Staffing Plc
Brighton & Hove City Council,http://statistics.data.gov.uk/id/local-authority/00ML,Education Services,BVAEDU,Ed - EY - Central,EAE,Direct Employees,A,Salaries,AA,01/06/2012,PAY00479890,4661.35,Revenue,Carlisle Staffing Plc
Brighton & Hove City Council,http://statistics.data.gov.uk/id/local-authority/00ML,Education Services,BVAEDU,Ed - Mgmt & Support Services,EMG,Direct Employees,A,Salaries,AA,01/06/2012,PAY00479890,869.64,Revenue,Carlisle Staffing Plc
Brighton & Hove City Council,http://statistics.data.gov.uk/id/local-authority/00ML,Education Services,BVAEDU,Ed - Primary schools,EHH,Direct Employees,A,Salaries,AA,01/06/2012,PAY00479890,132.13,Revenue,Carlisle Staffing Plc
Brighton & Hove City Council,http://statistics.data.gov.uk/id/local-authority/00ML,Education Services,BVAEDU,Ed - Secondary Ed,EJE,Direct Employees,A,Salaries,AA,01/06/2012,PAY00479890,7.88,Revenue,Carlisle Staffing Plc
Brighton & Hove City Council,http://statistics.data.gov.uk/id/local-authority/00ML,Education Services,BVAEDU,Ed - Secondary Schools,EJJ,Direct Employees,A,Salaries,AA,01/06/2012,PAY00479890,711.34,Revenue,Carlisle Staffing Plc
Brighton & Hove City Council,http://statistics.data.gov.uk/id/local-authority/00ML,Education Services,BVAEDU,Ed - Special Ed,EKE,Direct Employees,A,Salaries,AA,01/06/2012,PAY00479890,20.88,Revenue,Carlisle Staffing Plc
Brighton & Hove City Council,http://statistics.data.gov.uk/id/local-authority/00ML,Environment and Regulatory Ser,BVAERS,Cem Crem and Mortuary Services,CCM,Direct Employees,A,Salaries,AA,01/06/2012,PAY00479890,472.58,Revenue,Carlisle Staffing Plc
Brighton & Hove City Council,http://statistics.data.gov.uk/id/local-authority/00ML,Environment and Regulatory Ser,BVAERS,Environmental Health,EVH,Direct Employees,A,Salaries,AA,01/06/2012,PAY00479890,1143.4,Revenue,Carlisle Staffing Plc
Brighton & Hove City Council,http://statistics.data.gov.uk/id/local-authority/00ML,Environment and Regulatory Ser,BVAERS,Management Services (DEC),MGT,Direct Employees,A,Salaries,AA,01/06/2012,PAY00479890,900.11,Revenue,Carlisle Staffing Plc
Brighton & Hove City Council,http://statistics.data.gov.uk/id/local-authority/00ML,Environment and Regulatory Ser,BVAERS,Street Cleansing,CLE,Direct Employees,A,Salaries,AA,01/06/2012,PAY00479890,1800.87,Revenue,Carlisle Staffing Plc
Brighton & Hove City Council,http://statistics.data.gov.uk/id/local-authority/00ML,Environment and Regulatory Ser,BVAERS,Waste Management,WMT,Direct Employees,A,Salaries,AA,01/06/2012,PAY00479890,11955.22,Revenue,Carlisle Staffing Plc
Brighton & Hove City Council,http://statistics.data.gov.uk/id/local-authority/00ML,Highways and Transportation,BVAHRT,Highways and Roads - Mntnce,HRM,Direct Employees,A,Salaries,AA,01/06/2012,PAY00479890,486.96,Revenue,Carlisle Staffing Plc
Brighton & Hove City Council,http://statistics.data.gov.uk/id/local-authority/00ML,Highways and Transportation,BVAHRT,Parking Services,PRK,Direct Employees,A,Salaries,AA,01/06/2012,PAY00479890,1063.6,Revenue,Carlisle Staffing Plc
Brighton & Hove City Council,http://statistics.data.gov.uk/id/local-authority/00ML,Highways and Transportation,BVAHRT,Transport plan policy strategy,TPP,Direct Employees,A,Salaries,AA,01/06/2012,PAY00479890,1575.72,Revenue,Carlisle Staffing Plc
Brighton & Hove City Council,http://statistics.data.gov.uk/id/local-authority/00ML,Housing Services General Fund,BVAHOG,Homelessness,HML,Direct Employees,A,Salaries,AA,01/06/2012,PAY00479890,4154.74,Revenue,Carlisle Staffing Plc
Brighton & Hove City Council,http://statistics.data.gov.uk/id/local-authority/00ML,Housing Services General Fund,BVAHOG,Hsing Benefits,HGB,Direct Employees,A,Salaries,AA,01/06/2012,PAY00479890,18.06,Revenue,Carlisle Staffing Plc
Brighton & Hove City Council,http://statistics.data.gov.uk/id/local-authority/00ML,Housing Services Revnue Acc,BVAHOU,Hsing Management - HRA,HGM,Direct Employees,A,Salaries,AA,01/06/2012,PAY00479890,12424.52,Revenue,Carlisle Staffing Plc
Brighton & Hove City Council,http://statistics.data.gov.uk/id/local-authority/00ML,Housing Services Revnue Acc,BVAHOU,Hsing Management - HRA,HGM,Supplies and Services,E,Services,EF,01/06/2012,PAY00479890,1768,Revenue,Carlisle Staffing Plc
Brighton & Hove City Council,http://statistics.data.gov.uk/id/local-authority/00ML,Non SERCOP,BVANON,Cap - Mgmnt & Support Services,4PT,Plant Machinery n Equipment,PE2,Level not required,NR5025,01/06/2012,PAY00479890,21.69,Capital,Carlisle Staffing Plc
Brighton & Hove City Council,http://statistics.data.gov.uk/id/local-authority/00ML,Planning Services,BVAPLA,Development Control,DEV,Direct Employees,A,Salaries,AA,01/06/2012,PAY00479890,412.6,Revenue,Carlisle Staffing Plc
Brighton & Hove City Council,http://statistics.data.gov.uk/id/local-authority/00ML,Planning Services,BVAPLA,Economic Development,ECD,Direct Employees,A,Salaries,AA,01/06/2012,PAY00479890,9.25,Revenue,Carlisle Staffing Plc
Brighton & Hove City Council,http://statistics.data.gov.uk/id/local-authority/00ML,Adult Social Care,BVASOC,Child Srvcs - Other Fam Supp,FFX,Direct Employees,A,Salaries,AA,13/06/2012,PAY00482561,2337.26,Revenue,Carlisle Staffing Plc
Brighton & Hove City Council,http://statistics.data.gov.uk/id/local-authority/00ML,Adult Social Care,BVASOC,Management Services (DEC),MGT,Direct Employees,A,Salaries,AA,13/06/2012,PAY00482561,391.86,Revenue,Carlisle Staffing Plc
Brighton & Hove City Council,http://statistics.data.gov.uk/id/local-authority/00ML,Adult Social Care,BVASOC,Management Services (DEC),MGT,Indirect Employees,B,Training,BM,13/06/2012,PAY00482561,13.94,Revenue,Carlisle Staffing Plc
Brighton & Hove City Council,http://statistics.data.gov.uk/id/local-authority/00ML,Adult Social Care,BVASOC,S Svcs - Learning Disability,LDY,Direct Employees,A,Salaries,AA,13/06/2012,PAY00482561,3479.15,Revenue,Carlisle Staffing Plc
Brighton & Hove City Council,http://statistics.data.gov.uk/id/local-authority/00ML,Adult Social Care,BVASOC,S Svcs - Mental Health,MHT,Direct Employees,A,Salaries,AA,13/06/2012,PAY00482561,123.62,Revenue,Carlisle Staffing Plc
Brighton & Hove City Council,http://statistics.data.gov.uk/id/local-authority/00ML,Adult Social Care,BVASOC,S Svcs - Older People Svcs,PPL,Direct Employees,A,Salaries,AA,13/06/2012,PAY00482561,12978.56,Revenue,Carlisle Staffing Plc
Brighton & Hove City Council,http://statistics.data.gov.uk/id/local-authority/00ML,Adult Social Care,BVASOC,S Svcs - Supported Employment,EMP,Direct Employees,A,Salaries,AA,13/06/2012,PAY00482561,7.88,Revenue,Carlisle Staffing Plc
Brighton & Hove City Council,http://statistics.data.gov.uk/id/local-authority/00ML,Adult Social Care,BVASOC,Support Services (SSC),PPT,Direct Employees,A,Salaries,AA,13/06/2012,PAY00482561,32.26,Revenue,Carlisle Staffing Plc
Brighton & Hove City Council,http://statistics.data.gov.uk/id/local-authority/00ML,Central Services To The Public,BVACEN,Ed - EY - Central,EAE,Direct Employees,A,Salaries,AA,13/06/2012,PAY00482561,103.62,Revenue,Carlisle Staffing Plc
Brighton & Hove City Council,http://statistics.data.gov.uk/id/local-authority/00ML,Central Services To The Public,BVACEN,Reg - Birth Death and Marriage,RBD,Direct Employees,A,Salaries,AA,13/06/2012,PAY00482561,14.06,Revenue,Carlisle Staffing Plc
Brighton & Hove City Council,http://statistics.data.gov.uk/id/local-authority/00ML,Central Services To The Public,BVACEN,Support Services (SSC),PPT,Direct Employees,A,Salaries,AA,13/06/2012,PAY00482561,10022.01,Revenue,Carlisle Staffing Plc
Brighton & Hove City Council,http://statistics.data.gov.uk/id/local-authority/00ML,Children�s Social Care,BVACSC,Child Srvcs - Com & Scl Work,FCW,Direct Employees,A,Salaries,AA,13/06/2012,PAY00482561,198.96,Revenue,Carlisle Staffing Plc
Brighton & Hove City Council,http://statistics.data.gov.uk/id/local-authority/00ML,Children�s Social Care,BVACSC,Child Srvcs - Family Centres,FFF,Direct Employees,A,Salaries,AA,13/06/2012,PAY00482561,90.2,Revenue,Carlisle Staffing Plc
Brighton & Hove City Council,http://statistics.data.gov.uk/id/local-authority/00ML,Children�s Social Care,BVACSC,Child Srvcs - Fostering,FLF,Direct Employees,A,Salaries,AA,13/06/2012,PAY00482561,9.38,Revenue,Carlisle Staffing Plc
Brighton & Hove City Council,http://statistics.data.gov.uk/id/local-authority/00ML,Children�s Social Care,BVACSC,Child Srvcs - Leaving Care,FAL,Direct Employees,A,Salaries,AA,13/06/2012,PAY00482561,121.25,Revenue,Carlisle Staffing Plc
Brighton & Hove City Council,http://statistics.data.gov.uk/id/local-authority/00ML,Children�s Social Care,BVACSC,Child Srvcs - Other Fam Supp,FFX,Direct Employees,A,Salaries,AA,13/06/2012,PAY00482561,98.25,Revenue,Carlisle Staffing Plc
Brighton & Hove City Council,http://statistics.data.gov.uk/id/local-authority/00ML,Children�s Social Care,BVACSC,Child Srvcs - Residential Svcs,FLR,Direct Employees,A,Salaries,AA,13/06/2012,PAY00482561,1557.23,Revenue,Carlisle Staffing Plc
Brighton & Hove City Council,http://statistics.data.gov.uk/id/local-authority/00ML,Children�s Social Care,BVACSC,Child Srvcs - Yth Offender Tm,FYY,Direct Employees,A,Salaries,AA,13/06/2012,PAY00482561,2.63,Revenue,Carlisle Staffing Plc
Brighton & Hove City Council,http://statistics.data.gov.uk/id/local-authority/00ML,Cultural and Related Services,BVACUL,Culture & Heritage,CHG,Direct Employees,A,Wages,AB,13/06/2012,PAY00482561,154.71,Revenue,Carlisle Staffing Plc
Brighton & Hove City Council,http://statistics.data.gov.uk/id/local-authority/00ML,Cultural and Related Services,BVACUL,Management Services (DEC),MGT,Direct Employees,A,Salaries,AA,13/06/2012,PAY00482561,794.31,Revenue,Carlisle Staffing Plc
Brighton & Hove City Council,http://statistics.data.gov.uk/id/local-authority/00ML,Cultural and Related Services,BVACUL,Open Spaces,PEN,Direct Employees,A,Salaries,AA,13/06/2012,PAY00482561,1129.7,Revenue,Carlisle Staffing Plc
Brighton & Hove City Council,http://statistics.data.gov.uk/id/local-authority/00ML,Cultural and Related Services,BVACUL,Recreation and sport,REC,Direct Employees,A,Salaries,AA,13/06/2012,PAY00482561,242.13,Revenue,Carlisle Staffing Plc
Brighton & Hove City Council,http://statistics.data.gov.uk/id/local-authority/00ML,Education Services,BVAEDU,Ed - Ed Other - LA Attrib Sch,ELA,Direct Employees,A,Salaries,AA,13/06/2012,PAY00482561,3.56,Revenue,Carlisle Staffing Plc
Brighton & Hove City Council,http://statistics.data.gov.uk/id/local-authority/00ML,Education Services,BVAEDU,Ed - Ed Other - Other,ENF,Direct Employees,A,Salaries,AA,13/06/2012,PAY00482561,16.07,Revenue,Carlisle Staffing Plc
Brighton & Hove City Council,http://statistics.data.gov.uk/id/local-authority/00ML,Education Services,BVAEDU,Ed - EY - Central,EAE,Direct Employees,A,Salaries,AA,13/06/2012,PAY00482561,4223.32,Revenue,Carlisle Staffing Plc
Brighton & Hove City Council,http://statistics.data.gov.uk/id/local-authority/00ML,Education Services,BVAEDU,Ed - Mgmt & Support Services,EMG,Direct Employees,A,Salaries,AA,13/06/2012,PAY00482561,1783.15,Revenue,Carlisle Staffing Plc
Brighton & Hove City Council,http://statistics.data.gov.uk/id/local-authority/00ML,Education Services,BVAEDU,Ed - Primary schools,EHH,Direct Employees,A,Salaries,AA,13/06/2012,PAY00482561,79.28,Revenue,Carlisle Staffing Plc
Brighton & Hove City Council,http://statistics.data.gov.uk/id/local-authority/00ML,Education Services,BVAEDU,Ed - Secondary Ed,EJE,Direct Employees,A,Salaries,AA,13/06/2012,PAY00482561,6.19,Revenue,Carlisle Staffing Plc
Brighton & Hove City Council,http://statistics.data.gov.uk/id/local-authority/00ML,Education Services,BVAEDU,Ed - Secondary Schools,EJJ,Direct Employees,A,Salaries,AA,13/06/2012,PAY00482561,522.56,Revenue,Carlisle Staffing Plc
Brighton & Hove City Council,http://statistics.data.gov.uk/id/local-authority/00ML,Education Services,BVAEDU,Ed - Special Ed,EKE,Direct Employees,A,Salaries,AA,13/06/2012,PAY00482561,15.75,Revenue,Carlisle Staffing Plc
Brighton & Hove City Council,http://statistics.data.gov.uk/id/local-authority/00ML,Environment and Regulatory Ser,BVAERS,Cem Crem and Mortuary Services,CCM,Direct Employees,A,Salaries,AA,13/06/2012,PAY00482561,380.23,Revenue,Carlisle Staffing Plc
Brighton & Hove City Council,http://statistics.data.gov.uk/id/local-authority/00ML,Environment and Regulatory Ser,BVAERS,Community Safety,CMY,Direct Employees,A,Salaries,AA,13/06/2012,PAY00482561,1476.09,Revenue,Carlisle Staffing Plc
Brighton & Hove City Council,http://statistics.data.gov.uk/id/local-authority/00ML,Environment and Regulatory Ser,BVAERS,Environmental Health,EVH,Direct Employees,A,Salaries,AA,13/06/2012,PAY00482561,865.9,Revenue,Carlisle Staffing Plc
Brighton & Hove City Council,http://statistics.data.gov.uk/id/local-authority/00ML,Environment and Regulatory Ser,BVAERS,Management Services (DEC),MGT,Direct Employees,A,Salaries,AA,13/06/2012,PAY00482561,1026.73,Revenue,Carlisle Staffing Plc
Brighton & Hove City Council,http://statistics.data.gov.uk/id/local-authority/00ML,Environment and Regulatory Ser,BVAERS,Street Cleansing,CLE,Direct Employees,A,Salaries,AA,13/06/2012,PAY00482561,3266.47,Revenue,Carlisle Staffing Plc
Brighton & Hove City Council,http://statistics.data.gov.uk/id/local-authority/00ML,Environment and Regulatory Ser,BVAERS,Waste Management,WMT,Direct Employees,A,Salaries,AA,13/06/2012,PAY00482561,10806,Revenue,Carlisle Staffing Plc
Brighton & Hove City Council,http://statistics.data.gov.uk/id/local-authority/00ML,Highways and Transportation,BVAHRT,Highways and Roads - Mntnce,HRM,Direct Employees,A,Salaries,AA,13/06/2012,PAY00482561,463.61,Revenue,Carlisle Staffing Plc
Brighton & Hove City Council,http://statistics.data.gov.uk/id/local-authority/00ML,Highways and Transportation,BVAHRT,Parking Services,PRK,Direct Employees,A,Salaries,AA,13/06/2012,PAY00482561,902.52,Revenue,Carlisle Staffing Plc
Brighton & Hove City Council,http://statistics.data.gov.uk/id/local-authority/00ML,Highways and Transportation,BVAHRT,Transport plan policy strategy,TPP,Direct Employees,A,Salaries,AA,13/06/2012,PAY00482561,1259.57,Revenue,Carlisle Staffing Plc
Brighton & Hove City Council,http://statistics.data.gov.uk/id/local-authority/00ML,Housing Services General Fund,BVAHOG,Homelessness,HML,Direct Employees,A,Salaries,AA,13/06/2012,PAY00482561,2256.94,Revenue,Carlisle Staffing Plc
Brighton & Hove City Council,http://statistics.data.gov.uk/id/local-authority/00ML,Housing Services General Fund,BVAHOG,Hsing Benefits,HGB,Direct Employees,A,Salaries,AA,13/06/2012,PAY00482561,17.38,Revenue,Carlisle Staffing Plc
Brighton & Hove City Council,http://statistics.data.gov.uk/id/local-authority/00ML,Housing Services General Fund,BVAHOG,Hsing Welfare,HGW,Direct Employees,A,Salaries,AA,13/06/2012,PAY00482561,706.13,Revenue,Carlisle Staffing Plc
Brighton & Hove City Council,http://statistics.data.gov.uk/id/local-authority/00ML,Housing Services Revnue Acc,BVAHOU,Hsing Management - HRA,HGM,Direct Employees,A,Salaries,AA,13/06/2012,PAY00482561,12344.57,Revenue,Carlisle Staffing Plc
Brighton & Hove City Council,http://statistics.data.gov.uk/id/local-authority/00ML,Planning Services,BVAPLA,Development Control,DEV,Direct Employees,A,Salaries,AA,13/06/2012,PAY00482561,398.37,Revenue,Carlisle Staffing Plc
Brighton & Hove City Council,http://statistics.data.gov.uk/id/local-authority/00ML,Planning Services,BVAPLA,Economic Development,ECD,Direct Employees,A,Salaries,AA,13/06/2012,PAY00482561,5.63,Revenue,Carlisle Staffing Plc
Brighton & Hove City Council,http://statistics.data.gov.uk/id/local-authority/00ML,Adult Social Care,BVASOC,Child Srvcs - Other Fam Supp,FFX,Direct Employees,A,Salaries,AA,20/06/2012,PAY00484025,402.2,Revenue,Carlisle Staffing Plc
Brighton & Hove City Council,http://statistics.data.gov.uk/id/local-authority/00ML,Adult Social Care,BVASOC,Management Services (DEC),MGT,Direct Employees,A,Salaries,AA,20/06/2012,PAY00484025,615.78,Revenue,Carlisle Staffing Plc
Brighton & Hove City Council,http://statistics.data.gov.uk/id/local-authority/00ML,Adult Social Care,BVASOC,Management Services (DEC),MGT,Indirect Employees,B,Training,BM,20/06/2012,PAY00484025,4.63,Revenue,Carlisle Staffing Plc
Brighton & Hove City Council,http://statistics.data.gov.uk/id/local-authority/00ML,Adult Social Care,BVASOC,S Svcs - Learning Disability,LDY,Direct Employees,A,Salaries,AA,20/06/2012,PAY00484025,4060.88,Revenue,Carlisle Staffing Plc
Brighton & Hove City Council,http://statistics.data.gov.uk/id/local-authority/00ML,Adult Social Care,BVASOC,S Svcs - Mental Health,MHT,Direct Employees,A,Salaries,AA,20/06/2012,PAY00484025,103,Revenue,Carlisle Staffing Plc
Brighton & Hove City Council,http://statistics.data.gov.uk/id/local-authority/00ML,Adult Social Care,BVASOC,S Svcs - Older People Svcs,PPL,Direct Employees,A,Salaries,AA,20/06/2012,PAY00484025,13834.21,Revenue,Carlisle Staffing Plc
Brighton & Hove City Council,http://statistics.data.gov.uk/id/local-authority/00ML,Adult Social Care,BVASOC,S Svcs - Supported Employment,EMP,Direct Employees,A,Salaries,AA,20/06/2012,PAY00484025,8.69,Revenue,Carlisle Staffing Plc
Brighton & Hove City Council,http://statistics.data.gov.uk/id/local-authority/00ML,Adult Social Care,BVASOC,Support Services (SSC),PPT,Direct Employees,A,Salaries,AA,20/06/2012,PAY00484025,42.88,Revenue,Carlisle Staffing Plc
Brighton & Hove City Council,http://statistics.data.gov.uk/id/local-authority/00ML,Central Services To The Public,BVACEN,Reg - Birth Death and Marriage,RBD,Direct Employees,A,Salaries,AA,20/06/2012,PAY00484025,18.19,Revenue,Carlisle Staffing Plc
Brighton & Hove City Council,http://statistics.data.gov.uk/id/local-authority/00ML,Central Services To The Public,BVACEN,Support Services (SSC),PPT,Direct Employees,A,Salaries,AA,20/06/2012,PAY00484025,9828.68,Revenue,Carlisle Staffing Plc
Brighton & Hove City Council,http://statistics.data.gov.uk/id/local-authority/00ML,Children�s Social Care,BVACSC,Child Srvcs - Com & Scl Work,FCW,Direct Employees,A,Salaries,AA,20/06/2012,PAY00484025,41.69,Revenue,Carlisle Staffing Plc
Brighton & Hove City Council,http://statistics.data.gov.uk/id/local-authority/00ML,Children�s Social Care,BVACSC,Child Srvcs - Family Centres,FFF,Direct Employees,A,Salaries,AA,20/06/2012,PAY00484025,235.16,Revenue,Carlisle Staffing Plc
Brighton & Hove City Council,http://statistics.data.gov.uk/id/local-authority/00ML,Children�s Social Care,BVACSC,Child Srvcs - Fostering,FLF,Direct Employees,A,Salaries,AA,20/06/2012,PAY00484025,5.19,Revenue,Carlisle Staffing Plc
Brighton & Hove City Council,http://statistics.data.gov.uk/id/local-authority/00ML,Children�s Social Care,BVACSC,Child Srvcs - Leaving Care,FAL,Direct Employees,A,Salaries,AA,20/06/2012,PAY00484025,123.12,Revenue,Carlisle Staffing Plc
Brighton & Hove City Council,http://statistics.data.gov.uk/id/local-authority/00ML,Children�s Social Care,BVACSC,Child Srvcs - Other Fam Supp,FFX,Direct Employees,A,Salaries,AA,20/06/2012,PAY00484025,42.58,Revenue,Carlisle Staffing Plc
Brighton & Hove City Council,http://statistics.data.gov.uk/id/local-authority/00ML,Children�s Social Care,BVACSC,Child Srvcs - Other Yth Jstce,FYX,Direct Employees,A,Salaries,AA,20/06/2012,PAY00484025,8.25,Revenue,Carlisle Staffing Plc
Brighton & Hove City Council,http://statistics.data.gov.uk/id/local-authority/00ML,Children�s Social Care,BVACSC,Child Srvcs - Residential Svcs,FLR,Direct Employees,A,Salaries,AA,20/06/2012,PAY00484025,238.61,Revenue,Carlisle Staffing Plc
Brighton & Hove City Council,http://statistics.data.gov.uk/id/local-authority/00ML,Children�s Social Care,BVACSC,Child Srvcs - Yth Offender Tm,FYY,Direct Employees,A,Salaries,AA,20/06/2012,PAY00484025,5,Revenue,Carlisle Staffing Plc
Brighton & Hove City Council,http://statistics.data.gov.uk/id/local-authority/00ML,Cultural and Related Services,BVACUL,Culture & Heritage,CHG,Direct Employees,A,Wages,AB,20/06/2012,PAY00484025,246.77,Revenue,Carlisle Staffing Plc
Brighton & Hove City Council,http://statistics.data.gov.uk/id/local-authority/00ML,Cultural and Related Services,BVACUL,Management Services (DEC),MGT,Direct Employees,A,Salaries,AA,20/06/2012,PAY00484025,523.75,Revenue,Carlisle Staffing Plc
Brighton & Hove City Council,http://statistics.data.gov.uk/id/local-authority/00ML,Cultural and Related Services,BVACUL,Open Spaces,PEN,Direct Employees,A,Salaries,AA,20/06/2012,PAY00484025,1139.95,Revenue,Carlisle Staffing Plc
Brighton & Hove City Council,http://statistics.data.gov.uk/id/local-authority/00ML,Cultural and Related Services,BVACUL,Recreation and sport,REC,Direct Employees,A,Salaries,AA,20/06/2012,PAY00484025,420.85,Revenue,Carlisle Staffing Plc
Brighton & Hove City Council,http://statistics.data.gov.uk/id/local-authority/00ML,Education Services,BVAEDU,Ed - Ed Other - LA Attrib Sch,ELA,Direct Employees,A,Salaries,AA,20/06/2012,PAY00484025,3.56,Revenue,Carlisle Staffing Plc
Brighton & Hove City Council,http://statistics.data.gov.uk/id/local-authority/00ML,Education Services,BVAEDU,Ed - Ed Other - Other,ENF,Direct Employees,A,Salaries,AA,20/06/2012,PAY00484025,19.69,Revenue,Carlisle Staffing Plc
Brighton & Hove City Council,http://statistics.data.gov.uk/id/local-authority/00ML,Education Services,BVAEDU,Ed - EY - Central,EAE,Direct Employees,A,Salaries,AA,20/06/2012,PAY00484025,4999.52,Revenue,Carlisle Staffing Plc
Brighton & Hove City Council,http://statistics.data.gov.uk/id/local-authority/00ML,Education Services,BVAEDU,Ed - Mgmt & Support Services,EMG,Direct Employees,A,Salaries,AA,20/06/2012,PAY00484025,1799.08,Revenue,Carlisle Staffing Plc
Brighton & Hove City Council,http://statistics.data.gov.uk/id/local-authority/00ML,Education Services,BVAEDU,Ed - Primary schools,EHH,Direct Employees,A,Salaries,AA,20/06/2012,PAY00484025,132.13,Revenue,Carlisle Staffing Plc
Brighton & Hove City Council,http://statistics.data.gov.uk/id/local-authority/00ML,Education Services,BVAEDU,Ed - Secondary Ed,EJE,Direct Employees,A,Salaries,AA,20/06/2012,PAY00484025,7.31,Revenue,Carlisle Staffing Plc
Brighton & Hove City Council,http://statistics.data.gov.uk/id/local-authority/00ML,Education Services,BVAEDU,Ed - Secondary Schools,EJJ,Direct Employees,A,Salaries,AA,20/06/2012,PAY00484025,961.24,Revenue,Carlisle Staffing Plc
Brighton & Hove City Council,http://statistics.data.gov.uk/id/local-authority/00ML,Education Services,BVAEDU,Ed - Special Ed,EKE,Direct Employees,A,Salaries,AA,20/06/2012,PAY00484025,17.19,Revenue,Carlisle Staffing Plc
Brighton & Hove City Council,http://statistics.data.gov.uk/id/local-authority/00ML,Environment and Regulatory Ser,BVAERS,Cem Crem and Mortuary Services,CCM,Direct Employees,A,Salaries,AA,20/06/2012,PAY00484025,484.68,Revenue,Carlisle Staffing Plc
Brighton & Hove City Council,http://statistics.data.gov.uk/id/local-authority/00ML,Environment and Regulatory Ser,BVAERS,Community Safety,CMY,Direct Employees,A,Salaries,AA,20/06/2012,PAY00484025,405.41,Revenue,Carlisle Staffing Plc
Brighton & Hove City Council,http://statistics.data.gov.uk/id/local-authority/00ML,Environment and Regulatory Ser,BVAERS,Environmental Health,EVH,Direct Employees,A,Salaries,AA,20/06/2012,PAY00484025,1687.59,Revenue,Carlisle Staffing Plc
Brighton & Hove City Council,http://statistics.data.gov.uk/id/local-authority/00ML,Environment and Regulatory Ser,BVAERS,Management Services (DEC),MGT,Direct Employees,A,Salaries,AA,20/06/2012,PAY00484025,1286.49,Revenue,Carlisle Staffing Plc
Brighton & Hove City Council,http://statistics.data.gov.uk/id/local-authority/00ML,Environment and Regulatory Ser,BVAERS,Street Cleansing,CLE,Direct Employees,A,Salaries,AA,20/06/2012,PAY00484025,1831.85,Revenue,Carlisle Staffing Plc
Brighton & Hove City Council,http://statistics.data.gov.uk/id/local-authority/00ML,Environment and Regulatory Ser,BVAERS,Waste Management,WMT,Direct Employees,A,Salaries,AA,20/06/2012,PAY00484025,10743.16,Revenue,Carlisle Staffing Plc
Brighton & Hove City Council,http://statistics.data.gov.uk/id/local-authority/00ML,Highways and Transportation,BVAHRT,Highways and Roads - Mntnce,HRM,Direct Employees,A,Salaries,AA,20/06/2012,PAY00484025,467.68,Revenue,Carlisle Staffing Plc
Brighton & Hove City Council,http://statistics.data.gov.uk/id/local-authority/00ML,Highways and Transportation,BVAHRT,Parking Services,PRK,Direct Employees,A,Salaries,AA,20/06/2012,PAY00484025,1042.92,Revenue,Carlisle Staffing Plc
Brighton & Hove City Council,http://statistics.data.gov.uk/id/local-authority/00ML,Highways and Transportation,BVAHRT,Traffic Mgmnt and Road Safety,TMR,Direct Employees,A,Salaries,AA,20/06/2012,PAY00484025,1.88,Revenue,Carlisle Staffing Plc
Brighton & Hove City Council,http://statistics.data.gov.uk/id/local-authority/00ML,Highways and Transportation,BVAHRT,Transport plan policy strategy,TPP,Direct Employees,A,Salaries,AA,20/06/2012,PAY00484025,1914.39,Revenue,Carlisle Staffing Plc
Brighton & Hove City Council,http://statistics.data.gov.uk/id/local-authority/00ML,Housing Services General Fund,BVAHOG,Homelessness,HML,Direct Employees,A,Salaries,AA,20/06/2012,PAY00484025,3457.19,Revenue,Carlisle Staffing Plc
Brighton & Hove City Council,http://statistics.data.gov.uk/id/local-authority/00ML,Housing Services General Fund,BVAHOG,Hsing Benefits,HGB,Direct Employees,A,Salaries,AA,20/06/2012,PAY00484025,19.57,Revenue,Carlisle Staffing Plc
Brighton & Hove City Council,http://statistics.data.gov.uk/id/local-authority/00ML,Housing Services General Fund,BVAHOG,Hsing Welfare,HGW,Direct Employees,A,Salaries,AA,20/06/2012,PAY00484025,706.13,Revenue,Carlisle Staffing Plc
Brighton & Hove City Council,http://statistics.data.gov.uk/id/local-authority/00ML,Housing Services Revnue Acc,BVAHOU,Hsing Management - HRA,HGM,Direct Employees,A,Salaries,AA,20/06/2012,PAY00484025,14123.24,Revenue,Carlisle Staffing Plc
Brighton & Hove City Council,http://statistics.data.gov.uk/id/local-authority/00ML,Planning Services,BVAPLA,Development Control,DEV,Direct Employees,A,Salaries,AA,20/06/2012,PAY00484025,407.86,Revenue,Carlisle Staffing Plc
Brighton & Hove City Council,http://statistics.data.gov.uk/id/local-authority/00ML,Planning Services,BVAPLA,Economic Development,ECD,Direct Employees,A,Salaries,AA,20/06/2012,PAY00484025,9.25,Revenue,Carlisle Staffing Plc
Brighton & Hove City Council,http://statistics.data.gov.uk/id/local-authority/00ML,Adult Social Care,BVASOC,Child Srvcs - Other Fam Supp,FFX,Direct Employees,A,Salaries,AA,27/06/2012,PAY00485655,2111.77,Revenue,Carlisle Staffing Plc
Brighton & Hove City Council,http://statistics.data.gov.uk/id/local-authority/00ML,Adult Social Care,BVASOC,Management Services (DEC),MGT,Direct Employees,A,Salaries,AA,27/06/2012,PAY00485655,447.84,Revenue,Carlisle Staffing Plc
Brighton & Hove City Council,http://statistics.data.gov.uk/id/local-authority/00ML,Adult Social Care,BVASOC,Management Services (DEC),MGT,Indirect Employees,B,Training,BM,27/06/2012,PAY00485655,22.85,Revenue,Carlisle Staffing Plc
Brighton & Hove City Council,http://statistics.data.gov.uk/id/local-authority/00ML,Adult Social Care,BVASOC,S Svcs - Learning Disability,LDY,Direct Employees,A,Salaries,AA,27/06/2012,PAY00485655,3849.85,Revenue,Carlisle Staffing Plc
Brighton & Hove City Council,http://statistics.data.gov.uk/id/local-authority/00ML,Adult Social Care,BVASOC,S Svcs - Mental Health,MHT,Direct Employees,A,Salaries,AA,27/06/2012,PAY00485655,103,Revenue,Carlisle Staffing Plc
Brighton & Hove City Council,http://statistics.data.gov.uk/id/local-authority/00ML,Adult Social Care,BVASOC,S Svcs - Older People Svcs,PPL,Direct Employees,A,Salaries,AA,27/06/2012,PAY00485655,16239,Revenue,Carlisle Staffing Plc
Brighton & Hove City Council,http://statistics.data.gov.uk/id/local-authority/00ML,Adult Social Care,BVASOC,S Svcs - Supported Employment,EMP,Direct Employees,A,Salaries,AA,27/06/2012,PAY00485655,7.94,Revenue,Carlisle Staffing Plc
